Workbook

Sheet Main
B10: 2020-02-17
B12: Sheet No. | C12: Template Name | D12: Summary
B13: 1 | C13: Future Intra | D13: For Intraday trading in F&O segment
B14: 2 | C14: Cash Intra | D14: For Intraday trading in cash market segment
B15: 3 | C15: Mid-cap Intra | D15: For Intraday trading in Mid-cap stocks
B16: 4 | C16: Bulk Deals | D16: Reveals Bulk Deals carried on NSE & BSE
B17: 5 | C17: Call Tracker
K27: `

Sheet Future Intra
M5: Back to Main Page
A6: FOR INTRA DAY TRADING | L6: =Main!B10 -> 2020-02-17
A9: Sr.no | B9: Sector | C9: Scrip | D9: CLOSE RATE | E9: Pivot Point | F9: Supports | I9: Resistances
B10: Sector | D10: Point | E10: Point | F10: S1 | G10: S2 | H10: S3 | I10: R1 | J10: R2 | K10: R3 | L10: HIGH | M10: LOW | N10: OI | O10: % Change in OI
A11: 1 | B11: Index | C11: BANKNIFTY | D11: 30902.10 | E11: 31049.15 | F11: 30627.45 | G11: 30352.80 | H11: 29931.10 | I11: 31323.80 | J11: 31745.50 | K11: 32020.15 | L11: 31470.85 | M11: 30774.5 | N11: 1347180 | O11: -0.79%
A12: 2 | B12: Index | C12: NIFTY | D12: 12129.65 | E12: 12163.68 | F12: 12066.97 | G12: 12004.28 | H12: 11907.57 | I12: 12226.37 | J12: 12323.08 | K12: 12385.77 | L12: 12260.4 | M12: 12101 | N12: 14181825 | O12: -1.45%
A13: 3 | B13: Index | C13: NIFTYIT | D13: 16612.00 | E13: 16660.33 | F13: 16554.67 | G13: 16497.33 | H13: 16391.67 | I13: 16717.67 | J13: 16823.33 | K13: 16880.67 | L13: 16766 | M13: 16603 | N13: 8200 | O13: 7.89%
A14: 4 | B14: Cement | C14: ACC | D14: 1441.80 | E14: 1444.60 | F14: 1430.35 | G14: 1418.90 | H14: 1404.65 | I14: 1456.05 | J14: 1470.30 | K14: 1481.75 | L14: 1458.85 | M14: 1433.15 | N14: 4657200 | O14: -2.12%
A15: 5 | B15: Others | C15: ADANIENT | D15: 255.80 | E15: 254.55 | F15: 250.75 | G15: 245.70 | H15: 241.90 | I15: 259.60 | J15: 263.40 | K15: 268.45 | L15: 258.35 | M15: 249.5 | N15: 29152000 | O15: -1.62%
A16: 6 | B16: Others | C16: ADANIPORTS | D16: 367.45 | E16: 369.02 | F16: 365.03 | G16: 362.62 | H16: 358.63 | I16: 371.43 | J16: 375.42 | K16: 377.83 | L16: 373 | M16: 366.6 | N16: 27742500 | O16: 1.01%
A17: 7 | B17: Power | C17: ADANIPOWER | D17: 59.60 | E17: 59.70 | F17: 58.80 | G17: 58.00 | H17: 57.10 | I17: 60.50 | J17: 61.40 | K17: 62.20 | L17: 60.6 | M17: 58.9 | N17: 75890000 | O17: 0.76%
A18: 8 | B18: Automobile | C18: AMARAJABAT | D18: 758.75 | E18: 762.80 | F18: 750.45 | G18: 742.15 | H18: 729.80 | I18: 771.10 | J18: 783.45 | K18: 791.75 | L18: 775.15 | M18: 754.5 | N18: 1764000 | O18: -0.23%
A19: 9 | B19: Cement | C19: AMBUJACEM | D19: 205.80 | E19: 207.63 | F19: 203.22 | G19: 200.63 | H19: 196.22 | I19: 210.22 | J19: 214.63 | K19: 217.22 | L19: 212.05 | M19: 205.05 | N19: 32992500 | O19: 0.40%
A20: 10 | B20: Others | C20: APOLLOHOSP | D20: 1706.95 | E20: 1711.08 | F20: 1676.17 | G20: 1645.38 | H20: 1610.47 | I20: 1741.87 | J20: 1776.78 | K20: 1807.57 | L20: 1746 | M20: 1680.3 | N20: 2160000 | O20: 3.70%
A21: 11 | B21: Automobile | C21: APOLLOTYRE | D21: 159.55 | E21: 160.68 | F21: 157.67 | G21: 155.78 | H21: 152.77 | I21: 162.57 | J21: 165.58 | K21: 167.47 | L21: 163.7 | M21: 158.8 | N21: 17568000 | O21: 8.99%
A22: 12 | B22: Automobile | C22: ASHOKLEY | D22: 80.25 | E22: 80.50 | F22: 79.55 | G22: 78.85 | H22: 77.90 | I22: 81.20 | J22: 82.15 | K22: 82.85 | L22: 81.45 | M22: 79.8 | N22: 69760000 | O22: 1.00%
A23: 13 | B23: FMCG | C23: ASIANPAINT | D23: 1883.30 | E23: 1887.88 | F23: 1871.97 | G23: 1860.63 | H23: 1844.72 | I23: 1899.22 | J23: 1915.13 | K23: 1926.47 | L23: 1903.8 | M23: 1876.55 | N23: 7759800 | O23: -0.68%
A24: 14 | B24: Pharma | C24: AUROPHARMA | D24: 514.45 | E24: 519.57 | F24: 507.13 | G24: 499.82 | H24: 487.38 | I24: 526.88 | J24: 539.32 | K24: 546.63 | L24: 532 | M24: 512.25 | N24: 15557000 | O24: -1.80%
A25: 15 | B25: Banking | C25: AXISBANK | D25: 738.80 | E25: 741.95 | F25: 730.40 | G25: 722.00 | H25: 710.45 | I25: 750.35 | J25: 761.90 | K25: 770.30 | L25: 753.5 | M25: 733.55 | N25: 53785200 | O25: -0.30%
A26: 16 | B26: Automobile | C26: BAJAJ-AUTO | D26: 3156.80 | E26: 3169.22 | F26: 3131.43 | G26: 3106.07 | H26: 3068.28 | I26: 3194.58 | J26: 3232.37 | K26: 3257.73 | L26: 3207 | M26: 3143.85 | N26: 1789500 | O26: 0.34%
A27: 17 | B27: Finance | C27: BAJAJFINSV | D27: 9713.05 | E27: 9740.97 | F27: 9662.93 | G27: 9612.82 | H27: 9534.78 | I27: 9791.08 | J27: 9869.12 | K27: 9919.23 | L27: 9819 | M27: 9690.85 | N27: 1100000 | O27: -0.59%
A28: 18 | B28: Finance | C28: BAJFINANCE | D28: 4791.40 | E28: 4794.08 | F28: 4769.37 | G28: 4747.33 | H28: 4722.62 | I28: 4816.12 | J28: 4840.83 | K28: 4862.87 | L28: 4818.8 | M28: 4772.05 | N28: 6283000 | O28: -0.95%
A29: 19 | B29: Automobile | C29: BALKRISIND | D29: 1154.00 | E29: 1149.43 | F29: 1140.57 | G29: 1127.13 | H29: 1118.27 | I29: 1162.87 | J29: 1171.73 | K29: 1185.17 | L29: 1158.3 | M29: 1136 | N29: 1773600 | O29: -2.93%
A30: 20 | B30: Banking | C30: BANKBARODA | D30: 86.55 | E30: 87.32 | F30: 85.48 | G30: 84.42 | H30: 82.58 | I30: 88.38 | J30: 90.22 | K30: 91.28 | L30: 89.15 | M30: 86.25 | N30: 77884200 | O30: 1.81%
A31: 21 | B31: FMCG | C31: BATAINDIA | D31: 1790.45 | E31: 1801.12 | F31: 1770.23 | G31: 1750.02 | H31: 1719.13 | I31: 1821.33 | J31: 1852.22 | K31: 1872.43 | L31: 1832 | M31: 1780.9 | N31: 2471700 | O31: 6.82%
A32: 22 | B32: Capital_Goods | C32: BEL | D32: 83.25 | E32: 84.00 | F32: 82.25 | G32: 81.25 | H32: 79.50 | I32: 85.00 | J32: 86.75 | K32: 87.75 | L32: 85.75 | M32: 83 | N32: 48324000 | O32: -3.48%
A33: 23 | B33: FMCG | C33: BERGEPAINT | D33: 580.50 | E33: 581.77 | F33: 576.53 | G33: 572.57 | H33: 567.33 | I33: 585.73 | J33: 590.97 | K33: 594.93 | L33: 587 | M33: 577.8 | N33: 7746200 | O33: -1.40%
A34: 24 | B34: Automobile | C34: BHARATFORG | D34: 484.05 | E34: 487.47 | F34: 479.63 | G34: 475.22 | H34: 467.38 | I34: 491.88 | J34: 499.72 | K34: 504.13 | L34: 495.3 | M34: 483.05 | N34: 8139300 | O34: -0.59%
A35: 25 | B35: Telecom | C35: BHARTIARTL | D35: 566.65 | E35: 556.98 | F35: 545.37 | G35: 524.08 | H35: 512.47 | I35: 578.27 | J35: 589.88 | K35: 611.17 | L35: 568.6 | M35: 535.7 | N35: 57318066 | O35: 5.82%
A36: 26 | B36: Capital_Goods | C36: BHEL | D36: 36.35 | E36: 36.63 | F36: 35.77 | G36: 35.18 | H36: 34.32 | I36: 37.22 | J36: 38.08 | K36: 38.67 | L36: 37.5 | M36: 36.05 | N36: 97968000 | O36: 1.85%
A37: 27 | B37: Pharma | C37: BIOCON | D37: 307.70 | E37: 306.15 | F37: 303.00 | G37: 298.30 | H37: 295.15 | I37: 310.85 | J37: 314.00 | K37: 318.70 | L37: 309.3 | M37: 301.45 | N37: 15124800 | O37: 0.08%
A38: 28 | B38: Automobile | C38: BOSCHLTD | D38: 14610.00 | E38: 14645.38 | F38: 14509.62 | G38: 14409.23 | H38: 14273.47 | I38: 14745.77 | J38: 14881.53 | K38: 14981.92 | L38: 14781.15 | M38: 14545 | N38: 138560 | O38: -1.79%
A39: 29 | B39: Oil_Gas | C39: BPCL | D39: 477.35 | E39: 477.92 | F39: 470.08 | G39: 462.82 | H39: 454.98 | I39: 485.18 | J39: 493.02 | K39: 500.28 | L39: 485.75 | M39: 470.65 | N39: 29386800 | O39: -0.68%
A40: 30 | B40: FMCG | C40: BRITANNIA | D40: 3108.70 | E40: 3126.23 | F40: 3082.47 | G40: 3056.23 | H40: 3012.47 | I40: 3152.47 | J40: 3196.23 | K40: 3222.47 | L40: 3170 | M40: 3100 | N40: 2741800 | O40: 0.23%
A41: 31 | B41: Pharma | C41: CADILAHC | D41: 270.45 | E41: 269.77 | F41: 267.08 | G41: 263.72 | H41: 261.03 | I41: 273.13 | J41: 275.82 | K41: 279.18 | L41: 272.45 | M41: 266.4 | N41: 8041000 | O41: -3.77%
A42: 32 | B42: Banking | C42: CANBK | D42: 180.60 | E42: 182.02 | F42: 178.23 | G42: 175.87 | H42: 172.08 | I42: 184.38 | J42: 188.17 | K42: 190.53 | L42: 185.8 | M42: 179.65 | N42: 20937800 | O42: -4.39%
A43: 33 | B43: Textile | C43: CENTURYTEX | D43: 583.25 | E43: 590.62 | F43: 572.33 | G43: 561.42 | H43: 543.13 | I43: 601.53 | J43: 619.82 | K43: 630.73 | L43: 608.9 | M43: 579.7 | N43: 4213200 | O43: -1.57%
A44: 34 | B44: Power | C44: CESC | D44: 694.55 | E44: 700.15 | F44: 686.40 | G44: 678.25 | H44: 664.50 | I44: 708.30 | J44: 722.05 | K44: 730.20 | L44: 713.9 | M44: 692 | N44: 1820800 | O44: 2.38%
A45: 35 | B45: Finance | C45: CHOLAFIN | D45: 333.75 | E45: 334.65 | F45: 330.55 | G45: 327.35 | H45: 323.25 | I45: 337.85 | J45: 341.95 | K45: 345.15 | L45: 338.75 | M45: 331.45 | N45: 6022500 | O45: -1.07%
A46: 36 | B46: Pharma | C46: CIPLA | D46: 447.75 | E46: 446.75 | F46: 444.10 | G46: 440.45 | H46: 437.80 | I46: 450.40 | J46: 453.05 | K46: 456.70 | L46: 449.4 | M46: 443.1 | N46: 15788350 | O46: -1.93%
A47: 37 | B47: Others | C47: COALINDIA | D47: 175.05 | E47: 176.32 | F47: 173.48 | G47: 171.92 | H47: 169.08 | I47: 177.88 | J47: 180.72 | K47: 182.28 | L47: 179.15 | M47: 174.75 | N47: 56683800 | O47: -6.73%
A48: 38 | B48: FMCG | C48: COLPAL | D48: 1341.45 | E48: 1347.33 | F48: 1331.77 | G48: 1322.08 | H48: 1306.52 | I48: 1357.02 | J48: 1372.58 | K48: 1382.27 | L48: 1362.9 | M48: 1337.65 | N48: 3346000 | O48: 0.42%
A49: 39 | B49: Others | C49: CONCOR | D49: 560.35 | E49: 562.45 | F49: 556.90 | G49: 553.45 | H49: 547.90 | I49: 565.90 | J49: 571.45 | K49: 574.90 | L49: 568 | M49: 559 | N49: 4925013 | O49: 0.86%
A50: 40 | B50: Capital_Goods | C50: CUMMINSIND | D50: 537.45 | E50: 542.23 | F50: 531.47 | G50: 525.48 | H50: 514.72 | I50: 548.22 | J50: 558.98 | K50: 564.97 | L50: 553 | M50: 536.25 | N50: 1808100 | O50: 2.92%
A51: 41 | B51: FMCG | C51: DABUR | D51: 508.00 | E51: 510.33 | F51: 503.37 | G51: 498.73 | H51: 491.77 | I51: 514.97 | J51: 521.93 | K51: 526.57 | L51: 517.3 | M51: 505.7 | N51: 13706250 | O51: -0.89%
A52: 42 | B52: Pharma | C52: DIVISLAB | D52: 2139.00 | E52: 2148.13 | F52: 2118.62 | G52: 2098.23 | H52: 2068.72 | I52: 2168.52 | J52: 2198.03 | K52: 2218.42 | L52: 2177.65 | M52: 2127.75 | N52: 1756000 | O52: 1.34%
A53: 43 | B53: Realty | C53: DLF | D53: 226.90 | E53: 229.12 | F53: 222.98 | G53: 219.07 | H53: 212.93 | I53: 233.03 | J53: 239.17 | K53: 243.08 | L53: 235.25 | M53: 225.2 | N53: 36250500 | O53: 0.19%
A54: 44 | B54: Pharma | C54: DRREDDY | D54: 3306.00 | E54: 3303.78 | F54: 3274.57 | G54: 3243.13 | H54: 3213.92 | I54: 3335.22 | J54: 3364.43 | K54: 3395.87 | L54: 3333 | M54: 3272.35 | N54: 2782750 | O54: -3.52%
A55: 45 | B55: Automobile | C55: EICHERMOT | D55: 18771.75 | E55: 18919.67 | F55: 18464.33 | G55: 18156.92 | H55: 17701.58 | I55: 19227.08 | J55: 19682.42 | K55: 19989.83 | L55: 19375 | M55: 18612.25 | N55: 259770 | O55: 0.28%
A56: 46 | B56: Finance | C56: EQUITAS | D56: 108.40 | E56: 109.35 | F56: 106.70 | G56: 105.00 | H56: 102.35 | I56: 111.05 | J56: 113.70 | K56: 115.40 | L56: 112 | M56: 107.65 | N56: 20080200 | O56: 3.48%
A57: 47 | B57: Automobile | C57: ESCORTS | D57: 885.65 | E57: 887.18 | F57: 880.47 | G57: 875.28 | H57: 868.57 | I57: 892.37 | J57: 899.08 | K57: 904.27 | L57: 893.9 | M57: 882 | N57: 4478100 | O57: -9.57%
A58: 48 | B58: Automobile | C58: EXIDEIND | D58: 178.50 | E58: 179.45 | F58: 176.50 | G58: 174.50 | H58: 171.55 | I58: 181.45 | J58: 184.40 | K58: 186.40 | L58: 182.4 | M58: 177.45 | N58: 11698600 | O58: -4.29%
A59: 49 | B59: Banking | C59: FEDERALBNK | D59: 87.50 | E59: 88.30 | F59: 86.35 | G59: 85.20 | H59: 83.25 | I59: 89.45 | J59: 91.40 | K59: 92.55 | L59: 90.25 | M59: 87.15 | N59: 59948000 | O59: -0.97%
A60: 50 | B60: Oil_Gas | C60: GAIL | D60: 123.05 | E60: 125.82 | F60: 119.73 | G60: 116.42 | H60: 110.33 | I60: 129.13 | J60: 135.22 | K60: 138.53 | L60: 131.9 | M60: 122.5 | N60: 46288452 | O60: 7.10%
A61: 51 | B61: Pharma | C61: GLENMARK | D61: 335.10 | E61: 334.02 | F61: 329.78 | G61: 324.47 | H61: 320.23 | I61: 339.33 | J61: 343.57 | K61: 348.88 | L61: 338.25 | M61: 328.7 | N61: 8117200 | O61: -6.71%
A62: 52 | B62: Infrastructure | C62: GMRINFRA | D62: 23.10 | E62: 23.32 | F62: 22.68 | G62: 22.27 | H62: 21.63 | I62: 23.73 | J62: 24.37 | K62: 24.78 | L62: 23.95 | M62: 22.9 | N62: 179010000 | O62: -1.19%
A63: 53 | B63: FMCG | C63: GODREJCP | D63: 626.15 | E63: 629.47 | F63: 618.13 | G63: 610.12 | H63: 598.78 | I63: 637.48 | J63: 648.82 | K63: 656.83 | L63: 640.8 | M63: 621.45 | N63: 7902400 | O63: -1.12%
A64: 54 | B64: Cement | C64: GRASIM | D64: 745.95 | E64: 753.07 | F64: 732.93 | G64: 719.92 | H64: 699.78 | I64: 766.08 | J64: 786.22 | K64: 799.23 | L64: 773.2 | M64: 740.05 | N64: 27591750 | O64: 3.72%
A65: 55 | B65: Others | C65: HAVELLS | D65: 612.60 | E65: 615.95 | F65: 607.65 | G65: 602.70 | H65: 594.40 | I65: 620.90 | J65: 629.20 | K65: 634.15 | L65: 624.25 | M65: 611 | N65: 6867000 | O65: -0.36%
A66: 56 | B66: Technology | C66: HCLTECH | D66: 622.15 | E66: 619.98 | F66: 616.42 | G66: 610.68 | H66: 607.12 | I66: 625.72 | J66: 629.28 | K66: 635.02 | L66: 623.55 | M66: 614.25 | N66: 23697800 | O66: 0.20%
A67: 57 | B67: Finance | C67: HDFC | D67: 2405.20 | E67: 2410.85 | F67: 2388.40 | G67: 2371.60 | H67: 2349.15 | I67: 2427.65 | J67: 2450.10 | K67: 2466.90 | L67: 2433.3 | M67: 2394.05 | N67: 33155250 | O67: 0.37%
A68: 58 | B68: Banking | C68: HDFCBANK | D68: 1223.10 | E68: 1230.67 | F68: 1211.43 | G68: 1199.77 | H68: 1180.53 | I68: 1242.33 | J68: 1261.57 | K68: 1273.23 | L68: 1249.9 | M68: 1219 | N68: 34467000 | O68: 2.39%
A69: 59 | B69: Automobile | C69: HEROMOTOCO | D69: 2292.95 | E69: 2318.43 | F69: 2263.77 | G69: 2234.58 | H69: 2179.92 | I69: 2347.62 | J69: 2402.28 | K69: 2431.47 | L69: 2373.1 | M69: 2289.25 | N69: 3573600 | O69: 6.02%
A70: 60 | B70: Metals | C70: HINDALCO | D70: 194.40 | E70: 195.35 | F70: 193.00 | G70: 191.60 | H70: 189.25 | I70: 196.75 | J70: 199.10 | K70: 200.50 | L70: 197.7 | M70: 193.95 | N70: 49210000 | O70: -1.11%
A71: 61 | B71: Oil_Gas | C71: HINDPETRO | D71: 234.20 | E71: 235.60 | F71: 232.15 | G71: 230.10 | H71: 226.65 | I71: 237.65 | J71: 241.10 | K71: 243.15 | L71: 239.05 | M71: 233.55 | N71: 15848700 | O71: -3.44%
A72: 62 | B72: FMCG | C72: HINDUNILVR | D72: 2263.15 | E72: 2271.32 | F72: 2246.33 | G72: 2229.52 | H72: 2204.53 | I72: 2288.13 | J72: 2313.12 | K72: 2329.93 | L72: 2296.3 | M72: 2254.5 | N72: 10521000 | O72: -1.25%
A73: 63 | B73: Finance | C73: IBULHSGFIN | D73: 321.25 | E73: 324.82 | F73: 315.43 | G73: 309.62 | H73: 300.23 | I73: 330.63 | J73: 340.02 | K73: 345.83 | L73: 334.2 | M73: 319 | N73: 22052400 | O73: -0.53%
A74: 64 | B74: Banking | C74: ICICIBANK | D74: 545.90 | E74: 544.15 | F74: 539.25 | G74: 532.60 | H74: 527.70 | I74: 550.80 | J74: 555.70 | K74: 562.35 | L74: 549.05 | M74: 537.5 | N74: 103732750 | O74: -2.53%
A75: 65 | B75: Finance | C75: ICICIPRULI | D75: 482.45 | E75: 482.08 | F75: 479.47 | G75: 476.48 | H75: 473.87 | I75: 485.07 | J75: 487.68 | K75: 490.67 | L75: 484.7 | M75: 479.1 | N75: 8868000 | O75: 1.01%
A76: 66 | B76: Telecom | C76: IDEA | D76: 3.45 | E76: 4.05 | F76: 2.65 | G76: 1.85 | H76: 0.45 | I76: 4.85 | J76: 6.25 | K76: 7.05 | L76: 5.45 | M76: 3.25 | N76: 455798000 | O76: -6.81%
A77: 67 | B77: Banking | C77: IDFCFIRSTB | D77: 39.60 | E77: 40.27 | F77: 38.78 | G77: 37.97 | H77: 36.48 | I77: 41.08 | J77: 42.57 | K77: 43.38 | L77: 41.75 | M77: 39.45 | N77: 234192000 | O77: 2.69%
A78: 68 | B78: Oil_Gas | C78: IGL | D78: 489.60 | E78: 492.67 | F78: 485.08 | G78: 480.57 | H78: 472.98 | I78: 497.18 | J78: 504.77 | K78: 509.28 | L78: 500.25 | M78: 488.15 | N78: 10180500 | O78: 10.15%
A79: 69 | B79: Others | C79: INDIGO | D79: 1445.30 | E79: 1450.42 | F79: 1430.98 | G79: 1416.67 | H79: 1397.23 | I79: 1464.73 | J79: 1484.17 | K79: 1498.48 | L79: 1469.85 | M79: 1436.1 | N79: 3725100 | O79: -0.22%
A80: 70 | B80: Banking | C80: INDUSINDBK | D80: 1179.65 | E80: 1199.03 | F80: 1155.62 | G80: 1131.58 | H80: 1088.17 | I80: 1223.07 | J80: 1266.48 | K80: 1290.52 | L80: 1242.45 | M80: 1175 | N80: 14914800 | O80: 1.71%
A81: 71 | B81: Telecom | C81: INFRATEL | D81: 232.00 | E81: 236.33 | F81: 220.67 | G81: 209.33 | H81: 193.67 | I81: 247.67 | J81: 263.33 | K81: 274.67 | L81: 252 | M81: 225 | N81: 15026000 | O81: 29.80%
A82: 72 | B82: Technology | C82: INFY | D82: 789.15 | E82: 792.83 | F82: 783.92 | G82: 778.68 | H82: 769.77 | I82: 798.07 | J82: 806.98 | K82: 812.22 | L82: 801.75 | M82: 787.6 | N82: 33501600 | O82: -1.88%
A83: 73 | B83: Oil_Gas | C83: IOC | D83: 115.35 | E83: 115.18 | F83: 114.37 | G83: 113.38 | H83: 112.57 | I83: 116.17 | J83: 116.98 | K83: 117.97 | L83: 116 | M83: 114.2 | N83: 50956000 | O83: -2.24%
A84: 74 | B84: FMCG | C84: ITC | D84: 208.40 | E84: 209.88 | F84: 206.12 | G84: 203.83 | H84: 200.07 | I84: 212.17 | J84: 215.93 | K84: 218.22 | L84: 213.65 | M84: 207.6 | N84: 149248800 | O84: 1.46%
A85: 75 | B85: Metals | C85: JINDALSTEL | D85: 191.10 | E85: 193.10 | F85: 187.95 | G85: 184.80 | H85: 179.65 | I85: 196.25 | J85: 201.40 | K85: 204.55 | L85: 198.25 | M85: 189.95 | N85: 31305000 | O85: -2.22%
A86: 76 | B86: Metals | C86: JSWSTEEL | D86: 290.15 | E86: 292.30 | F86: 286.95 | G86: 283.75 | H86: 278.40 | I86: 295.50 | J86: 300.85 | K86: 304.05 | L86: 297.65 | M86: 289.1 | N86: 58700600 | O86: -1.21%
A87: 77 | B87: Others | C87: JUBLFOOD | D87: 1820.00 | E87: 1831.23 | F87: 1798.12 | G87: 1776.23 | H87: 1743.12 | I87: 1853.12 | J87: 1886.23 | K87: 1908.12 | L87: 1864.35 | M87: 1809.35 | N87: 2779000 | O87: -2.10%
A88: 78 | B88: Others | C88: JUSTDIAL | D88: 508.10 | E88: 511.57 | F88: 502.38 | G88: 496.67 | H88: 487.48 | I88: 517.28 | J88: 526.47 | K88: 532.18 | L88: 520.75 | M88: 505.85 | N88: 3136000 | O88: -0.18%
A89: 79 | B89: Banking | C89: KOTAKBANK | D89: 1686.65 | E89: 1686.68 | F89: 1668.47 | G89: 1650.28 | H89: 1632.07 | I89: 1704.87 | J89: 1723.08 | K89: 1741.27 | L89: 1704.9 | M89: 1668.5 | N89: 9602400 | O89: -0.71%
A90: 80 | B90: Finance | C90: L&TFH | D90: 126.30 | E90: 126.87 | F90: 125.08 | G90: 123.87 | H90: 122.08 | I90: 128.08 | J90: 129.87 | K90: 131.08 | L90: 128.65 | M90: 125.65 | N90: 24808000 | O90: -1.53%
A91: 81 | B91: Finance | C91: LICHSGFIN | D91: 413.95 | E91: 418.32 | F91: 405.13 | G91: 396.32 | H91: 383.13 | I91: 427.13 | J91: 440.32 | K91: 449.13 | L91: 431.5 | M91: 409.5 | N91: 11835200 | O91: 1.91%
A92: 82 | B92: Capital_Goods | C92: LT | D92: 1296.45 | E92: 1298.47 | F92: 1290.53 | G92: 1284.62 | H92: 1276.68 | I92: 1304.38 | J92: 1312.32 | K92: 1318.23 | L92: 1306.4 | M92: 1292.55 | N92: 20676000 | O92: -1.67%
A93: 83 | B93: Pharma | C93: LUPIN | D93: 717.20 | E93: 714.88 | F93: 708.57 | G93: 699.93 | H93: 693.62 | I93: 723.52 | J93: 729.83 | K93: 738.47 | L93: 721.2 | M93: 706.25 | N93: 8588300 | O93: -3.08%
A94: 84 | B94: Automobile | C94: M&M | D94: 523.80 | E94: 527.98 | F94: 518.07 | G94: 512.33 | H94: 502.42 | I94: 533.72 | J94: 543.63 | K94: 549.37 | L94: 537.9 | M94: 522.25 | N94: 24802000 | O94: -0.75%
A95: 85 | B95: Finance | C95: M&MFIN | D95: 385.20 | E95: 386.58 | F95: 380.27 | G95: 375.33 | H95: 369.02 | I95: 391.52 | J95: 397.83 | K95: 402.77 | L95: 392.9 | M95: 381.65 | N95: 14395200 | O95: -3.79%
A96: 86 | B96: Finance | C96: MANAPPURAM | D96: 161.45 | E96: 162.73 | F96: 159.72 | G96: 157.98 | H96: 154.97 | I96: 164.47 | J96: 167.48 | K96: 169.22 | L96: 165.75 | M96: 161 | N96: 33540000 | O96: 5.09%
A97: 87 | B97: FMCG | C97: MARICO | D97: 302.20 | E97: 302.93 | F97: 300.67 | G97: 299.13 | H97: 296.87 | I97: 304.47 | J97: 306.73 | K97: 308.27 | L97: 305.2 | M97: 301.4 | N97: 15676700 | O97: -0.73%
A98: 88 | B98: Automobile | C98: MARUTI | D98: 6936.55 | E98: 6980.68 | F98: 6865.52 | G98: 6794.48 | H98: 6679.32 | I98: 7051.72 | J98: 7166.88 | K98: 7237.92 | L98: 7095.85 | M98: 6909.65 | N98: 3180100 | O98: 0.81%
A99: 89 | B99: FMCG | C99: MCDOWELL-N | D99: 705.60 | E99: 707.22 | F99: 699.43 | G99: 693.27 | H99: 685.48 | I99: 713.38 | J99: 721.17 | K99: 727.33 | L99: 715 | M99: 701.05 | N99: 12770000 | O99: -1.50%
A100: 90 | B100: Finance | C100: MFSL | D100: 487.85 | E100: 488.07 | F100: 482.23 | G100: 476.62 | H100: 470.78 | I100: 493.68 | J100: 499.52 | K100: 505.13 | L100: 493.9 | M100: 482.45 | N100: 5972200 | O100: -2.28%
A101: 91 | B101: Oil_Gas | C101: MGL | D101: 1164.75 | E101: 1173.53 | F101: 1152.37 | G101: 1139.98 | H101: 1118.82 | I101: 1185.92 | J101: 1207.08 | K101: 1219.47 | L101: 1194.7 | M101: 1161.15 | N101: 1992000 | O101: -2.04%
A102: 92 | B102: Technology | C102: MINDTREE | D102: 959.10 | E102: 954.78 | F102: 934.47 | G102: 909.83 | H102: 889.52 | I102: 979.42 | J102: 999.73 | K102: 1024.37 | L102: 975.1 | M102: 930.15 | N102: 923200 | O102: -0.52%
A103: 93 | B103: Automobile | C103: MOTHERSUMI | D103: 124.45 | E103: 124.55 | F103: 123.10 | G103: 121.75 | H103: 120.30 | I103: 125.90 | J103: 127.35 | K103: 128.70 | L103: 126 | M103: 123.2 | N103: 21265000 | O103: -1.69%
A104: 94 | B104: Automobile | C104: MRF | D104: 72036.10 | E104: 72073.72 | F104: 71338.18 | G104: 70640.27 | H104: 69904.73 | I104: 72771.63 | J104: 73507.17 | K104: 74205.08 | L104: 72809.25 | M104: 71375.8 | N104: 23170 | O104: 1.36%
A105: 95 | B105: Finance | C105: MUTHOOTFIN | D105: 746.70 | E105: 745.50 | F105: 741.40 | G105: 736.10 | H105: 732.00 | I105: 750.80 | J105: 754.90 | K105: 760.20 | L105: 749.6 | M105: 740.2 | N105: 5131500 | O105: -1.27%
A106: 96 | B106: Metals | C106: NATIONALUM | D106: 39.40 | E106: 39.58 | F106: 38.92 | G106: 38.43 | H106: 37.77 | I106: 40.07 | J106: 40.73 | K106: 41.22 | L106: 40.25 | M106: 39.1 | N106: 45021600 | O106: -2.11%
A107: 97 | B107: Infrastructure | C107: NCC | D107: 47.00 | E107: 47.33 | F107: 46.02 | G107: 45.03 | H107: 43.72 | I107: 48.32 | J107: 49.63 | K107: 50.62 | L107: 48.65 | M107: 46.35 | N107: 55728000 | O107: 0.62%
A108: 98 | B108: FMCG | C108: NESTLEIND | D108: 16420.15 | E108: 16491.73 | F108: 16228.37 | G108: 16036.58 | H108: 15773.22 | I108: 16683.52 | J108: 16946.88 | K108: 17138.67 | L108: 16755.1 | M108: 16299.95 | N108: 502650 | O108: -5.84%
A109: 99 | B109: Technology | C109: NIITTECH | D109: 1843.00 | E109: 1848.28 | F109: 1823.67 | G109: 1804.33 | H109: 1779.72 | I109: 1867.62 | J109: 1892.23 | K109: 1911.57 | L109: 1872.9 | M109: 1828.95 | N109: 820500 | O109: -2.10%
A110: 100 | B110: Metals | C110: NMDC | D110: 101.25 | E110: 102.58 | F110: 99.27 | G110: 97.28 | H110: 93.97 | I110: 104.57 | J110: 107.88 | K110: 109.87 | L110: 105.9 | M110: 100.6 | N110: 45060000 | O110: -0.94%
A111: 101 | B111: Power | C111: NTPC | D111: 112.95 | E111: 113.62 | F111: 111.53 | G111: 110.12 | H111: 108.03 | I111: 115.03 | J111: 117.12 | K111: 118.53 | L111: 115.7 | M111: 112.2 | N111: 133305600 | O111: -3.03%
A112: 102 | B112: Oil_Gas | C112: OIL | D112: 129.95 | E112: 131.32 | F112: 127.88 | G112: 125.82 | H112: 122.38 | I112: 133.38 | J112: 136.82 | K112: 138.88 | L112: 134.75 | M112: 129.25 | N112: 13898511 | O112: -3.47%
A113: 103 | B113: Oil_Gas | C113: ONGC | D113: 103.30 | E113: 104.10 | F113: 102.25 | G113: 101.20 | H113: 99.35 | I113: 105.15 | J113: 107.00 | K113: 108.05 | L113: 105.95 | M113: 103.05 | N113: 92979800 | O113: -3.63%
A114: 104 | B114: Textile | C114: PAGEIND | D114: 22371.70 | E114: 22242.03 | F114: 21729.67 | G114: 21087.63 | H114: 20575.27 | I114: 22884.07 | J114: 23396.43 | K114: 24038.47 | L114: 22754.4 | M114: 21600 | N114: 150850 | O114: -5.38%
A115: 105 | B115: Pharma | C115: PEL | D115: 1529.45 | E115: 1534.03 | F115: 1518.07 | G115: 1506.68 | H115: 1490.72 | I115: 1545.42 | J115: 1561.38 | K115: 1572.77 | L115: 1550 | M115: 1522.65 | N115: 4200237 | O115: -1.60%
A116: 106 | B116: Oil_Gas | C116: PETRONET | D116: 261.80 | E116: 263.17 | F116: 260.03 | G116: 258.27 | H116: 255.13 | I116: 264.93 | J116: 268.07 | K116: 269.83 | L116: 266.3 | M116: 261.4 | N116: 21435000 | O116: 0.95%
A117: 107 | B117: Finance | C117: PFC | D117: 126.70 | E117: 127.78 | F117: 124.92 | G117: 123.13 | H117: 120.27 | I117: 129.57 | J117: 132.43 | K117: 134.22 | L117: 130.65 | M117: 126 | N117: 37851000 | O117: -1.31%
A118: 108 | B118: FMCG | C118: PIDILITIND | D118: 1586.45 | E118: 1592.15 | F118: 1575.60 | G118: 1564.75 | H118: 1548.20 | I118: 1603.00 | J118: 1619.55 | K118: 1630.40 | L118: 1608.7 | M118: 1581.3 | N118: 2183000 | O118: -0.55%
A119: 109 | B119: Banking | C119: PNB | D119: 54.25 | E119: 54.82 | F119: 53.43 | G119: 52.62 | H119: 51.23 | I119: 55.63 | J119: 57.02 | K119: 57.83 | L119: 56.2 | M119: 54 | N119: 132310300 | O119: 1.57%
A120: 110 | B120: Power | C120: POWERGRID | D120: 183.80 | E120: 185.67 | F120: 180.78 | G120: 177.77 | H120: 172.88 | I120: 188.68 | J120: 193.57 | K120: 196.58 | L120: 190.55 | M120: 182.65 | N120: 64972000 | O120: -7.81%
A121: 111 | B121: Media | C121: PVR | D121: 2084.20 | E121: 2086.65 | F121: 2069.50 | G121: 2054.80 | H121: 2037.65 | I121: 2101.35 | J121: 2118.50 | K121: 2133.20 | L121: 2103.8 | M121: 2071.95 | N121: 1244000 | O121: -1.74%
A122: 112 | B122: Cement | C122: RAMCOCEM | D122: 791.10 | E122: 788.98 | F122: 783.22 | G122: 775.33 | H122: 769.57 | I122: 796.87 | J122: 802.63 | K122: 810.52 | L122: 794.75 | M122: 781.1 | N122: 1553600 | O122: -4.10%
A123: 113 | B123: Banking | C123: RBLBANK | D123: 317.05 | E123: 320.73 | F123: 312.12 | G123: 307.18 | H123: 298.57 | I123: 325.67 | J123: 334.28 | K123: 339.22 | L123: 329.35 | M123: 315.8 | N123: 14275500 | O123: 3.25%
A124: 114 | B124: Power | C124: RECLTD | D124: 140.15 | E124: 141.43 | F124: 138.37 | G124: 136.58 | H124: 133.52 | I124: 143.22 | J124: 146.28 | K124: 148.07 | L124: 144.5 | M124: 139.65 | N124: 23514000 | O124: -0.78%
A125: 115 | B125: Oil_Gas | C125: RELIANCE | D125: 1491.70 | E125: 1484.35 | F125: 1464.10 | G125: 1436.50 | H125: 1416.25 | I125: 1511.95 | J125: 1532.20 | K125: 1559.80 | L125: 1504.6 | M125: 1456.75 | N125: 43758000 | O125: 2.21%
A126: 116 | B126: Metals | C126: SAIL | D126: 44.05 | E126: 44.55 | F126: 43.25 | G126: 42.45 | H126: 41.15 | I126: 45.35 | J126: 46.65 | K126: 47.45 | L126: 45.85 | M126: 43.75 | N126: 93933100 | O126: -0.03%
A127: 117 | B127: Banking | C127: SBIN | D127: 320.40 | E127: 324.28 | F127: 315.67 | G127: 310.93 | H127: 302.32 | I127: 329.02 | J127: 337.63 | K127: 342.37 | L127: 332.9 | M127: 319.55 | N127: 130269000 | O127: 4.35%
A128: 118 | B128: Cement | C128: SHREECEM | D128: 24452.10 | E128: 24538.75 | F128: 24173.35 | G128: 23894.60 | H128: 23529.20 | I128: 24817.50 | J128: 25182.90 | K128: 25461.65 | L128: 24904.15 | M128: 24260 | N128: 164700 | O128: -1.96%
A129: 119 | B129: Capital_Goods | C129: SIEMENS | D129: 1402.85 | E129: 1413.23 | F129: 1388.12 | G129: 1373.38 | H129: 1348.27 | I129: 1427.97 | J129: 1453.08 | K129: 1467.82 | L129: 1438.35 | M129: 1398.5 | N129: 2411750 | O129: 0.62%
A130: 120 | B130: Textile | C130: SRF | D130: 4199.60 | E130: 4199.82 | F130: 4160.78 | G130: 4121.97 | H130: 4082.93 | I130: 4238.63 | J130: 4277.67 | K130: 4316.48 | L130: 4238.85 | M130: 4161 | N130: 881500 | O130: 2.03%
A131: 121 | B131: Finance | C131: SRTRANSFIN | D131: 1275.45 | E131: 1265.75 | F131: 1251.75 | G131: 1228.05 | H131: 1214.05 | I131: 1289.45 | J131: 1303.45 | K131: 1327.15 | L131: 1279.75 | M131: 1242.05 | N131: 5729400 | O131: 2.48%
A132: 122 | B132: Pharma | C132: SUNPHARMA | D132: 416.40 | E132: 418.13 | F132: 413.27 | G132: 410.13 | H132: 405.27 | I132: 421.27 | J132: 426.13 | K132: 429.27 | L132: 423 | M132: 415 | N132: 71143750 | O132: -0.55%
A133: 123 | B133: Media | C133: SUNTV | D133: 496.00 | E133: 493.60 | F133: 487.05 | G133: 478.10 | H133: 471.55 | I133: 502.55 | J133: 509.10 | K133: 518.05 | L133: 500.15 | M133: 484.65 | N133: 7404000 | O133: 0.73%
A134: 124 | B134: Fertilisers | C134: TATACHEM | D134: 767.10 | E134: 766.43 | F134: 761.17 | G134: 755.23 | H134: 749.97 | I134: 772.37 | J134: 777.63 | K134: 783.57 | L134: 771.7 | M134: 760.5 | N134: 3901500 | O134: 0.79%
A135: 125 | B135: FMCG | C135: TATAGLOBAL | D135: 397.50 | E135: 396.63 | F135: 391.87 | G135: 386.23 | H135: 381.47 | I135: 402.27 | J135: 407.03 | K135: 412.67 | L135: 401.4 | M135: 391 | N135: 15408900 | O135: -1.94%
A136: 126 | B136: Automobile | C136: TATAMOTORS | D136: 169.30 | E136: 171.40 | F136: 166.45 | G136: 163.60 | H136: 158.65 | I136: 174.25 | J136: 179.20 | K136: 182.05 | L136: 176.35 | M136: 168.55 | N136: 75254300 | O136: -2.00%
A137: 127 | B137: Power | C137: TATAPOWER | D137: 53.80 | E137: 54.37 | F137: 53.03 | G137: 52.27 | H137: 50.93 | I137: 55.13 | J137: 56.47 | K137: 57.23 | L137: 55.7 | M137: 53.6 | N137: 74322000 | O137: 1.96%
A138: 128 | B138: Metals | C138: TATASTEEL | D138: 435.25 | E138: 438.57 | F138: 430.83 | G138: 426.42 | H138: 418.68 | I138: 442.98 | J138: 450.72 | K138: 455.13 | L138: 446.3 | M138: 434.15 | N138: 26031000 | O138: 1.35%
A139: 129 | B139: Technology | C139: TCS | D139: 2187.75 | E139: 2193.03 | F139: 2170.72 | G139: 2153.68 | H139: 2131.37 | I139: 2210.07 | J139: 2232.38 | K139: 2249.42 | L139: 2215.35 | M139: 2176 | N139: 13843750 | O139: -0.87%
A140: 130 | B140: Technology | C140: TECHM | D140: 836.15 | E140: 833.78 | F140: 828.67 | G140: 821.18 | H140: 816.07 | I140: 841.27 | J140: 846.38 | K140: 853.87 | L140: 838.9 | M140: 826.3 | N140: 15160800 | O140: -0.50%
A141: 131 | B141: FMCG | C141: TITAN | D141: 1295.25 | E141: 1299.13 | F141: 1287.27 | G141: 1279.28 | H141: 1267.42 | I141: 1307.12 | J141: 1318.98 | K141: 1326.97 | L141: 1311 | M141: 1291.15 | N141: 8493000 | O141: -1.62%
A142: 132 | B142: Pharma | C142: TORNTPHARM | D142: 2110.05 | E142: 2098.13 | F142: 2080.37 | G142: 2050.68 | H142: 2032.92 | I142: 2127.82 | J142: 2145.58 | K142: 2175.27 | L142: 2115.9 | M142: 2068.45 | N142: 400500 | O142: -6.10%
A143: 133 | B143: Power | C143: TORNTPOWER | D143: 311.10 | E143: 312.68 | F143: 307.67 | G143: 304.23 | H143: 299.22 | I143: 316.12 | J143: 321.13 | K143: 324.57 | L143: 317.7 | M143: 309.25 | N143: 5595000 | O143: 5.79%
A144: 134 | B144: Automobile | C144: TVSMOTOR | D144: 438.05 | E144: 440.78 | F144: 434.32 | G144: 430.58 | H144: 424.12 | I144: 444.52 | J144: 450.98 | K144: 454.72 | L144: 447.25 | M144: 437.05 | N144: 4743900 | O144: 1.47%
A145: 135 | B145: FMCG | C145: UBL | D145: 1287.65 | E145: 1293.60 | F145: 1279.20 | G145: 1270.75 | H145: 1256.35 | I145: 1302.05 | J145: 1316.45 | K145: 1324.90 | L145: 1308 | M145: 1285.15 | N145: 2444400 | O145: -1.50%
A146: 136 | B146: Finance | C146: UJJIVAN | D146: 386.10 | E146: 387.93 | F146: 381.52 | G146: 376.93 | H146: 370.52 | I146: 392.52 | J146: 398.93 | K146: 403.52 | L146: 394.35 | M146: 383.35 | N146: 6550100 | O146: -1.03%
A147: 137 | B147: Cement | C147: ULTRACEMCO | D147: 4445.20 | E147: 4468.97 | F147: 4384.23 | G147: 4323.27 | H147: 4238.53 | I147: 4529.93 | J147: 4614.67 | K147: 4675.63 | L147: 4553.7 | M147: 4408 | N147: 2795400 | O147: -0.48%
A148: 138 | B148: Fertilisers | C148: UPL | D148: 591.65 | E148: 590.30 | F148: 579.60 | G148: 567.55 | H148: 556.85 | I148: 602.35 | J148: 613.05 | K148: 625.10 | L148: 601 | M148: 578.25 | N148: 14455800 | O148: -3.95%
A149: 139 | B149: Metals | C149: VEDL | D149: 141.60 | E149: 142.48 | F149: 140.47 | G149: 139.33 | H149: 137.32 | I149: 143.62 | J149: 145.63 | K149: 146.77 | L149: 144.5 | M149: 141.35 | N149: 89712000 | O149: -1.25%
A150: 140 | B150: Capital_Goods | C150: VOLTAS | D150: 688.40 | E150: 688.40 | F150: 684.10 | G150: 679.80 | H150: 675.50 | I150: 692.70 | J150: 697.00 | K150: 701.30 | L150: 692.7 | M150: 684.1 | N150: 3297000 | O150: -3.91%
A151: 141 | B151: Technology | C151: WIPRO | D151: 243.80 | E151: 244.25 | F151: 242.55 | G151: 241.30 | H151: 239.60 | I151: 245.50 | J151: 247.20 | K151: 248.45 | L151: 245.95 | M151: 243 | N151: 23321600 | O151: -1.66%
A152: 142 | B152: Banking | C152: YESBANK | D152: 37.70 | E152: 37.33 | F152: 36.12 | G152: 34.53 | H152: 33.32 | I152: 38.92 | J152: 40.13 | K152: 41.72 | L152: 38.55 | M152: 35.75 | N152: 275668800 | O152: -2.58%
A153: 143 | B153: Media | C153: ZEEL | D153: 238.90 | E153: 239.62 | F153: 236.43 | G153: 233.97 | H153: 230.78 | I153: 242.08 | J153: 245.27 | K153: 247.73 | L153: 242.8 | M153: 237.15 | N153: 29416800 | O153: -2.27%
A154: 144
A155: 145
A156: 146
A157: 147
A175: Pivot Point: This is trigger point for intra day buy/sell based on the price range of the previous day
A176: As per the tool,the trader should take BUY position just above Pivot and keep the stop loss of pivot point and the first target would be Resistance 1(R1)
A177: If R1 is crossed then R2 becomes the next target with stop loss of at R1
A178: Similarly if price goes below pivot point then the trader should sell and keep a stop loss of pivot point and the first target would be S1
A179: If S1 is crossed then S2 becomes the next target with stop loss of at S1
A181: Disclaimer:
A182: This document has been prepared by the Retail Research Desk of Asit C Mehta
A183: Investment Intermediates Ltd. and is meant for use of the recipient only
A184: and is not for circulation. This document is not to be reported or
A185: copied or made available to others. It should not be considered to be
A186: taken as an offer to sell or a solicitation to buy any security. The
A187: information contained herein is from sources believed reliable. We do
A188: not represent that it is accurate or complete and it should not be
A189: relied upon as such. We may from time to time have positions in and buy
A190: and sell securities referred to herein

Sheet Cash Intra
M5: Back to Main Page
A6: FOR INTRA DAY TRADING | K6: =Main!B10 -> 2020-02-17
A8: Sr.no | B8: Scrip | C8: CLOSE RATE | D8: Pivot Point | E8: Supports | H8: Resistances
C9: Point | E9: S1 | F9: S2 | G9: S3 | H9: R1 | I9: R2 | J9: R3 | K9: HIGH | L9: LOW | M9: Total Trade Quanity in Lakhs
A10: 1 | B10: Nifty 50 | C10: 12113.45 | D10: 12150.45 | E10: 12054.20 | F10: 11994.95 | G10: 11898.70 | H10: 12209.70 | I10: 12305.95 | J10: 12365.20 | K10: 12246.7 | L10: 12091.2
A11: 2 | B11: Nifty Bank | C11: 30834.8 | D11: 31015.85 | E11: 30595.05 | F11: 30355.30 | G11: 29934.50 | H11: 31255.60 | I11: 31676.40 | J11: 31916.15 | K11: 31436.65 | L11: 30776.1
A12: 3 | B12: Nifty CPSE | C12: 1649.05 | D12: 1663.05 | E12: 1631.35 | F12: 1613.65 | G12: 1581.95 | H12: 1680.75 | I12: 1712.45 | J12: 1730.15 | K12: 1694.75 | L12: 1645.35
A13: 4 | B13: Nifty Infra | C13: 3279.9 | D13: 3281.12 | E13: 3262.43 | F13: 3244.97 | G13: 3226.28 | H13: 3298.58 | I13: 3317.27 | J13: 3334.73 | K13: 3299.8 | L13: 3263.65
A14: 5 | B14: Nifty IT | C14: 16642.75 | D14: 16698.40 | E14: 16568.60 | F14: 16494.45 | G14: 16364.65 | H14: 16772.55 | I14: 16902.35 | J14: 16976.50 | K14: 16828.2 | L14: 16624.25
A15: 6 | B15: Nifty PSE | C15: 2977.85 | D15: 2999.00 | E15: 2951.15 | F15: 2924.45 | G15: 2876.60 | H15: 3025.70 | I15: 3073.55 | J15: 3100.25 | K15: 3046.85 | L15: 2972.3
A16: 7 | B16: Nifty Midcap 50 | C16: 4887.55 | D16: 4910.67 | E16: 4854.88 | F16: 4822.22 | G16: 4766.43 | H16: 4943.33 | I16: 4999.12 | J16: 5031.78 | K16: 4966.45 | L16: 4878
A17: 8 | B17: ACC | C17: 1440.4 | D17: 1442.65 | E17: 1427.30 | F17: 1414.20 | G17: 1398.85 | H17: 1455.75 | I17: 1471.10 | J17: 1484.20 | K17: 1458 | L17: 1429.55 | M17: 5.14199
A18: 9 | B18: AUBANK | C18: 1146.05 | D18: 1148.18 | E18: 1131.22 | F18: 1116.38 | G18: 1099.42 | H18: 1163.02 | I18: 1179.98 | J18: 1194.82 | K18: 1165.15 | L18: 1133.35 | M18: 4.21839
A19: 10 | B19: ADANIPORTS | C19: 366.85 | D19: 368.28 | E19: 364.57 | F19: 362.28 | G19: 358.57 | H19: 370.57 | I19: 374.28 | J19: 376.57 | K19: 372 | L19: 366 | M19: 29.12256
A20: 11 | B20: ADANIPOWER | C20: 59.6 | D20: 59.67 | E20: 58.83 | F20: 58.07 | G20: 57.23 | H20: 60.43 | I20: 61.27 | J20: 62.03 | K20: 60.5 | L20: 58.9 | M20: 57.54033
A21: 12 | B21: ABCAPITAL | C21: 89.85 | D21: 91.05 | E21: 88.30 | F21: 86.75 | G21: 84.00 | H21: 92.60 | I21: 95.35 | J21: 96.90 | K21: 93.8 | L21: 89.5 | M21: 21.59998
A22: 13 | B22: ABFRL | C22: 265.5 | D22: 268.88 | E22: 260.07 | F22: 254.63 | G22: 245.82 | H22: 274.32 | I22: 283.13 | J22: 288.57 | K22: 277.7 | L22: 263.45 | M22: 2.71489
A23: 14 | B23: AJANTPHARM | C23: 1414.4 | D23: 1422.15 | E23: 1387.25 | F23: 1360.10 | G23: 1325.20 | H23: 1449.30 | I23: 1484.20 | J23: 1511.35 | K23: 1457.05 | L23: 1395 | M23: 0.73403
A24: 15 | B24: ALKEM | C24: 2649.3 | D24: 2635.12 | E24: 2620.18 | F24: 2591.07 | G24: 2576.13 | H24: 2664.23 | I24: 2679.17 | J24: 2708.28 | K24: 2650.05 | L24: 2606 | M24: 1.31984
A25: 16 | B25: AMARAJABAT | C25: 755.8 | D25: 760.45 | E25: 746.40 | F25: 737.00 | G25: 722.95 | H25: 769.85 | I25: 783.90 | J25: 793.30 | K25: 774.5 | L25: 751.05 | M25: 5.92956
A26: 17 | B26: AMBUJACEM | C26: 205.65 | D26: 207.63 | E26: 203.02 | F26: 200.38 | G26: 195.77 | H26: 210.27 | I26: 214.88 | J26: 217.52 | K26: 212.25 | L26: 205 | M26: 29.06515
A27: 18 | B27: APOLLOHOSP | C27: 1704.4 | D27: 1708.85 | E27: 1670.00 | F27: 1635.60 | G27: 1596.75 | H27: 1743.25 | I27: 1782.10 | J27: 1816.50 | K27: 1747.7 | L27: 1674.45 | M27: 3.77299
A28: 19 | B28: APOLLOTYRE | C28: 159.05 | D28: 160.20 | E28: 157.15 | F28: 155.25 | G28: 152.20 | H28: 162.10 | I28: 165.15 | J28: 167.05 | K28: 163.25 | L28: 158.3 | M28: 20.59074
A29: 20 | B29: ASHOKLEY | C29: 80.25 | D29: 80.50 | E29: 79.45 | F29: 78.65 | G29: 77.60 | H29: 81.30 | I29: 82.35 | J29: 83.15 | K29: 81.55 | L29: 79.7 | M29: 119.77376
A30: 21 | B30: ASIANPAINT | C30: 1877.05 | D30: 1882.23 | E30: 1864.82 | F30: 1852.58 | G30: 1835.17 | H30: 1894.47 | I30: 1911.88 | J30: 1924.12 | K30: 1899.65 | L30: 1870 | M30: 11.69614
A31: 22 | B31: AUROPHARMA | C31: 514.35 | D31: 519.90 | E31: 506.85 | F31: 499.35 | G31: 486.30 | H31: 527.40 | I31: 540.45 | J31: 547.95 | K31: 532.95 | L31: 512.4 | M31: 31.79653
A32: 23 | B32: DMART | C32: 2408.35 | D32: 2426.78 | E32: 2354.57 | F32: 2300.78 | G32: 2228.57 | H32: 2480.57 | I32: 2552.78 | J32: 2606.57 | K32: 2499 | L32: 2373 | M32: 15.72997
A33: 24 | B33: AXISBANK | C33: 736.5 | D33: 740.38 | E33: 728.22 | F33: 719.93 | G33: 707.77 | H33: 748.67 | I33: 760.83 | J33: 769.12 | K33: 752.55 | L33: 732.1 | M33: 83.45819
A34: 25 | B34: BAJAJ-AUTO | C34: 3146.4 | D34: 3162.73 | E34: 3120.47 | F34: 3094.53 | G34: 3052.27 | H34: 3188.67 | I34: 3230.93 | J34: 3256.87 | K34: 3205 | L34: 3136.8 | M34: 11.41144
A35: 26 | B35: BAJFINANCE | C35: 4781.75 | D35: 4788.25 | E35: 4761.50 | F35: 4741.25 | G35: 4714.50 | H35: 4808.50 | I35: 4835.25 | J35: 4855.50 | K35: 4815 | L35: 4768 | M35: 17.36927
A36: 27 | B36: BAJAJFINSV | C36: 9690.5 | D36: 9712.85 | E36: 9630.70 | F36: 9570.90 | G36: 9488.75 | H36: 9772.65 | I36: 9854.80 | J36: 9914.60 | K36: 9795 | L36: 9653.05 | M36: 3.29541
A37: 28 | B37: BAJAJHLDNG | C37: 3756.55 | D37: 3807.43 | E37: 3675.12 | F37: 3593.68 | G37: 3461.37 | H37: 3888.87 | I37: 4021.18 | J37: 4102.62 | K37: 3939.75 | L37: 3726 | M37: 0.80743
A38: 29 | B38: BALKRISIND | C38: 1157.05 | D38: 1151.48 | E38: 1141.07 | F38: 1125.08 | G38: 1114.67 | H38: 1167.47 | I38: 1177.88 | J38: 1193.87 | K38: 1161.9 | L38: 1135.5 | M38: 2.71802
A39: 30 | B39: BANDHANBNK | C39: 452.55 | D39: 454.88 | E39: 446.27 | F39: 439.98 | G39: 431.37 | H39: 461.17 | I39: 469.78 | J39: 476.07 | K39: 463.5 | L39: 448.6 | M39: 27.62309
A40: 31 | B40: BANKBARODA | C40: 86.45 | D40: 87.17 | E40: 85.38 | F40: 84.32 | G40: 82.53 | H40: 88.23 | I40: 90.02 | J40: 91.08 | K40: 88.95 | L40: 86.1 | M40: 224.98038
A41: 32 | B41: BANKINDIA | C41: 63.05 | D41: 63.08 | E41: 62.62 | F41: 62.18 | G41: 61.72 | H41: 63.52 | I41: 63.98 | J41: 64.42 | K41: 63.55 | L41: 62.65 | M41: 67.267
A42: 33 | B42: BATAINDIA | C42: 1783.25 | D42: 1794.00 | E42: 1761.80 | F42: 1740.35 | G42: 1708.15 | H42: 1815.45 | I42: 1847.65 | J42: 1869.10 | K42: 1826.2 | L42: 1772.55 | M42: 2.78726
A43: 34 | B43: BERGEPAINT | C43: 579.6 | D43: 581.33 | E43: 574.92 | F43: 570.23 | G43: 563.82 | H43: 586.02 | I43: 592.43 | J43: 597.12 | K43: 587.75 | L43: 576.65 | M43: 12.10461
A44: 35 | B44: BEL | C44: 83.05 | D44: 83.82 | E44: 81.88 | F44: 80.72 | G44: 78.78 | H44: 84.98 | I44: 86.92 | J44: 88.08 | K44: 85.75 | L44: 82.65 | M44: 565.82665
A45: 36 | B45: BHARATFORG | C45: 485.45 | D45: 488.62 | E45: 480.83 | F45: 476.22 | G45: 468.43 | H45: 493.23 | I45: 501.02 | J45: 505.63 | K45: 496.4 | L45: 484 | M45: 7.00915
A46: 37 | B46: BHEL | C46: 36.2 | D46: 36.53 | E46: 35.67 | F46: 35.13 | G46: 34.27 | H46: 37.07 | I46: 37.93 | J46: 38.47 | K46: 37.4 | L46: 36 | M46: 140.87306
A47: 38 | B47: BPCL | C47: 476.45 | D47: 476.95 | E47: 469.40 | F47: 462.35 | G47: 454.80 | H47: 484.00 | I47: 491.55 | J47: 498.60 | K47: 484.5 | L47: 469.9 | M47: 69.46475
A48: 39 | B48: BHARTIARTL | C48: 565 | D48: 555.60 | E48: 543.65 | F48: 522.30 | G48: 510.35 | H48: 576.95 | I48: 588.90 | J48: 610.25 | K48: 567.55 | L48: 534.25 | M48: 180.17965
A49: 40 | B49: INFRATEL | C49: 235.45 | D49: 238.05 | E49: 225.10 | F49: 214.75 | G49: 201.80 | H49: 248.40 | I49: 261.35 | J49: 271.70 | K49: 251 | L49: 227.7 | M49: 58.11965
A50: 41 | B50: BIOCON | C50: 307.8 | D50: 306.20 | E50: 303.15 | F50: 298.50 | G50: 295.45 | H50: 310.85 | I50: 313.90 | J50: 318.55 | K50: 309.25 | L50: 301.55 | M50: 19.49668
A51: 42 | B51: BBTC | C51: 1155.6 | D51: 1173.35 | E51: 1127.80 | F51: 1100.00 | G51: 1054.45 | H51: 1201.15 | I51: 1246.70 | J51: 1274.50 | K51: 1218.9 | L51: 1145.55 | M51: 0.58867
A52: 43 | B52: BOSCHLTD | C52: 14615.1 | D52: 14638.37 | E52: 14506.73 | F52: 14398.37 | G52: 14266.73 | H52: 14746.73 | I52: 14878.37 | J52: 14986.73 | K52: 14770 | L52: 14530 | M52: 0.24677
A53: 44 | B53: BRITANNIA | C53: 3096.65 | D53: 3115.32 | E53: 3071.63 | F53: 3046.62 | G53: 3002.93 | H53: 3140.33 | I53: 3184.02 | J53: 3209.03 | K53: 3159 | L53: 3090.3 | M53: 4.6885
A54: 45 | B54: CESC | C54: 713.35 | D54: 718.70 | E54: 704.70 | F54: 696.05 | G54: 682.05 | H54: 727.35 | I54: 741.35 | J54: 750.00 | K54: 732.7 | L54: 710.05 | M54: 3.39974
A55: 46 | B55: CADILAHC | C55: 270 | D55: 269.12 | E55: 266.73 | F55: 263.47 | G55: 261.08 | H55: 272.38 | I55: 274.77 | J55: 278.03 | K55: 271.5 | L55: 265.85 | M55: 11.03855
A56: 47 | B56: CANBK | C56: 180.3 | D56: 181.78 | E56: 178.07 | F56: 175.83 | G56: 172.12 | H56: 184.02 | I56: 187.73 | J56: 189.97 | K56: 185.5 | L56: 179.55 | M56: 70.14346
A57: 48 | B57: CASTROLIND | C57: 158.25 | D57: 159.07 | E57: 155.93 | F57: 153.62 | G57: 150.48 | H57: 161.38 | I57: 164.52 | J57: 166.83 | K57: 162.2 | L57: 156.75 | M57: 34.61075
A58: 49 | B58: CHOLAFIN | C58: 332.75 | D58: 334.10 | E58: 329.25 | F58: 325.75 | G58: 320.90 | H58: 337.60 | I58: 342.45 | J58: 345.95 | K58: 338.95 | L58: 330.6 | M58: 16.87153
A59: 50 | B59: CIPLA | C59: 447.1 | D59: 445.83 | E59: 442.77 | F59: 438.43 | G59: 435.37 | H59: 450.17 | I59: 453.23 | J59: 457.57 | K59: 448.9 | L59: 441.5 | M59: 21.84609
A60: 51 | B60: CUB | C60: 220.35 | D60: 220.65 | E60: 217.45 | F60: 214.55 | G60: 211.35 | H60: 223.55 | I60: 226.75 | J60: 229.65 | K60: 223.85 | L60: 217.75 | M60: 10.62871
A61: 52 | B61: COALINDIA | C61: 174.75 | D61: 175.95 | E61: 173.00 | F61: 171.25 | G61: 168.30 | H61: 177.70 | I61: 180.65 | J61: 182.40 | K61: 178.9 | L61: 174.2 | M61: 352.81395
A62: 53 | B62: COLPAL | C62: 1340.3 | D62: 1343.95 | E62: 1329.15 | F62: 1318.00 | G62: 1303.20 | H62: 1355.10 | I62: 1369.90 | J62: 1381.05 | K62: 1358.75 | L62: 1332.8 | M62: 24.53672
A63: 54 | B63: CONCOR | C63: 560.2 | D63: 561.73 | E63: 556.52 | F63: 552.83 | G63: 547.62 | H63: 565.42 | I63: 570.63 | J63: 574.32 | K63: 566.95 | L63: 558.05 | M63: 6.92547
A64: 55 | B64: COROMANDEL | C64: 633.2 | D64: 631.73 | E64: 626.52 | F64: 619.83 | G64: 614.62 | H64: 638.42 | I64: 643.63 | J64: 650.32 | K64: 636.95 | L64: 625.05 | M64: 7.17405
A65: 56 | B65: CROMPTON | C65: 281.9 | D65: 280.08 | E65: 275.37 | F65: 268.83 | G65: 264.12 | H65: 286.62 | I65: 291.33 | J65: 297.87 | K65: 284.8 | L65: 273.55 | M65: 30.8845
A66: 57 | B66: CUMMINSIND | C66: 536.95 | D66: 541.53 | E66: 530.87 | F66: 524.78 | G66: 514.12 | H66: 547.62 | I66: 558.28 | J66: 564.37 | K66: 552.2 | L66: 535.45 | M66: 9.9194
A67: 58 | B67: DLF | C67: 226.2 | D67: 228.37 | E67: 222.28 | F67: 218.37 | G67: 212.28 | H67: 232.28 | I67: 238.37 | J67: 242.28 | K67: 234.45 | L67: 224.45 | M67: 108.10838
A68: 59 | B68: DABUR | C68: 506.1 | D68: 508.83 | E68: 500.72 | F68: 495.33 | G68: 487.22 | H68: 514.22 | I68: 522.33 | J68: 527.72 | K68: 516.95 | L68: 503.45 | M68: 74.62427
A69: 60 | B69: DALBHARAT | C69: 852.8 | D69: 860.32 | E69: 842.53 | F69: 832.27 | G69: 814.48 | H69: 870.58 | I69: 888.37 | J69: 898.63 | K69: 878.1 | L69: 850.05 | M69: 1.62129
A70: 61 | B70: DIVISLAB | C70: 2146.45 | D70: 2157.38 | E70: 2124.77 | F70: 2103.08 | G70: 2070.47 | H70: 2179.07 | I70: 2211.68 | J70: 2233.37 | K70: 2190 | L70: 2135.7 | M70: 3.22232
A71: 62 | B71: DRREDDY | C71: 3304.3 | D71: 3304.77 | E71: 3276.53 | F71: 3248.77 | G71: 3220.53 | H71: 3332.53 | I71: 3360.77 | J71: 3388.53 | K71: 3333 | L71: 3277 | M71: 6.68235
A72: 63 | B72: EDELWEISS | C72: 88.55 | D72: 89.42 | E72: 87.23 | F72: 85.92 | G72: 83.73 | H72: 90.73 | I72: 92.92 | J72: 94.23 | K72: 91.6 | L72: 88.1 | M72: 7.90032
A73: 64 | B73: EICHERMOT | C73: 18703.55 | D73: 18852.85 | E73: 18355.70 | F73: 18007.85 | G73: 17510.70 | H73: 19200.70 | I73: 19697.85 | J73: 20045.70 | K73: 19350 | L73: 18505 | M73: 1.02123
A74: 65 | B74: EMAMILTD | C74: 275.8 | D74: 278.88 | E74: 269.17 | F74: 262.53 | G74: 252.82 | H74: 285.52 | I74: 295.23 | J74: 301.87 | K74: 288.6 | L74: 272.25 | M74: 25.57313
A75: 66 | B75: ENDURANCE | C75: 1063.95 | D75: 1073.32 | E75: 1046.63 | F75: 1029.32 | G75: 1002.63 | H75: 1090.63 | I75: 1117.32 | J75: 1134.63 | K75: 1100 | L75: 1056 | M75: 0.47896
A76: 67 | B76: ENGINERSIN | C76: 84.65 | D76: 85.08 | E76: 83.67 | F76: 82.68 | G76: 81.27 | H76: 86.07 | I76: 87.48 | J76: 88.47 | K76: 86.5 | L76: 84.1 | M76: 17.04006
A77: 68 | B77: ESCORTS | C77: 883.05 | D77: 884.88 | E77: 877.77 | F77: 872.48 | G77: 865.37 | H77: 890.17 | I77: 897.28 | J77: 902.57 | K77: 892 | L77: 879.6 | M77: 70.11082
A78: 69 | B78: EXIDEIND | C78: 179.05 | D78: 179.78 | E78: 176.92 | F78: 174.78 | G78: 171.92 | H78: 181.92 | I78: 184.78 | J78: 186.92 | K78: 182.65 | L78: 177.65 | M78: 14.66191
A79: 70 | B79: FEDERALBNK | C79: 87.15 | D79: 87.95 | E79: 85.95 | F79: 84.75 | G79: 82.75 | H79: 89.15 | I79: 91.15 | J79: 92.35 | K79: 89.95 | L79: 86.75 | M79: 102.70614
A80: 71 | B80: FORTIS | C80: 156.1 | D80: 156.83 | E80: 154.37 | F80: 152.63 | G80: 150.17 | H80: 158.57 | I80: 161.03 | J80: 162.77 | K80: 159.3 | L80: 155.1 | M80: 19.33119
A81: 72 | B81: FCONSUMER | C81: 21.6 | D81: 21.80 | E81: 21.10 | F81: 20.60 | G81: 19.90 | H81: 22.30 | I81: 23.00 | J81: 23.50 | K81: 22.5 | L81: 21.3 | M81: 15.70645
A82: 73 | B82: FRETAIL | C82: 375.2 | D82: 375.27 | E82: 368.53 | F82: 361.87 | G82: 355.13 | H82: 381.93 | I82: 388.67 | J82: 395.33 | K82: 382 | L82: 368.6 | M82: 10.27307
A83: 74 | B83: GAIL | C83: 122.55 | D83: 125.33 | E83: 119.17 | F83: 115.78 | G83: 109.62 | H83: 128.72 | I83: 134.88 | J83: 138.27 | K83: 131.5 | L83: 121.95 | M83: 153.91445
A84: 75 | B84: GMRINFRA | C84: 23.1 | D84: 23.30 | E84: 22.60 | F84: 22.10 | G84: 21.40 | H84: 23.80 | I84: 24.50 | J84: 25.00 | K84: 24 | L84: 22.8 | M84: 105.71558
A85: 76 | B85: GICRE | C85: 218 | D85: 221.67 | E85: 212.63 | F85: 207.27 | G85: 198.23 | H85: 227.03 | I85: 236.07 | J85: 241.43 | K85: 230.7 | L85: 216.3 | M85: 2.09376
A86: 77 | B86: GLENMARK | C86: 333.8 | D86: 333.03 | E86: 328.77 | F86: 323.73 | G86: 319.47 | H86: 338.07 | I86: 342.33 | J86: 347.37 | K86: 337.3 | L86: 328 | M86: 26.37001
A87: 78 | B87: GODREJAGRO | C87: 520.75 | D87: 531.82 | E87: 504.83 | F87: 488.92 | G87: 461.93 | H87: 547.73 | I87: 574.72 | J87: 590.63 | K87: 558.8 | L87: 515.9 | M87: 0.4871
A88: 79 | B88: GODREJCP | C88: 626.1 | D88: 629.32 | E88: 619.18 | F88: 612.27 | G88: 602.13 | H88: 636.23 | I88: 646.37 | J88: 653.28 | K88: 639.45 | L88: 622.4 | M88: 18.59249
A89: 80 | B89: GODREJIND | C89: 410.25 | D89: 413.98 | E89: 401.97 | F89: 393.68 | G89: 381.67 | H89: 422.27 | I89: 434.28 | J89: 442.57 | K89: 426 | L89: 405.7 | M89: 0.88259
A90: 81 | B90: GODREJPROP | C90: 1139.75 | D90: 1140.25 | E90: 1120.50 | F90: 1101.25 | G90: 1081.50 | H90: 1159.50 | I90: 1179.25 | J90: 1198.50 | K90: 1160 | L90: 1121 | M90: 1.78002
A91: 82 | B91: GRAPHITE | C91: 283.1 | D91: 284.40 | E91: 274.40 | F91: 265.70 | G91: 255.70 | H91: 293.10 | I91: 303.10 | J91: 311.80 | K91: 294.4 | L91: 275.7 | M91: 8.51755
A92: 83 | B92: GRASIM | C92: 743.05 | D92: 750.33 | E92: 729.82 | F92: 716.58 | G92: 696.07 | H92: 763.57 | I92: 784.08 | J92: 797.32 | K92: 770.85 | L92: 737.1 | M92: 12.99292
A93: 84 | B93: GSPL | C93: 241.3 | D93: 240.57 | E93: 236.33 | F93: 231.37 | G93: 227.13 | H93: 245.53 | I93: 249.77 | J93: 254.73 | K93: 244.8 | L93: 235.6 | M93: 4.26398
A94: 85 | B94: HEG | C94: 1025.95 | D94: 1032.87 | E94: 1011.08 | F94: 996.22 | G94: 974.43 | H94: 1047.73 | I94: 1069.52 | J94: 1084.38 | K94: 1054.65 | L94: 1018 | M94: 1.68582
A95: 86 | B95: HCLTECH | C95: 621.65 | D95: 619.05 | E95: 614.85 | F95: 608.05 | G95: 603.85 | H95: 625.85 | I95: 630.05 | J95: 636.85 | K95: 623.25 | L95: 612.25 | M95: 35.90768
A96: 87 | B96: HDFCAMC | C96: 3327 | D96: 3341.00 | E96: 3304.00 | F96: 3281.00 | G96: 3244.00 | H96: 3364.00 | I96: 3401.00 | J96: 3424.00 | K96: 3378 | L96: 3318 | M96: 1.96125
A97: 88 | B97: HDFCBANK | C97: 1219.35 | D97: 1227.58 | E97: 1206.77 | F97: 1194.18 | G97: 1173.37 | H97: 1240.17 | I97: 1260.98 | J97: 1273.57 | K97: 1248.4 | L97: 1215 | M97: 55.89134
A98: 89 | B98: HDFCLIFE | C98: 573.95 | D98: 575.82 | E98: 570.13 | F98: 566.32 | G98: 560.63 | H98: 579.63 | I98: 585.32 | J98: 589.13 | K98: 581.5 | L98: 572 | M98: 12.60667
A99: 90 | B99: HAVELLS | C99: 611.65 | D99: 614.67 | E99: 605.83 | F99: 600.02 | G99: 591.18 | H99: 620.48 | I99: 629.32 | J99: 635.13 | K99: 623.5 | L99: 608.85 | M99: 11.71667
A100: 91 | B100: HEROMOTOCO | C100: 2356.5 | D100: 2381.80 | E100: 2325.80 | F100: 2295.10 | G100: 2239.10 | H100: 2412.50 | I100: 2468.50 | J100: 2499.20 | K100: 2437.8 | L100: 2351.1 | M100: 5.74957
A101: 92 | B101: HEXAWARE | C101: 371.1 | D101: 371.53 | E101: 361.57 | F101: 352.03 | G101: 342.07 | H101: 381.07 | I101: 391.03 | J101: 400.57 | K101: 381.5 | L101: 362 | M101: 3.23817
A102: 93 | B102: HINDALCO | C102: 194 | D102: 194.82 | E102: 192.63 | F102: 191.27 | G102: 189.08 | H102: 196.18 | I102: 198.37 | J102: 199.73 | K102: 197 | L102: 193.45 | M102: 60.08376
A103: 94 | B103: HINDPETRO | C103: 233.85 | D103: 235.12 | E103: 231.88 | F103: 229.92 | G103: 226.68 | H103: 237.08 | I103: 240.32 | J103: 242.28 | K103: 238.35 | L103: 233.15 | M103: 45.95587
A104: 95 | B104: HINDUNILVR | C104: 2255.05 | D104: 2266.30 | E104: 2235.00 | F104: 2214.95 | G104: 2183.65 | H104: 2286.35 | I104: 2317.65 | J104: 2337.70 | K104: 2297.6 | L104: 2246.25 | M104: 19.30834
A105: 96 | B105: HINDZINC | C105: 190.65 | D105: 190.95 | E105: 189.90 | F105: 189.15 | G105: 188.10 | H105: 191.70 | I105: 192.75 | J105: 193.50 | K105: 192 | L105: 190.2 | M105: 7.24986
A106: 97 | B106: HUDCO | C106: 34.25 | D106: 34.48 | E106: 33.92 | F106: 33.58 | G106: 33.02 | H106: 34.82 | I106: 35.38 | J106: 35.72 | K106: 35.05 | L106: 34.15 | M106: 10.06963
A107: 98 | B107: HDFC | C107: 2401.75 | D107: 2405.67 | E107: 2385.48 | F107: 2369.22 | G107: 2349.03 | H107: 2421.93 | I107: 2442.12 | J107: 2458.38 | K107: 2425.85 | L107: 2389.4 | M107: 28.28509
A108: 99 | B108: ICICIBANK | C108: 545.8 | D108: 543.67 | E108: 538.68 | F108: 531.57 | G108: 526.58 | H108: 550.78 | I108: 555.77 | J108: 562.88 | K108: 548.65 | L108: 536.55 | M108: 162.92578
A109: 100 | B109: ICICIGI | C109: 1353.6 | D109: 1349.87 | E109: 1343.73 | F109: 1333.87 | G109: 1327.73 | H109: 1359.73 | I109: 1365.87 | J109: 1375.73 | K109: 1356 | L109: 1340 | M109: 2.01621
A110: 101 | B110: ICICIPRULI | C110: 481.3 | D110: 480.85 | E110: 477.55 | F110: 473.80 | G110: 470.50 | H110: 484.60 | I110: 487.90 | J110: 491.65 | K110: 484.15 | L110: 477.1 | M110: 10.53162
A111: 102 | B111: IDBI | C111: 35.45 | D111: 35.53 | E111: 35.02 | F111: 34.58 | G111: 34.07 | H111: 35.97 | I111: 36.48 | J111: 36.92 | K111: 36.05 | L111: 35.1 | M111: 6.52812
A112: 103 | B112: IDFCFIRSTB | C112: 39.6 | D112: 40.22 | E112: 38.83 | F112: 38.07 | G112: 36.68 | H112: 40.98 | I112: 42.37 | J112: 43.13 | K112: 41.6 | L112: 39.45 | M112: 209.67183
A113: 104 | B113: ITC | C113: 207.7 | D113: 209.13 | E113: 205.37 | F113: 203.03 | G113: 199.27 | H113: 211.47 | I113: 215.23 | J113: 217.57 | K113: 212.9 | L113: 206.8 | M113: 184.5588
A114: 105 | B114: IBULHSGFIN | C114: 320.8 | D114: 324.65 | E114: 314.85 | F114: 308.90 | G114: 299.10 | H114: 330.60 | I114: 340.40 | J114: 346.35 | K114: 334.45 | L114: 318.7 | M114: 169.75776
A115: 106 | B115: IBVENTURES | C115: 187.05 | D115: 185.60 | E115: 180.45 | F115: 173.85 | G115: 168.70 | H115: 192.20 | I115: 197.35 | J115: 203.95 | K115: 190.75 | L115: 179 | M115: 38.76523
A116: 107 | B116: INDIANB | C116: 84.95 | D116: 86.23 | E116: 83.42 | F116: 81.88 | G116: 79.07 | H116: 87.77 | I116: 90.58 | J116: 92.12 | K116: 89.05 | L116: 84.7 | M116: 14.06266
A117: 108 | B117: INDHOTEL | C117: 134.05 | D117: 133.98 | E117: 132.97 | F117: 131.88 | G117: 130.87 | H117: 135.07 | I117: 136.08 | J117: 137.17 | K117: 135 | L117: 132.9 | M117: 7.1894
A118: 109 | B118: IOC | C118: 115.1 | D118: 114.83 | E118: 113.97 | F118: 112.83 | G118: 111.97 | H118: 115.97 | I118: 116.83 | J118: 117.97 | K118: 115.7 | L118: 113.7 | M118: 367.42641
A119: 110 | B119: IGL | C119: 487.5 | D119: 490.73 | E119: 482.87 | F119: 478.23 | G119: 470.37 | H119: 495.37 | I119: 503.23 | J119: 507.87 | K119: 498.6 | L119: 486.1 | M119: 21.83118
A120: 111 | B120: INDUSINDBK | C120: 1176 | D120: 1196.10 | E120: 1151.10 | F120: 1126.20 | G120: 1081.20 | H120: 1221.00 | I120: 1266.00 | J120: 1290.90 | K120: 1241.1 | L120: 1171.2 | M120: 83.91172
A121: 112 | B121: NAUKRI | C121: 2850.15 | D121: 2879.05 | E121: 2791.10 | F121: 2732.05 | G121: 2644.10 | H121: 2938.10 | I121: 3026.05 | J121: 3085.10 | K121: 2967 | L121: 2820 | M121: 2.45742
A122: 113 | B122: INFY | C122: 786.45 | D122: 790.08 | E122: 780.97 | F122: 775.48 | G122: 766.37 | H122: 795.57 | I122: 804.68 | J122: 810.17 | K122: 799.2 | L122: 784.6 | M122: 60.92028
A123: 114 | B123: INDIGO | C123: 1439.1 | D123: 1444.53 | E123: 1424.27 | F123: 1409.43 | G123: 1389.17 | H123: 1459.37 | I123: 1479.63 | J123: 1494.47 | K123: 1464.8 | L123: 1429.7 | M123: 18.09304
A124: 115 | B124: IPCALAB | C124: 1436.9 | D124: 1450.07 | E124: 1391.83 | F124: 1346.77 | G124: 1288.53 | H124: 1495.13 | I124: 1553.37 | J124: 1598.43 | K124: 1508.3 | L124: 1405 | M124: 0.82039
A125: 116 | B125: JSWENERGY | C125: 62.85 | D125: 63.30 | E125: 62.10 | F125: 61.35 | G125: 60.15 | H125: 64.05 | I125: 65.25 | J125: 66.00 | K125: 64.5 | L125: 62.55 | M125: 3.42262
A126: 117 | B126: JSWSTEEL | C126: 289.15 | D126: 291.40 | E126: 286.05 | F126: 282.95 | G126: 277.60 | H126: 294.50 | I126: 299.85 | J126: 302.95 | K126: 296.75 | L126: 288.3 | M126: 63.29214
A127: 118 | B127: JINDALSTEL | C127: 190.5 | D127: 192.52 | E127: 187.38 | F127: 184.27 | G127: 179.13 | H127: 195.63 | I127: 200.77 | J127: 203.88 | K127: 197.65 | L127: 189.4 | M127: 152.07085
A128: 119 | B128: JUBLFOOD | C128: 1812.6 | D128: 1824.87 | E128: 1789.73 | F128: 1766.87 | G128: 1731.73 | H128: 1847.73 | I128: 1882.87 | J128: 1905.73 | K128: 1860 | L128: 1802 | M128: 22.23606
A129: 120 | B129: JUBILANT | C129: 525.6 | D129: 527.27 | E129: 520.33 | F129: 515.07 | G129: 508.13 | H129: 532.53 | I129: 539.47 | J129: 544.73 | K129: 534.2 | L129: 522 | M129: 4.33124
A130: 121 | B130: KOTAKBANK | C130: 1680.95 | D130: 1682.52 | E130: 1662.03 | F130: 1643.12 | G130: 1622.63 | H130: 1701.43 | I130: 1721.92 | J130: 1740.83 | K130: 1703 | L130: 1663.6 | M130: 94.95046
A131: 122 | B131: L&TFH | C131: 126.3 | D131: 126.77 | E131: 124.98 | F131: 123.67 | G131: 121.88 | H131: 128.08 | I131: 129.87 | J131: 131.18 | K131: 128.55 | L131: 125.45 | M131: 77.86477
A132: 123 | B132: LTTS | C132: 1673.85 | D132: 1680.28 | E132: 1663.57 | F132: 1653.28 | G132: 1636.57 | H132: 1690.57 | I132: 1707.28 | J132: 1717.57 | K132: 1697 | L132: 1670 | M132: 0.39962
A133: 124 | B133: LICHSGFIN | C133: 412.3 | D133: 417.25 | E133: 403.50 | F133: 394.70 | G133: 380.95 | H133: 426.05 | I133: 439.80 | J133: 448.60 | K133: 431 | L133: 408.45 | M133: 75.80796
A134: 125 | B134: LTI | C134: 2032.5 | D134: 2033.53 | E134: 2019.07 | F134: 2005.63 | G134: 1991.17 | H134: 2046.97 | I134: 2061.43 | J134: 2074.87 | K134: 2048 | L134: 2020.1 | M134: 0.36496
A135: 126 | B135: LT | C135: 1295.15 | D135: 1296.90 | E135: 1288.85 | F135: 1282.55 | G135: 1274.50 | H135: 1303.20 | I135: 1311.25 | J135: 1317.55 | K135: 1304.95 | L135: 1290.6 | M135: 39.39306
A136: 127 | B136: LUPIN | C136: 717.65 | D136: 714.53 | E136: 707.62 | F136: 697.58 | G136: 690.67 | H136: 724.57 | I136: 731.48 | J136: 741.52 | K136: 721.45 | L136: 704.5 | M136: 11.17946
A137: 128 | B137: MRF | C137: 71799.2 | D137: 71806.13 | E137: 71093.07 | F137: 70386.93 | G137: 69673.87 | H137: 72512.27 | I137: 73225.33 | J137: 73931.47 | K137: 72519.2 | L137: 71100 | M137: 0.04805
A138: 129 | B138: MGL | C138: 1160.95 | D138: 1170.80 | E138: 1147.15 | F138: 1133.35 | G138: 1109.70 | H138: 1184.60 | I138: 1208.25 | J138: 1222.05 | K138: 1194.45 | L138: 1157 | M138: 13.51299
A139: 130 | B139: M&MFIN | C139: 385.15 | D139: 386.10 | E139: 380.40 | F139: 375.65 | G139: 369.95 | H139: 390.85 | I139: 396.55 | J139: 401.30 | K139: 391.8 | L139: 381.35 | M139: 23.06322
A140: 131 | B140: M&M | C140: 523 | D140: 526.87 | E140: 516.78 | F140: 510.57 | G140: 500.48 | H140: 533.08 | I140: 543.17 | J140: 549.38 | K140: 536.95 | L140: 520.65 | M140: 23.52196
A141: 132 | B141: MANAPPURAM | C141: 160.75 | D141: 162.12 | E141: 158.93 | F141: 157.12 | G141: 153.93 | H141: 163.93 | I141: 167.12 | J141: 168.93 | K141: 165.3 | L141: 160.3 | M141: 28.02932
A142: 133 | B142: MRPL | C142: 42.25 | D142: 42.68 | E142: 41.67 | F142: 41.08 | G142: 40.07 | H142: 43.27 | I142: 44.28 | J142: 44.87 | K142: 43.7 | L142: 42.1 | M142: 8.09305
A143: 134 | B143: MARICO | C143: 302.2 | D143: 302.83 | E143: 300.27 | F143: 298.33 | G143: 295.77 | H143: 304.77 | I143: 307.33 | J143: 309.27 | K143: 305.4 | L143: 300.9 | M143: 69.41813
A144: 135 | B144: MARUTI | C144: 6913.8 | D144: 6967.92 | E144: 6846.88 | F144: 6779.97 | G144: 6658.93 | H144: 7034.83 | I144: 7155.87 | J144: 7222.78 | K144: 7088.95 | L144: 6901 | M144: 8.68935
A145: 136 | B145: MFSL | C145: 486.95 | D145: 487.52 | E145: 481.03 | F145: 475.12 | G145: 468.63 | H145: 493.43 | I145: 499.92 | J145: 505.83 | K145: 494 | L145: 481.6 | M145: 16.72907
A146: 137 | B146: MINDTREE | C146: 959.9 | D146: 957.20 | E146: 940.70 | F146: 921.50 | G146: 905.00 | H146: 976.40 | I146: 992.90 | J146: 1012.10 | K146: 973.7 | L146: 938 | M146: 4.76824
A147: 138 | B147: MOTHERSUMI | C147: 123.95 | D147: 124.18 | E147: 122.47 | F147: 120.98 | G147: 119.27 | H147: 125.67 | I147: 127.38 | J147: 128.87 | K147: 125.9 | L147: 122.7 | M147: 275.35769
A148: 139 | B148: MPHASIS | C148: 906.75 | D148: 901.98 | E148: 892.77 | F148: 878.78 | G148: 869.57 | H148: 915.97 | I148: 925.18 | J148: 939.17 | K148: 911.2 | L148: 888 | M148: 0.51751
A149: 140 | B149: MUTHOOTFIN | C149: 746.9 | D149: 745.67 | E149: 741.33 | F149: 735.77 | G149: 731.43 | H149: 751.23 | I149: 755.57 | J149: 761.13 | K149: 750 | L149: 740.1 | M149: 5.3477
A150: 141 | B150: NATCOPHARM | C150: 676.6 | D150: 676.37 | E150: 668.43 | F150: 660.27 | G150: 652.33 | H150: 684.53 | I150: 692.47 | J150: 700.63 | K150: 684.3 | L150: 668.2 | M150: 0.70644
A151: 142 | B151: NBCC | C151: 32 | D151: 32.03 | E151: 31.47 | F151: 30.93 | G151: 30.37 | H151: 32.57 | I151: 33.13 | J151: 33.67 | K151: 32.6 | L151: 31.5 | M151: 131.59247
A152: 143 | B152: NHPC | C152: 23.45 | D152: 23.62 | E152: 23.13 | F152: 22.82 | G152: 22.33 | H152: 23.93 | I152: 24.42 | J152: 24.73 | K152: 24.1 | L152: 23.3 | M152: 169.98025
A153: 144 | B153: NMDC | C153: 106.35 | D153: 107.70 | E153: 104.30 | F153: 102.25 | G153: 98.85 | H153: 109.75 | I153: 113.15 | J153: 115.20 | K153: 111.1 | L153: 105.65 | M153: 115.54574
A154: 145 | B154: NTPC | C154: 112.7 | D154: 113.37 | E154: 111.23 | F154: 109.77 | G154: 107.63 | H154: 114.83 | I154: 116.97 | J154: 118.43 | K154: 115.5 | L154: 111.9 | M154: 645.18347
A155: 146 | B155: NATIONALUM | C155: 40.8 | D155: 40.98 | E155: 40.32 | F155: 39.83 | G155: 39.17 | H155: 41.47 | I155: 42.13 | J155: 42.62 | K155: 41.65 | L155: 40.5 | M155: 182.52296
A156: 147 | B156: NESTLEIND | C156: 16356.45 | D156: 16462.95 | E156: 16143.50 | F156: 15930.55 | G156: 15611.10 | H156: 16675.90 | I156: 16995.35 | J156: 17208.30 | K156: 16782.4 | L156: 16250 | M156: 0.59649
A157: 148 | B157: NAM-INDIA | C157: 393.75 | D157: 396.82 | E157: 388.63 | F157: 383.52 | G157: 375.33 | H157: 401.93 | I157: 410.12 | J157: 415.23 | K157: 405 | L157: 391.7 | M157: 1.68229
A158: 149 | B158: OBEROIRLTY | C158: 507.1 | D158: 512.03 | E158: 501.07 | F158: 495.03 | G158: 484.07 | H158: 518.07 | I158: 529.03 | J158: 535.07 | K158: 523 | L158: 506 | M158: 833.60147
A159: 150 | B159: ONGC | C159: 103.3 | D159: 104.20 | E159: 102.10 | F159: 100.90 | G159: 98.80 | H159: 105.40 | I159: 107.50 | J159: 108.70 | K159: 106.3 | L159: 103 | M159: 95.97439
A160: 151 | B160: OIL | C160: 130.25 | D160: 131.73 | E160: 128.52 | F160: 126.78 | G160: 123.57 | H160: 133.47 | I160: 136.68 | J160: 138.42 | K160: 134.95 | L160: 130 | M160: 0.2199
A161: 152 | B161: OFSS | C161: 2884.3 | D161: 2838.48 | E161: 2756.82 | F161: 2629.33 | G161: 2547.67 | H161: 2965.97 | I161: 3047.63 | J161: 3175.12 | K161: 2920.15 | L161: 2711 | M161: 3.09452
A162: 153 | B162: PIIND | C162: 1549.65 | D162: 1544.70 | E162: 1534.95 | F162: 1520.25 | G162: 1510.50 | H162: 1559.40 | I162: 1569.15 | J162: 1583.85 | K162: 1554.45 | L162: 1530 | M162: 7.15716
A163: 154 | B163: PNBHOUSING | C163: 417.1 | D163: 417.63 | E163: 411.82 | F163: 406.53 | G163: 400.72 | H163: 422.92 | I163: 428.73 | J163: 434.02 | K163: 423.45 | L163: 412.35 | M163: 0.22781
A164: 155 | B164: PAGEIND | C164: 22447.05 | D164: 22268.35 | E164: 21787.70 | F164: 21128.35 | G164: 20647.70 | H164: 22927.70 | I164: 23408.35 | J164: 24067.70 | K164: 22749 | L164: 21609 | M164: 23.08304
A165: 156 | B165: PETRONET | C165: 260.8 | D165: 262.10 | E165: 258.80 | F165: 256.80 | G165: 253.50 | H165: 264.10 | I165: 267.40 | J165: 269.40 | K165: 265.4 | L165: 260.1 | M165: 0.12497
A166: 157 | B166: PFIZER | C166: 4193.3 | D166: 4324.38 | E166: 4018.92 | F166: 3844.53 | G166: 3539.07 | H166: 4498.77 | I166: 4804.23 | J166: 4978.62 | K166: 4629.85 | L166: 4150 | M166: 7.69665
A167: 158 | B167: PIDILITIND | C167: 1583.35 | D167: 1589.65 | E167: 1572.30 | F167: 1561.25 | G167: 1543.90 | H167: 1600.70 | I167: 1618.05 | J167: 1629.10 | K167: 1607 | L167: 1578.6 | M167: 29.79765
A168: 159 | B168: PEL | C168: 1530.65 | D168: 1532.82 | E168: 1518.63 | F168: 1506.62 | G168: 1492.43 | H168: 1544.83 | I168: 1559.02 | J168: 1571.03 | K168: 1547 | L168: 1520.8 | M168: 94.55973
A169: 160 | B169: PFC | C169: 126.65 | D169: 127.78 | E169: 124.87 | F169: 123.08 | G169: 120.17 | H169: 129.57 | I169: 132.48 | J169: 134.27 | K169: 130.7 | L169: 126 | M169: 359.92338
A170: 161 | B170: POWERGRID | C170: 184.1 | D170: 186.30 | E170: 181.20 | F170: 178.30 | G170: 173.20 | H170: 189.20 | I170: 194.30 | J170: 197.20 | K170: 191.4 | L170: 183.4 | M170: 3.99518
A171: 162 | B171: PRESTIGE | C171: 365.15 | D171: 363.78 | E171: 359.67 | F171: 354.18 | G171: 350.07 | H171: 369.27 | I171: 373.38 | J171: 378.87 | K171: 367.9 | L171: 358.3 | M171: 0.02985
A172: 163 | B172: PGHH | C172: 11498.55 | D172: 11516.32 | E172: 11432.63 | F172: 11366.72 | G172: 11283.03 | H172: 11582.23 | I172: 11665.92 | J172: 11731.83 | K172: 11600 | L172: 11450.4 | M172: 154.49355
A173: 164 | B173: PNB | C173: 54.2 | D173: 54.75 | E173: 53.45 | F173: 52.70 | G173: 51.40 | H173: 55.50 | I173: 56.80 | J173: 57.55 | K173: 56.05 | L173: 54 | M173: 5.40845
A174: 165 | B174: QUESS | C174: 590.75 | D174: 592.98 | E174: 581.07 | F174: 571.38 | G174: 559.47 | H174: 602.67 | I174: 614.58 | J174: 624.27 | K174: 604.9 | L174: 583.3 | M174: 58.43485
A175: 166 | B175: RBLBANK | C175: 316.55 | D175: 320.10 | E175: 311.45 | F175: 306.35 | G175: 297.70 | H175: 325.20 | I175: 333.85 | J175: 338.95 | K175: 328.75 | L175: 315 | M175: 70.38131
A176: 167 | B176: RECLTD | C176: 139.65 | D176: 140.83 | E176: 137.82 | F176: 135.98 | G176: 132.97 | H176: 142.67 | I176: 145.68 | J176: 147.52 | K176: 143.85 | L176: 139 | M176: 1.23317
A177: 168 | B177: RAJESHEXPO | C177: 705.1 | D177: 708.95 | E177: 699.40 | F177: 693.70 | G177: 684.15 | H177: 714.65 | I177: 724.20 | J177: 729.90 | K177: 718.5 | L177: 703.25 | M177: 158.86673
A178: 169 | B178: RELIANCE | C178: 1487.6 | D178: 1480.72 | E178: 1459.98 | F178: 1432.37 | G178: 1411.63 | H178: 1508.33 | I178: 1529.07 | J178: 1556.68 | K178: 1501.45 | L178: 1453.1 | M178: 4.4517
A179: 170 | B179: SBILIFE | C179: 914.25 | D179: 917.88 | E179: 903.37 | F179: 892.48 | G179: 877.97 | H179: 928.77 | I179: 943.28 | J179: 954.17 | K179: 932.4 | L179: 907 | M179: 3.14532
A180: 171 | B180: SRF | C180: 4192.95 | D180: 4190.70 | E180: 4151.40 | F180: 4109.85 | G180: 4070.55 | H180: 4232.25 | I180: 4271.55 | J180: 4313.10 | K180: 4230 | L180: 4149.15 | M180: 0.26041
A181: 172 | B181: SHREECEM | C181: 24433.6 | D181: 24508.43 | E181: 24103.82 | F181: 23774.03 | G181: 23369.42 | H181: 24838.22 | I181: 25242.83 | J181: 25572.62 | K181: 24913.05 | L181: 24178.65 | M181: 19.83266
A182: 173 | B182: SRTRANSFIN | C182: 1286.4 | D182: 1280.32 | E182: 1265.13 | F182: 1243.87 | G182: 1228.68 | H182: 1301.58 | I182: 1316.77 | J182: 1338.03 | K182: 1295.5 | L182: 1259.05 | M182: 3.34263
A183: 174 | B183: SIEMENS | C183: 1397.9 | D183: 1409.28 | E183: 1381.62 | F183: 1365.33 | G183: 1337.67 | H183: 1425.57 | I183: 1453.23 | J183: 1469.52 | K183: 1436.95 | L183: 1393 | M183: 926.56638
A184: 175 | B184: SBIN | C184: 319.4 | D184: 323.28 | E184: 314.67 | F184: 309.93 | G184: 301.32 | H184: 328.02 | I184: 336.63 | J184: 341.37 | K184: 331.9 | L184: 318.55 | M184: 179.54383
A185: 176 | B185: SAIL | C185: 43.9 | D185: 44.45 | E185: 43.10 | F185: 42.30 | G185: 40.95 | H185: 45.25 | I185: 46.60 | J185: 47.40 | K185: 45.8 | L185: 43.65 | M185: 8.07575
A186: 177 | B186: STRTECH | C186: 117.05 | D186: 117.25 | E186: 115.00 | F186: 112.95 | G186: 110.70 | H186: 119.30 | I186: 121.55 | J186: 123.60 | K186: 119.5 | L186: 115.2 | M186: 37.57229
A187: 178 | B187: SUNPHARMA | C187: 418.55 | D187: 419.93 | E187: 415.12 | F187: 411.68 | G187: 406.87 | H187: 423.37 | I187: 428.18 | J187: 431.62 | K187: 424.75 | L187: 416.5 | M187: 15.5546
A188: 179 | B188: SUNTV | C188: 497 | D188: 495.05 | E188: 487.60 | F188: 478.20 | G188: 470.75 | H188: 504.45 | I188: 511.90 | J188: 521.30 | K188: 502.5 | L188: 485.65 | M188: 0.78761
A189: 180 | B189: SYNGENE | C189: 306.4 | D189: 308.52 | E189: 303.03 | F189: 299.67 | G189: 294.18 | H189: 311.88 | I189: 317.37 | J189: 320.73 | K189: 314 | L189: 305.15 | M189: 8.43524
A190: 181 | B190: TVSMOTOR | C190: 439.2 | D190: 441.28 | E190: 435.02 | F190: 430.83 | G190: 424.57 | H190: 445.47 | I190: 451.73 | J190: 455.92 | K190: 447.55 | L190: 437.1 | M190: 32.87223
A191: 182 | B191: TCS | C191: 2184.2 | D191: 2189.07 | E191: 2166.13 | F191: 2148.07 | G191: 2125.13 | H191: 2207.13 | I191: 2230.07 | J191: 2248.13 | K191: 2212 | L191: 2171 | M191: 26.8123
A192: 183 | B192: TATAGLOBAL | C192: 396.9 | D192: 395.80 | E192: 391.60 | F192: 386.30 | G192: 382.10 | H192: 401.10 | I192: 405.30 | J192: 410.60 | K192: 400 | L192: 390.5 | M192: 38.13549
A193: 184 | B193: TATAMTRDVR | C193: 70.1 | D193: 70.88 | E193: 68.97 | F193: 67.83 | G193: 65.92 | H193: 72.02 | I193: 73.93 | J193: 75.07 | K193: 72.8 | L193: 69.75 | M193: 756.21897
A194: 185 | B194: TATAMOTORS | C194: 169.1 | D194: 171.20 | E194: 166.20 | F194: 163.30 | G194: 158.30 | H194: 174.10 | I194: 179.10 | J194: 182.00 | K194: 176.2 | L194: 168.3 | M194: 79.77888
A195: 186 | B195: TATAPOWER | C195: 53.8 | D195: 54.32 | E195: 53.03 | F195: 52.27 | G195: 50.98 | H195: 55.08 | I195: 56.37 | J195: 57.13 | K195: 55.6 | L195: 53.55 | M195: 107.38727
A196: 187 | B196: TATASTEEL | C196: 434.55 | D196: 437.82 | E196: 430.08 | F196: 425.62 | G196: 417.88 | H196: 442.28 | I196: 450.02 | J196: 454.48 | K196: 445.55 | L196: 433.35 | M196: 30.81521
A197: 188 | B197: TECHM | C197: 834.15 | D197: 832.40 | E197: 826.80 | F197: 819.45 | G197: 813.85 | H197: 839.75 | I197: 845.35 | J197: 852.70 | K197: 838 | L197: 825.05 | M197: 1.68669
A198: 189 | B198: NIACL | C198: 136.9 | D198: 138.90 | E198: 134.40 | F198: 131.90 | G198: 127.40 | H198: 141.40 | I198: 145.90 | J198: 148.40 | K198: 143.4 | L198: 136.4 | M198: 5.867
A199: 190 | B199: RAMCOCEM | C199: 794.3 | D199: 791.37 | E199: 783.93 | F199: 773.57 | G199: 766.13 | H199: 801.73 | I199: 809.17 | J199: 819.53 | K199: 798.8 | L199: 781 | M199: 18.09101
A200: 191 | B200: TITAN | C200: 1293.45 | D200: 1298.05 | E200: 1285.40 | F200: 1277.35 | G200: 1264.70 | H200: 1306.10 | I200: 1318.75 | J200: 1326.80 | K200: 1310.7 | L200: 1290 | M200: 1.67763
A201: 192 | B201: TORNTPHARM | C201: 2112.5 | D201: 2098.83 | E201: 2077.67 | F201: 2042.83 | G201: 2021.67 | H201: 2133.67 | I201: 2154.83 | J201: 2189.67 | K201: 2120 | L201: 2064 | M201: 11.09871
A202: 193 | B202: TORNTPOWER | C202: 321.5 | D202: 323.00 | E202: 318.00 | F202: 314.50 | G202: 309.50 | H202: 326.50 | I202: 331.50 | J202: 335.00 | K202: 328 | L202: 319.5 | M202: 43.40034
A203: 194 | B203: UPL | C203: 591.65 | D203: 590.38 | E203: 579.37 | F203: 567.08 | G203: 556.07 | H203: 602.67 | I203: 613.68 | J203: 625.97 | K203: 601.4 | L203: 578.1 | M203: 4.5163
A204: 195 | B204: ULTRACEMCO | C204: 4434.35 | D204: 4455.45 | E204: 4371.95 | F204: 4309.55 | G204: 4226.05 | H204: 4517.85 | I204: 4601.35 | J204: 4663.75 | K204: 4538.95 | L204: 4393.05 | M204: 21.60583
A205: 196 | B205: UNIONBANK | C205: 47.75 | D205: 48.02 | E205: 47.13 | F205: 46.52 | G205: 45.63 | H205: 48.63 | I205: 49.52 | J205: 50.13 | K205: 48.9 | L205: 47.4 | M205: 3.17811
... 30 more rows

Sheet MidCap Intra
L5: Back To Main Page
A6: FOR INTRA DAY TRADING | K6: =Main!B10 -> 2020-02-17
A9: Sr.no | B9: Scrip | C9: CLOSE RATE | D9: Pivot Point | E9: Supports | H9: Resistances
C10: Point | E10: S1 | F10: S2 | G10: S3 | H10: R1 | I10: R2 | J10: R3 | K10: HIGH | L10: LOW | M10: Total Trade Quanity in Lakhs
A11: 1 | B11: 3MINDIA | C11: 22299.95 | D11: 22468.98 | E11: 22037.97 | F11: 21775.98 | G11: 21344.97 | H11: 22730.97 | I11: 23161.98 | J11: 23423.97 | K11: 22900 | L11: 22207 | M11: 0.03653
A12: 2 | B12: AARTIIND | C12: 1012.8 | D12: 1004.83 | E12: 984.72 | F12: 956.63 | G12: 936.52 | H12: 1032.92 | I12: 1053.03 | J12: 1081.12 | K12: 1024.95 | L12: 976.75 | M12: 4.67116
A13: 3 | B13: AAVAS | C13: 1890.25 | D13: 1880.08 | E13: 1865.17 | F13: 1840.08 | G13: 1825.17 | H13: 1905.17 | I13: 1920.08 | J13: 1945.17 | K13: 1895 | L13: 1855 | M13: 0.59058
A14: 4 | B14: ABBOTINDIA | C14: 14785.05 | D14: 14799.88 | E14: 14710.77 | F14: 14636.48 | G14: 14547.37 | H14: 14874.17 | I14: 14963.28 | J14: 15037.57 | K14: 14889 | L14: 14725.6 | M14: 0.09285
A15: 5 | B15: ABCAPITAL | C15: 89.85 | D15: 91.05 | E15: 88.30 | F15: 86.75 | G15: 84.00 | H15: 92.60 | I15: 95.35 | J15: 96.90 | K15: 93.8 | L15: 89.5 | M15: 17.52955
A16: 6 | B16: ABFRL | C16: 265.5 | D16: 268.88 | E16: 260.07 | F16: 254.63 | G16: 245.82 | H16: 274.32 | I16: 283.13 | J16: 288.57 | K16: 277.7 | L16: 263.45 | M16: 8.03676
A17: 7 | B17: ACC | C17: 1440.4 | D17: 1442.65 | E17: 1427.30 | F17: 1414.20 | G17: 1398.85 | H17: 1455.75 | I17: 1471.10 | J17: 1484.20 | K17: 1458 | L17: 1429.55 | M17: 8.09439
A18: 8 | B18: ADANIGAS | C18: 165 | D18: 165.83 | E18: 163.17 | F18: 161.33 | G18: 158.67 | H18: 167.67 | I18: 170.33 | J18: 172.17 | K18: 168.5 | L18: 164 | M18: 5.39895
A19: 9 | B19: ADANIGREEN | C19: 206.8 | D19: 205.90 | E19: 201.90 | F19: 197.00 | G19: 193.00 | H19: 210.80 | I19: 214.80 | J19: 219.70 | K19: 209.9 | L19: 201 | M19: 14.74525
A20: 10 | B20: ADANIPORTS | C20: 366.85 | D20: 368.28 | E20: 364.57 | F20: 362.28 | G20: 358.57 | H20: 370.57 | I20: 374.28 | J20: 376.57 | K20: 372 | L20: 366 | M20: 10.12713
A21: 11 | B21: ADANIPOWER | C21: 59.6 | D21: 59.67 | E21: 58.83 | F21: 58.07 | G21: 57.23 | H21: 60.43 | I21: 61.27 | J21: 62.03 | K21: 60.5 | L21: 58.9 | M21: 74.27284
A22: 12 | B22: ADANITRANS | C22: 328.45 | D22: 332.35 | E22: 320.05 | F22: 311.65 | G22: 299.35 | H22: 340.75 | I22: 353.05 | J22: 361.45 | K22: 344.65 | L22: 323.95 | M22: 2.59548
A23: 13 | B23: ADVENZYMES | C23: 166.05 | D23: 167.55 | E23: 163.15 | F23: 160.25 | G23: 155.85 | H23: 170.45 | I23: 174.85 | J23: 177.75 | K23: 171.95 | L23: 164.65 | M23: 0.57177
A24: 14 | B24: AEGISCHEM | C24: 244.6 | D24: 240.85 | E24: 230.25 | F24: 215.90 | G24: 205.30 | H24: 255.20 | I24: 265.80 | J24: 280.15 | K24: 251.45 | L24: 226.5 | M24: 9.10341
A25: 15 | B25: AFFLE | C25: 1961.3 | D25: 1980.50 | E25: 1914.05 | F25: 1866.80 | G25: 1800.35 | H25: 2027.75 | I25: 2094.20 | J25: 2141.45 | K25: 2046.95 | L25: 1933.25 | M25: 2.70414
A26: 16 | B26: AIAENG | C26: 1874.05 | D26: 1868.08 | E26: 1846.17 | F26: 1818.28 | G26: 1796.37 | H26: 1895.97 | I26: 1917.88 | J26: 1945.77 | K26: 1890 | L26: 1840.2 | M26: 0.24894
A27: 17 | B27: AJANTPHARM | C27: 1414.4 | D27: 1422.15 | E27: 1387.25 | F27: 1360.10 | G27: 1325.20 | H27: 1449.30 | I27: 1484.20 | J27: 1511.35 | K27: 1457.05 | L27: 1395 | M27: 1.81047
A28: 18 | B28: AKZOINDIA | C28: 2380.8 | D28: 2367.25 | E28: 2285.55 | F28: 2190.30 | G28: 2108.60 | H28: 2462.50 | I28: 2544.20 | J28: 2639.45 | K28: 2448.95 | L28: 2272 | M28: 0.83931
A29: 19 | B29: ALKEM | C29: 2649.3 | D29: 2635.12 | E29: 2620.18 | F29: 2591.07 | G29: 2576.13 | H29: 2664.23 | I29: 2679.17 | J29: 2708.28 | K29: 2650.05 | L29: 2606 | M29: 0.65471
A30: 20 | B30: ALLCARGO | C30: 110.95 | D30: 110.73 | E30: 105.32 | F30: 99.68 | G30: 94.27 | H30: 116.37 | I30: 121.78 | J30: 127.42 | K30: 116.15 | L30: 105.1 | M30: 4.12945
A31: 21 | B31: AMARAJABAT | C31: 755.8 | D31: 760.45 | E31: 746.40 | F31: 737.00 | G31: 722.95 | H31: 769.85 | I31: 783.90 | J31: 793.30 | K31: 774.5 | L31: 751.05 | M31: 5.32215
A32: 22 | B32: AMBER | C32: 1572.65 | D32: 1582.88 | E32: 1540.77 | F32: 1508.88 | G32: 1466.77 | H32: 1614.77 | I32: 1656.88 | J32: 1688.77 | K32: 1625 | L32: 1551 | M32: 0.41413
A33: 23 | B33: AMBUJACEM | C33: 205.65 | D33: 207.63 | E33: 203.02 | F33: 200.38 | G33: 195.77 | H33: 210.27 | I33: 214.88 | J33: 217.52 | K33: 212.25 | L33: 205 | M33: 31.83445
A34: 24 | B34: APLAPOLLO | C34: 2004.65 | D34: 2013.67 | E34: 1992.73 | F34: 1980.82 | G34: 1959.88 | H34: 2025.58 | I34: 2046.52 | J34: 2058.43 | K34: 2034.6 | L34: 2001.75 | M34: 0.18223
A35: 25 | B35: APLLTD | C35: 643.35 | D35: 644.78 | E35: 636.57 | F35: 629.78 | G35: 621.57 | H35: 651.57 | I35: 659.78 | J35: 666.57 | K35: 653 | L35: 638 | M35: 2.76921
A36: 26 | B36: APOLLOHOSP | C36: 1704.4 | D36: 1708.85 | E36: 1670.00 | F36: 1635.60 | G36: 1596.75 | H36: 1743.25 | I36: 1782.10 | J36: 1816.50 | K36: 1747.7 | L36: 1674.45 | M36: 31.79224
A37: 27 | B37: APOLLOTYRE | C37: 159.05 | D37: 160.20 | E37: 157.15 | F37: 155.25 | G37: 152.20 | H37: 162.10 | I37: 165.15 | J37: 167.05 | K37: 163.25 | L37: 158.3 | M37: 16.05188
A38: 28 | B38: ARVINDFASN | C38: 389.1 | D38: 389.55 | E38: 385.65 | F38: 382.20 | G38: 378.30 | H38: 393.00 | I38: 396.90 | J38: 400.35 | K38: 393.45 | L38: 386.1 | M38: 0.14303
A39: 29 | B39: ASAHIINDIA | C39: 259.5 | D39: 257.53 | E39: 251.07 | F39: 242.63 | G39: 236.17 | H39: 265.97 | I39: 272.43 | J39: 280.87 | K39: 264 | L39: 249.1 | M39: 0.59327
A40: 30 | B40: ASHOKA | C40: 102.65 | D40: 103.37 | E40: 101.38 | F40: 100.12 | G40: 98.13 | H40: 104.63 | I40: 106.62 | J40: 107.88 | K40: 105.35 | L40: 102.1 | M40: 4.37604
A41: 31 | B41: ASHOKLEY | C41: 80.25 | D41: 80.50 | E41: 79.45 | F41: 78.65 | G41: 77.60 | H41: 81.30 | I41: 82.35 | J41: 83.15 | K41: 81.55 | L41: 79.7 | M41: 202.90024
A42: 32 | B42: ASIANPAINT | C42: 1877.05 | D42: 1882.23 | E42: 1864.82 | F42: 1852.58 | G42: 1835.17 | H42: 1894.47 | I42: 1911.88 | J42: 1924.12 | K42: 1899.65 | L42: 1870 | M42: 7.71464
A43: 33 | B43: ASTERDM | C43: 173.2 | D43: 172.83 | E43: 168.37 | F43: 163.53 | G43: 159.07 | H43: 177.67 | I43: 182.13 | J43: 186.97 | K43: 177.3 | L43: 168 | M43: 1.01768
A44: 34 | B44: ASTRAL | C44: 1197.65 | D44: 1197.85 | E44: 1184.80 | F44: 1171.95 | G44: 1158.90 | H44: 1210.70 | I44: 1223.75 | J44: 1236.60 | K44: 1210.9 | L44: 1185 | M44: 0.66556
A45: 35 | B45: ASTRAZEN | C45: 2865.15 | D45: 2851.68 | E45: 2763.47 | F45: 2661.78 | G45: 2573.57 | H45: 2953.37 | I45: 3041.58 | J45: 3143.27 | K45: 2939.9 | L45: 2750 | M45: 0.56106
A46: 36 | B46: ATUL | C46: 4968.25 | D46: 4995.22 | E46: 4920.43 | F46: 4872.62 | G46: 4797.83 | H46: 5043.03 | I46: 5117.82 | J46: 5165.63 | K46: 5070 | L46: 4947.4 | M46: 0.11352
A47: 37 | B47: AUBANK | C47: 1146.05 | D47: 1148.18 | E47: 1131.22 | F47: 1116.38 | G47: 1099.42 | H47: 1163.02 | I47: 1179.98 | J47: 1194.82 | K47: 1165.15 | L47: 1133.35 | M47: 2.55773
A48: 38 | B48: AUROPHARMA | C48: 514.35 | D48: 519.90 | E48: 506.85 | F48: 499.35 | G48: 486.30 | H48: 527.40 | I48: 540.45 | J48: 547.95 | K48: 532.95 | L48: 512.4 | M48: 46.38466
A49: 39 | B49: AVANTIFEED | C49: 609.1 | D49: 610.37 | E49: 600.83 | F49: 592.57 | G49: 583.03 | H49: 618.63 | I49: 628.17 | J49: 636.43 | K49: 619.9 | L49: 602.1 | M49: 6.57395
A50: 40 | B50: AXISBANK | C50: 736.5 | D50: 740.38 | E50: 728.22 | F50: 719.93 | G50: 707.77 | H50: 748.67 | I50: 760.83 | J50: 769.12 | K50: 752.55 | L50: 732.1 | M50: 61.55
A51: 41 | B51: BAJAJ-AUTO | C51: 3146.4 | D51: 3162.73 | E51: 3120.47 | F51: 3094.53 | G51: 3052.27 | H51: 3188.67 | I51: 3230.93 | J51: 3256.87 | K51: 3205 | L51: 3136.8 | M51: 3.8158
A52: 42 | B52: BAJAJCON | C52: 197.8 | D52: 198.52 | E52: 194.28 | F52: 190.77 | G52: 186.53 | H52: 202.03 | I52: 206.27 | J52: 209.78 | K52: 202.75 | L52: 195 | M52: 2.00715
A53: 43 | B53: BAJAJELEC | C53: 412.95 | D53: 417.60 | E53: 403.40 | F53: 393.85 | G53: 379.65 | H53: 427.15 | I53: 441.35 | J53: 450.90 | K53: 431.8 | L53: 408.05 | M53: 0.91901
A54: 44 | B54: BAJAJFINSV | C54: 9690.5 | D54: 9712.85 | E54: 9630.70 | F54: 9570.90 | G54: 9488.75 | H54: 9772.65 | I54: 9854.80 | J54: 9914.60 | K54: 9795 | L54: 9653.05 | M54: 1.39237
A55: 45 | B55: BAJAJHLDNG | C55: 3756.55 | D55: 3807.43 | E55: 3675.12 | F55: 3593.68 | G55: 3461.37 | H55: 3888.87 | I55: 4021.18 | J55: 4102.62 | K55: 3939.75 | L55: 3726 | M55: 1.14918
A56: 46 | B56: BAJFINANCE | C56: 4781.75 | D56: 4788.25 | E56: 4761.50 | F56: 4741.25 | G56: 4714.50 | H56: 4808.50 | I56: 4835.25 | J56: 4855.50 | K56: 4815 | L56: 4768 | M56: 7.31118
A57: 47 | B57: BALKRISIND | C57: 1157.05 | D57: 1151.48 | E57: 1141.07 | F57: 1125.08 | G57: 1114.67 | H57: 1167.47 | I57: 1177.88 | J57: 1193.87 | K57: 1161.9 | L57: 1135.5 | M57: 6.45397
A58: 48 | B58: BALMLAWRIE | C58: 112.5 | D58: 113.13 | E58: 111.57 | F58: 110.63 | G58: 109.07 | H58: 114.07 | I58: 115.63 | J58: 116.57 | K58: 114.7 | L58: 112.2 | M58: 0.63677
A59: 49 | B59: BALRAMCHIN | C59: 169.4 | D59: 169.70 | E59: 167.70 | F59: 166.00 | G59: 164.00 | H59: 171.40 | I59: 173.40 | J59: 175.10 | K59: 171.7 | L59: 168 | M59: 7.70855
A60: 50 | B60: BANDHANBNK | C60: 452.55 | D60: 454.88 | E60: 446.27 | F60: 439.98 | G60: 431.37 | H60: 461.17 | I60: 469.78 | J60: 476.07 | K60: 463.5 | L60: 448.6 | M60: 15.75017
A61: 51 | B61: BANKBARODA | C61: 86.45 | D61: 87.17 | E61: 85.38 | F61: 84.32 | G61: 82.53 | H61: 88.23 | I61: 90.02 | J61: 91.08 | K61: 88.95 | L61: 86.1 | M61: 154.01905
A62: 52 | B62: BANKINDIA | C62: 63.05 | D62: 63.08 | E62: 62.62 | F62: 62.18 | G62: 61.72 | H62: 63.52 | I62: 63.98 | J62: 64.42 | K62: 63.55 | L62: 62.65 | M62: 9.99669
A63: 53 | B63: BASF | C63: 873.65 | D63: 879.55 | E63: 864.10 | F63: 854.55 | G63: 839.10 | H63: 889.10 | I63: 904.55 | J63: 914.10 | K63: 895 | L63: 870 | M63: 0.40405
A64: 54 | B64: BATAINDIA | C64: 1783.25 | D64: 1794.00 | E64: 1761.80 | F64: 1740.35 | G64: 1708.15 | H64: 1815.45 | I64: 1847.65 | J64: 1869.10 | K64: 1826.2 | L64: 1772.55 | M64: 5.33112
A65: 55 | B65: BAYERCROP | C65: 4357.05 | D65: 4371.83 | E65: 4318.52 | F65: 4279.98 | G65: 4226.67 | H65: 4410.37 | I65: 4463.68 | J65: 4502.22 | K65: 4425.15 | L65: 4333.3 | M65: 0.05361
A66: 56 | B66: BBTC | C66: 1155.6 | D66: 1173.35 | E66: 1127.80 | F66: 1100.00 | G66: 1054.45 | H66: 1201.15 | I66: 1246.70 | J66: 1274.50 | K66: 1218.9 | L66: 1145.55 | M66: 1.40415
A67: 57 | B67: BDL | C67: 274 | D67: 276.25 | E67: 271.00 | F67: 268.00 | G67: 262.75 | H67: 279.25 | I67: 284.50 | J67: 287.50 | K67: 281.5 | L67: 273.25 | M67: 0.3593
A68: 58 | B68: BEL | C68: 83.05 | D68: 83.82 | E68: 81.88 | F68: 80.72 | G68: 78.78 | H68: 84.98 | I68: 86.92 | J68: 88.08 | K68: 85.75 | L68: 82.65 | M68: 95.48923
A69: 59 | B69: BEML | C69: 935.35 | D69: 939.58 | E69: 921.77 | F69: 908.18 | G69: 890.37 | H69: 953.17 | I69: 970.98 | J69: 984.57 | K69: 957.4 | L69: 926 | M69: 2.58564
A70: 60 | B70: BERGEPAINT | C70: 579.6 | D70: 581.33 | E70: 574.92 | F70: 570.23 | G70: 563.82 | H70: 586.02 | I70: 592.43 | J70: 597.12 | K70: 587.75 | L70: 576.65 | M70: 6.84632
A71: 61 | B71: BHARATFORG | C71: 485.45 | D71: 488.62 | E71: 480.83 | F71: 476.22 | G71: 468.43 | H71: 493.23 | I71: 501.02 | J71: 505.63 | K71: 496.4 | L71: 484 | M71: 15.7083
A72: 62 | B72: BHARTIARTL | C72: 565 | D72: 555.60 | E72: 543.65 | F72: 522.30 | G72: 510.35 | H72: 576.95 | I72: 588.90 | J72: 610.25 | K72: 567.55 | L72: 534.25 | M72: 368.26473
A73: 63 | B73: BHEL | C73: 36.2 | D73: 36.53 | E73: 35.67 | F73: 35.13 | G73: 34.27 | H73: 37.07 | I73: 37.93 | J73: 38.47 | K73: 37.4 | L73: 36 | M73: 204.64164
A74: 64 | B74: BIOCON | C74: 307.8 | D74: 306.20 | E74: 303.15 | F74: 298.50 | G74: 295.45 | H74: 310.85 | I74: 313.90 | J74: 318.55 | K74: 309.25 | L74: 301.55 | M74: 21.19124
A75: 65 | B75: BIRLACORPN | C75: 748.35 | D75: 746.67 | E75: 734.33 | F75: 720.32 | G75: 707.98 | H75: 760.68 | I75: 773.02 | J75: 787.03 | K75: 759 | L75: 732.65 | M75: 0.58763
A76: 66 | B76: BLISSGVS | C76: 136.65 | D76: 138.00 | E76: 133.00 | F76: 129.35 | G76: 124.35 | H76: 141.65 | I76: 146.65 | J76: 150.30 | K76: 143 | L76: 134.35 | M76: 0.90077
A77: 67 | B77: BLUEDART | C77: 2884.2 | D77: 2878.07 | E77: 2786.13 | F77: 2688.07 | G77: 2596.13 | H77: 2976.13 | I77: 3068.07 | J77: 3166.13 | K77: 2970 | L77: 2780 | M77: 0.03717
A78: 68 | B78: BLUESTARCO | C78: 838 | D78: 829.17 | E78: 814.83 | F78: 791.67 | G78: 777.33 | H78: 852.33 | I78: 866.67 | J78: 889.83 | K78: 843.5 | L78: 806 | M78: 0.96634
A79: 69 | B79: BOMDYEING | C79: 85.8 | D79: 86.50 | E79: 84.80 | F79: 83.80 | G79: 82.10 | H79: 87.50 | I79: 89.20 | J79: 90.20 | K79: 88.2 | L79: 85.5 | M79: 11.31735
A80: 70 | B80: BOSCHLTD | C80: 14615.1 | D80: 14638.37 | E80: 14506.73 | F80: 14398.37 | G80: 14266.73 | H80: 14746.73 | I80: 14878.37 | J80: 14986.73 | K80: 14770 | L80: 14530 | M80: 0.12034
A81: 71 | B81: BPCL | C81: 476.45 | D81: 476.95 | E81: 469.40 | F81: 462.35 | G81: 454.80 | H81: 484.00 | I81: 491.55 | J81: 498.60 | K81: 484.5 | L81: 469.9 | M81: 115.21788
A82: 72 | B82: BRIGADE | C82: 227.3 | D82: 228.63 | E82: 224.32 | F82: 221.33 | G82: 217.02 | H82: 231.62 | I82: 235.93 | J82: 238.92 | K82: 232.95 | L82: 225.65 | M82: 0.3702
A83: 73 | B83: BRITANNIA | C83: 3096.65 | D83: 3115.32 | E83: 3071.63 | F83: 3046.62 | G83: 3002.93 | H83: 3140.33 | I83: 3184.02 | J83: 3209.03 | K83: 3159 | L83: 3090.3 | M83: 2.70506
A84: 74 | B84: BSE | C84: 523.4 | D84: 525.87 | E84: 517.73 | F84: 512.07 | G84: 503.93 | H84: 531.53 | I84: 539.67 | J84: 545.33 | K84: 534 | L84: 520.2 | M84: 1.17511
A85: 75 | B85: BSOFT | C85: 95.15 | D85: 94.38 | E85: 91.27 | F85: 87.38 | G85: 84.27 | H85: 98.27 | I85: 101.38 | J85: 105.27 | K85: 97.5 | L85: 90.5 | M85: 39.25239
A86: 76 | B86: CADILAHC | C86: 270 | D86: 269.12 | E86: 266.73 | F86: 263.47 | G86: 261.08 | H86: 272.38 | I86: 274.77 | J86: 278.03 | K86: 271.5 | L86: 265.85 | M86: 7.27345
A87: 77 | B87: CANBK | C87: 180.3 | D87: 181.78 | E87: 178.07 | F87: 175.83 | G87: 172.12 | H87: 184.02 | I87: 187.73 | J87: 189.97 | K87: 185.5 | L87: 179.55 | M87: 86.05375
A88: 78 | B88: CANFINHOME | C88: 510.15 | D88: 511.88 | E88: 506.27 | F88: 502.38 | G88: 496.77 | H88: 515.77 | I88: 521.38 | J88: 525.27 | K88: 517.5 | L88: 508 | M88: 3.67636
A89: 79 | B89: CAPLIPOINT | C89: 336.6 | D89: 341.67 | E89: 328.93 | F89: 321.27 | G89: 308.53 | H89: 349.33 | I89: 362.07 | J89: 369.73 | K89: 354.4 | L89: 334 | M89: 1.28782
A90: 80 | B90: CARBORUNIV | C90: 338.2 | D90: 339.17 | E90: 333.33 | F90: 328.47 | G90: 322.63 | H90: 344.03 | I90: 349.87 | J90: 354.73 | K90: 345 | L90: 334.3 | M90: 0.65975
A91: 81 | B91: CARERATING | C91: 527.3 | D91: 536.58 | E91: 514.57 | F91: 501.83 | G91: 479.82 | H91: 549.32 | I91: 571.33 | J91: 584.07 | K91: 558.6 | L91: 523.85 | M91: 4.90393
A92: 82 | B92: CASTROLIND | C92: 158.25 | D92: 159.07 | E92: 155.93 | F92: 153.62 | G92: 150.48 | H92: 161.38 | I92: 164.52 | J92: 166.83 | K92: 162.2 | L92: 156.75 | M92: 33.08404
A93: 83 | B93: CCL | C93: 242.75 | D93: 244.93 | E93: 237.92 | F93: 233.08 | G93: 226.07 | H93: 249.77 | I93: 256.78 | J93: 261.62 | K93: 251.95 | L93: 240.1 | M93: 1.08085
A94: 84 | B94: CDSL | C94: 277.5 | D94: 280.28 | E94: 272.82 | F94: 268.13 | G94: 260.67 | H94: 284.97 | I94: 292.43 | J94: 297.12 | K94: 287.75 | L94: 275.6 | M94: 5.11153
A95: 85 | B95: CEATLTD | C95: 1014.95 | D95: 1019.30 | E95: 996.70 | F95: 978.45 | G95: 955.85 | H95: 1037.55 | I95: 1060.15 | J95: 1078.40 | K95: 1041.9 | L95: 1001.05 | M95: 0.90088
A96: 86 | B96: CENTRALBK | C96: 17.15 | D96: 17.28 | E96: 16.97 | F96: 16.78 | G96: 16.47 | H96: 17.47 | I96: 17.78 | J96: 17.97 | K96: 17.6 | L96: 17.1 | M96: 4.59999
A97: 87 | B97: CENTURYPLY | C97: 160.25 | D97: 161.33 | E97: 157.67 | F97: 155.08 | G97: 151.42 | H97: 163.92 | I97: 167.58 | J97: 170.17 | K97: 165 | L97: 158.75 | M97: 1.87092
A98: 88 | B98: CERA | C98: 2454.4 | D98: 2477.80 | E98: 2426.60 | F98: 2398.80 | G98: 2347.60 | H98: 2505.60 | I98: 2556.80 | J98: 2584.60 | K98: 2529 | L98: 2450 | M98: 0.14224
A99: 89 | B99: CESC | C99: 713.35 | D99: 718.70 | E99: 704.70 | F99: 696.05 | G99: 682.05 | H99: 727.35 | I99: 741.35 | J99: 750.00 | K99: 732.7 | L99: 710.05 | M99: 2.32145
A100: 90 | B100: CGCL | C100: 220.55 | D100: 222.62 | E100: 215.23 | F100: 209.92 | G100: 202.53 | H100: 227.93 | I100: 235.32 | J100: 240.63 | K100: 230 | L100: 217.3 | M100: 4.40708
A101: 91 | B101: CHALET | C101: 341.35 | D101: 344.55 | E101: 337.55 | F101: 333.75 | G101: 326.75 | H101: 348.35 | I101: 355.35 | J101: 359.15 | K101: 351.55 | L101: 340.75 | M101: 0.05066
A102: 92 | B102: CHAMBLFERT | C102: 162.9 | D102: 161.82 | E102: 158.13 | F102: 153.37 | G102: 149.68 | H102: 166.58 | I102: 170.27 | J102: 175.03 | K102: 165.5 | L102: 157.05 | M102: 3.21935
A103: 93 | B103: CHENNPETRO | C103: 118.3 | D103: 119.15 | E103: 114.25 | F103: 110.20 | G103: 105.30 | H103: 123.20 | I103: 128.10 | J103: 132.15 | K103: 124.05 | L103: 115.1 | M103: 8.38745
A104: 94 | B104: CHOLAFIN | C104: 332.75 | D104: 334.10 | E104: 329.25 | F104: 325.75 | G104: 320.90 | H104: 337.60 | I104: 342.45 | J104: 345.95 | K104: 338.95 | L104: 330.6 | M104: 6.24421
A105: 95 | B105: CHOLAHLDNG | C105: 544 | D105: 542.92 | E105: 537.38 | F105: 530.77 | G105: 525.23 | H105: 549.53 | I105: 555.07 | J105: 561.68 | K105: 548.45 | L105: 536.3 | M105: 0.2943
A106: 96 | B106: CIPLA | C106: 447.1 | D106: 445.83 | E106: 442.77 | F106: 438.43 | G106: 435.37 | H106: 450.17 | I106: 453.23 | J106: 457.57 | K106: 448.9 | L106: 441.5 | M106: 18.1478
A107: 97 | B107: COALINDIA | C107: 174.75 | D107: 175.95 | E107: 173.00 | F107: 171.25 | G107: 168.30 | H107: 177.70 | I107: 180.65 | J107: 182.40 | K107: 178.9 | L107: 174.2 | M107: 153.92705
A108: 98 | B108: COCHINSHIP | C108: 352.1 | D108: 354.32 | E108: 347.78 | F108: 343.47 | G108: 336.93 | H108: 358.63 | I108: 365.17 | J108: 369.48 | K108: 360.85 | L108: 350 | M108: 2.37893
A109: 99 | B109: COLPAL | C109: 1340.3 | D109: 1343.95 | E109: 1329.15 | F109: 1318.00 | G109: 1303.20 | H109: 1355.10 | I109: 1369.90 | J109: 1381.05 | K109: 1358.75 | L109: 1332.8 | M109: 3.02469
A110: 100 | B110: CONCOR | C110: 560.2 | D110: 561.73 | E110: 556.52 | F110: 552.83 | G110: 547.62 | H110: 565.42 | I110: 570.63 | J110: 574.32 | K110: 566.95 | L110: 558.05 | M110: 6.8495
A111: 101 | B111: COROMANDEL | C111: 633.2 | D111: 631.73 | E111: 626.52 | F111: 619.83 | G111: 614.62 | H111: 638.42 | I111: 643.63 | J111: 650.32 | K111: 636.95 | L111: 625.05 | M111: 2.28021
A112: 102 | B112: CREDITACC | C112: 848.1 | D112: 855.88 | E112: 833.77 | F112: 819.43 | G112: 797.32 | H112: 870.22 | I112: 892.33 | J112: 906.67 | K112: 878 | L112: 841.55 | M112: 1.11039
A113: 103 | B113: CRISIL | C113: 1585.3 | D113: 1584.67 | E113: 1549.28 | F113: 1513.27 | G113: 1477.88 | H113: 1620.68 | I113: 1656.07 | J113: 1692.08 | K113: 1620.05 | L113: 1548.65 | M113: 0.14027
A114: 104 | B114: CROMPTON | C114: 281.9 | D114: 280.08 | E114: 275.37 | F114: 268.83 | G114: 264.12 | H114: 286.62 | I114: 291.33 | J114: 297.87 | K114: 284.8 | L114: 273.55 | M114: 7.54034
A115: 105 | B115: CUB | C115: 220.35 | D115: 220.65 | E115: 217.45 | F115: 214.55 | G115: 211.35 | H115: 223.55 | I115: 226.75 | J115: 229.65 | K115: 223.85 | L115: 217.75 | M115: 17.03627
A116: 106 | B116: CUMMINSIND | C116: 536.95 | D116: 541.53 | E116: 530.87 | F116: 524.78 | G116: 514.12 | H116: 547.62 | I116: 558.28 | J116: 564.37 | K116: 552.2 | L116: 535.45 | M116: 3.32513
A117: 107 | B117: CYIENT | C117: 456.05 | D117: 456.48 | E117: 453.02 | F117: 449.98 | G117: 446.52 | H117: 459.52 | I117: 462.98 | J117: 466.02 | K117: 459.95 | L117: 453.45 | M117: 0.85134
A118: 108 | B118: DABUR | C118: 506.1 | D118: 508.83 | E118: 500.72 | F118: 495.33 | G118: 487.22 | H118: 514.22 | I118: 522.33 | J118: 527.72 | K118: 516.95 | L118: 503.45 | M118: 12.60687
A119: 109 | B119: DALBHARAT | C119: 852.8 | D119: 860.32 | E119: 842.53 | F119: 832.27 | G119: 814.48 | H119: 870.58 | I119: 888.37 | J119: 898.63 | K119: 878.1 | L119: 850.05 | M119: 0.95605
A120: 110 | B120: DBCORP | C120: 126 | D120: 126.85 | E120: 124.10 | F120: 122.20 | G120: 119.45 | H120: 128.75 | I120: 131.50 | J120: 133.40 | K120: 129.6 | L120: 124.95 | M120: 0.37265
A121: 111 | B121: DBL | C121: 375 | D121: 376.28 | E121: 368.82 | F121: 362.63 | G121: 355.17 | H121: 382.47 | I121: 389.93 | J121: 396.12 | K121: 383.75 | L121: 370.1 | M121: 1.1191
A122: 112 | B122: DCAL | C122: 95.3 | D122: 95.82 | E122: 94.78 | F122: 94.27 | G122: 93.23 | H122: 96.33 | I122: 97.37 | J122: 97.88 | K122: 96.85 | L122: 95.3 | M122: 4.47126
A123: 113 | B123: DCBBANK | C123: 173.9 | D123: 173.58 | E123: 172.37 | F123: 170.83 | G123: 169.62 | H123: 175.12 | I123: 176.33 | J123: 177.87 | K123: 174.8 | L123: 172.05 | M123: 3.49084
A124: 114 | B124: DCMSHRIRAM | C124: 358.95 | D124: 355.30 | E124: 348.65 | F124: 338.35 | G124: 331.70 | H124: 365.60 | I124: 372.25 | J124: 382.55 | K124: 361.95 | L124: 345 | M124: 0.84864
A125: 115 | B125: DEEPAKNTR | C125: 459.85 | D125: 449.60 | E125: 434.30 | F125: 408.75 | G125: 393.45 | H125: 475.15 | I125: 490.45 | J125: 516.00 | K125: 464.9 | L125: 424.05 | M125: 20.16075
A126: 116 | B126: DELTACORP | C126: 161.25 | D126: 162.37 | E126: 159.13 | F126: 157.02 | G126: 153.78 | H126: 164.48 | I126: 167.72 | J126: 169.83 | K126: 165.6 | L126: 160.25 | M126: 6.2047
A127: 117 | B127: DHFL | C127: 10.05 | D127: 9.97 | E127: 9.88 | F127: 9.72 | G127: 9.63 | H127: 10.13 | I127: 10.22 | J127: 10.38 | K127: 10.05 | L127: 9.8 | M127: 39.24662
A128: 118 | B128: DISHTV | C128: 11.8 | D128: 11.93 | E128: 11.62 | F128: 11.43 | G128: 11.12 | H128: 12.12 | I128: 12.43 | J128: 12.62 | K128: 12.25 | L128: 11.75 | M128: 54.1743
A129: 119 | B129: DIVISLAB | C129: 2146.45 | D129: 2157.38 | E129: 2124.77 | F129: 2103.08 | G129: 2070.47 | H129: 2179.07 | I129: 2211.68 | J129: 2233.37 | K129: 2190 | L129: 2135.7 | M129: 6.60382
A130: 120 | B130: DIXON | C130: 4489.7 | D130: 4556.80 | E130: 4370.60 | F130: 4251.50 | G130: 4065.30 | H130: 4675.90 | I130: 4862.10 | J130: 4981.20 | K130: 4743 | L130: 4437.7 | M130: 0.64059
A131: 121 | B131: DLF | C131: 226.2 | D131: 228.37 | E131: 222.28 | F131: 218.37 | G131: 212.28 | H131: 232.28 | I131: 238.37 | J131: 242.28 | K131: 234.45 | L131: 224.45 | M131: 67.57171
A132: 122 | B132: DMART | C132: 2408.35 | D132: 2426.78 | E132: 2354.57 | F132: 2300.78 | G132: 2228.57 | H132: 2480.57 | I132: 2552.78 | J132: 2606.57 | K132: 2499 | L132: 2373 | M132: 47.17819
A133: 123 | B133: DRREDDY | C133: 3304.3 | D133: 3304.77 | E133: 3276.53 | F133: 3248.77 | G133: 3220.53 | H133: 3332.53 | I133: 3360.77 | J133: 3388.53 | K133: 3333 | L133: 3277 | M133: 7.06686
A134: 124 | B134: ECLERX | C134: 617.65 | D134: 624.40 | E134: 608.80 | F134: 599.95 | G134: 584.35 | H134: 633.25 | I134: 648.85 | J134: 657.70 | K134: 640 | L134: 615.55 | M134: 0.25184
A135: 125 | B135: EDELWEISS | C135: 88.55 | D135: 89.42 | E135: 87.23 | F135: 85.92 | G135: 83.73 | H135: 90.73 | I135: 92.92 | J135: 94.23 | K135: 91.6 | L135: 88.1 | M135: 6.35922
A136: 126 | B136: EICHERMOT | C136: 18703.55 | D136: 18852.85 | E136: 18355.70 | F136: 18007.85 | G136: 17510.70 | H136: 19200.70 | I136: 19697.85 | J136: 20045.70 | K136: 19350 | L136: 18505 | M136: 2.31872
A137: 127 | B137: EIDPARRY | C137: 215.15 | D137: 217.70 | E137: 211.95 | F137: 208.75 | G137: 203.00 | H137: 220.90 | I137: 226.65 | J137: 229.85 | K137: 223.45 | L137: 214.5 | M137: 0.89819
A138: 128 | B138: EIHOTEL | C138: 138.4 | D138: 138.90 | E138: 137.50 | F138: 136.60 | G138: 135.20 | H138: 139.80 | I138: 141.20 | J138: 142.10 | K138: 140.3 | L138: 138 | M138: 0.36342
A139: 129 | B139: ELGIEQUIP | C139: 224.75 | D139: 227.58 | E139: 220.17 | F139: 215.58 | G139: 208.17 | H139: 232.17 | I139: 239.58 | J139: 244.17 | K139: 235 | L139: 223 | M139: 0.11799
A140: 130 | B140: EMAMILTD | C140: 275.8 | D140: 278.88 | E140: 269.17 | F140: 262.53 | G140: 252.82 | H140: 285.52 | I140: 295.23 | J140: 301.87 | K140: 288.6 | L140: 272.25 | M140: 7.19197
A141: 131 | B141: ENDURANCE | C141: 1063.95 | D141: 1073.32 | E141: 1046.63 | F141: 1029.32 | G141: 1002.63 | H141: 1090.63 | I141: 1117.32 | J141: 1134.63 | K141: 1100 | L141: 1056 | M141: 0.08201
A142: 132 | B142: ENGINERSIN | C142: 84.65 | D142: 85.08 | E142: 83.67 | F142: 82.68 | G142: 81.27 | H142: 86.07 | I142: 87.48 | J142: 88.47 | K142: 86.5 | L142: 84.1 | M142: 19.64967
A143: 133 | B143: EQUITAS | C143: 108.05 | D143: 109.10 | E143: 106.20 | F143: 104.35 | G143: 101.45 | H143: 110.95 | I143: 113.85 | J143: 115.70 | K143: 112 | L143: 107.25 | M143: 26.04361
A144: 134 | B144: ERIS | C144: 465.5 | D144: 480.88 | E144: 435.97 | F144: 406.43 | G144: 361.52 | H144: 510.42 | I144: 555.33 | J144: 584.87 | K144: 525.8 | L144: 451.35 | M144: 2.70435
A145: 135 | B145: ESCORTS | C145: 883.05 | D145: 884.88 | E145: 877.77 | F145: 872.48 | G145: 865.37 | H145: 890.17 | I145: 897.28 | J145: 902.57 | K145: 892 | L145: 879.6 | M145: 17.01432
A146: 136 | B146: ESSELPACK | C146: 185.4 | D146: 186.38 | E146: 181.02 | F146: 176.63 | G146: 171.27 | H146: 190.77 | I146: 196.13 | J146: 200.52 | K146: 191.75 | L146: 182 | M146: 4.90367
A147: 137 | B147: EXIDEIND | C147: 179.05 | D147: 179.78 | E147: 176.92 | F147: 174.78 | G147: 171.92 | H147: 181.92 | I147: 184.78 | J147: 186.92 | K147: 182.65 | L147: 177.65 | M147: 23.29005
A148: 138 | B148: FCONSUMER | C148: 21.6 | D148: 21.80 | E148: 21.10 | F148: 20.60 | G148: 19.90 | H148: 22.30 | I148: 23.00 | J148: 23.50 | K148: 22.5 | L148: 21.3 | M148: 10.65385
A149: 139 | B149: FDC | C149: 246.9 | D149: 248.75 | E149: 244.70 | F149: 242.50 | G149: 238.45 | H149: 250.95 | I149: 255.00 | J149: 257.20 | K149: 252.8 | L149: 246.55 | M149: 0.66967
A150: 140 | B150: FEDERALBNK | C150: 87.15 | D150: 87.95 | E150: 85.95 | F150: 84.75 | G150: 82.75 | H150: 89.15 | I150: 91.15 | J150: 92.35 | K150: 89.95 | L150: 86.75 | M150: 72.97847
A151: 141 | B151: FINCABLES | C151: 380.5 | D151: 382.43 | E151: 373.32 | F151: 366.13 | G151: 357.02 | H151: 389.62 | I151: 398.73 | J151: 405.92 | K151: 391.55 | L151: 375.25 | M151: 0.2501
A152: 142 | B152: FINEORG | C152: 2228.1 | D152: 2253.90 | E152: 2182.25 | F152: 2136.40 | G152: 2064.75 | H152: 2299.75 | I152: 2371.40 | J152: 2417.25 | K152: 2325.55 | L152: 2208.05 | M152: 0.17411
A153: 143 | B153: FINPIPE | C153: 539.95 | D153: 542.32 | E153: 536.63 | F153: 533.32 | G153: 527.63 | H153: 545.63 | I153: 551.32 | J153: 554.63 | K153: 548 | L153: 539 | M153: 0.18661
A154: 144 | B154: FLFL | C154: 388.15 | D154: 390.38 | E154: 382.97 | F154: 377.78 | G154: 370.37 | H154: 395.57 | I154: 402.98 | J154: 408.17 | K154: 397.8 | L154: 385.2 | M154: 0.27866
A155: 145 | B155: FMGOETZE | C155: 565.15 | D155: 565.40 | E155: 555.80 | F155: 546.45 | G155: 536.85 | H155: 574.75 | I155: 584.35 | J155: 593.70 | K155: 575 | L155: 556.05 | M155: 0.00783
A156: 146 | B156: FORTIS | C156: 156.1 | D156: 156.83 | E156: 154.37 | F156: 152.63 | G156: 150.17 | H156: 158.57 | I156: 161.03 | J156: 162.77 | K156: 159.3 | L156: 155.1 | M156: 8.82359
A157: 147 | B157: FRETAIL | C157: 375.2 | D157: 375.27 | E157: 368.53 | F157: 361.87 | G157: 355.13 | H157: 381.93 | I157: 388.67 | J157: 395.33 | K157: 382 | L157: 368.6 | M157: 9.01552
A158: 148 | B158: FSL | C158: 41.85 | D158: 42.02 | E158: 41.38 | F158: 40.92 | G158: 40.28 | H158: 42.48 | I158: 43.12 | J158: 43.58 | K158: 42.65 | L158: 41.55 | M158: 7.06838
A159: 149 | B159: GAIL | C159: 122.55 | D159: 125.33 | E159: 119.17 | F159: 115.78 | G159: 109.62 | H159: 128.72 | I159: 134.88 | J159: 138.27 | K159: 131.5 | L159: 121.95 | M159: 287.20617
A160: 150 | B160: GALAXYSURF | C160: 1656.25 | D160: 1668.25 | E160: 1628.00 | F160: 1599.75 | G160: 1559.50 | H160: 1696.50 | I160: 1736.75 | J160: 1765.00 | K160: 1708.5 | L160: 1640 | M160: 0.12425
A161: 151 | B161: GARFIBRES | C161: 1496 | D161: 1488.78 | E161: 1477.57 | F161: 1459.13 | G161: 1447.92 | H161: 1507.22 | I161: 1518.43 | J161: 1536.87 | K161: 1500 | L161: 1470.35 | M161: 0.05939
A162: 152 | B162: GAYAPROJ | C162: 31 | D162: 31.00 | E162: 31.00 | F162: 31.00 | G162: 31.00 | H162: 31.00 | I162: 31.00 | J162: 31.00 | K162: 31 | L162: 31 | M162: 0.92171
A163: 153 | B163: GEPIL | C163: 768 | D163: 785.33 | E163: 743.67 | F163: 719.33 | G163: 677.67 | H163: 809.67 | I163: 851.33 | J163: 875.67 | K163: 827 | L163: 761 | M163: 0.10324
A164: 154 | B164: GESHIP | C164: 284.95 | D164: 286.32 | E164: 279.63 | F164: 274.32 | G164: 267.63 | H164: 291.63 | I164: 298.32 | J164: 303.63 | K164: 293 | L164: 281 | M164: 1.56037
A165: 155 | B165: GET&D | C165: 144.4 | D165: 146.00 | E165: 142.20 | F165: 140.00 | G165: 136.20 | H165: 148.20 | I165: 152.00 | J165: 154.20 | K165: 149.8 | L165: 143.8 | M165: 0.46793
A166: 156 | B166: GHCL | C166: 179.4 | D166: 180.57 | E166: 177.33 | F166: 175.27 | G166: 172.03 | H166: 182.63 | I166: 185.87 | J166: 187.93 | K166: 183.8 | L166: 178.5 | M166: 2.13761
A167: 157 | B167: GICRE | C167: 218 | D167: 221.67 | E167: 212.63 | F167: 207.27 | G167: 198.23 | H167: 227.03 | I167: 236.07 | J167: 241.43 | K167: 230.7 | L167: 216.3 | M167: 3.4859
A168: 158 | B168: GILLETTE | C168: 6260.65 | D168: 6300.22 | E168: 6190.43 | F168: 6120.22 | G168: 6010.43 | H168: 6370.43 | I168: 6480.22 | J168: 6550.43 | K168: 6410 | L168: 6230 | M168: 0.08672
A169: 159 | B169: GLAXO | C169: 1335.95 | D169: 1340.58 | E169: 1322.37 | F169: 1308.78 | G169: 1290.57 | H169: 1354.17 | I169: 1372.38 | J169: 1385.97 | K169: 1358.8 | L169: 1327 | M169: 0.79241
A170: 160 | B170: GLENMARK | C170: 333.8 | D170: 333.03 | E170: 328.77 | F170: 323.73 | G170: 319.47 | H170: 338.07 | I170: 342.33 | J170: 347.37 | K170: 337.3 | L170: 328 | M170: 22.2029
A171: 161 | B171: GMDCLTD | C171: 57.75 | D171: 57.17 | E171: 55.68 | F171: 53.62 | G171: 52.13 | H171: 59.23 | I171: 60.72 | J171: 62.78 | K171: 58.65 | L171: 55.1 | M171: 4.04961
A172: 162 | B172: GMRINFRA | C172: 23.1 | D172: 23.30 | E172: 22.60 | F172: 22.10 | G172: 21.40 | H172: 23.80 | I172: 24.50 | J172: 25.00 | K172: 24 | L172: 22.8 | M172: 239.43592
A173: 163 | B173: GNFC | C173: 183.2 | D173: 184.50 | E173: 179.25 | F173: 175.30 | G173: 170.05 | H173: 188.45 | I173: 193.70 | J173: 197.65 | K173: 189.75 | L173: 180.55 | M173: 6.10217
A174: 164 | B174: GODFRYPHLP | C174: 1373.6 | D174: 1384.53 | E174: 1359.07 | F174: 1344.53 | G174: 1319.07 | H174: 1399.07 | I174: 1424.53 | J174: 1439.07 | K174: 1410 | L174: 1370 | M174: 1.21805
A175: 165 | B175: GODREJAGRO | C175: 520.75 | D175: 531.82 | E175: 504.83 | F175: 488.92 | G175: 461.93 | H175: 547.73 | I175: 574.72 | J175: 590.63 | K175: 558.8 | L175: 515.9 | M175: 7.26186
A176: 166 | B176: GODREJCP | C176: 626.1 | D176: 629.32 | E176: 619.18 | F176: 612.27 | G176: 602.13 | H176: 636.23 | I176: 646.37 | J176: 653.28 | K176: 639.45 | L176: 622.4 | M176: 10.78421
A177: 167 | B177: GODREJIND | C177: 410.25 | D177: 413.98 | E177: 401.97 | F177: 393.68 | G177: 381.67 | H177: 422.27 | I177: 434.28 | J177: 442.57 | K177: 426 | L177: 405.7 | M177: 4.22661
A178: 168 | B178: GODREJPROP | C178: 1139.75 | D178: 1140.25 | E178: 1120.50 | F178: 1101.25 | G178: 1081.50 | H178: 1159.50 | I178: 1179.25 | J178: 1198.50 | K178: 1160 | L178: 1121 | M178: 1.29532
A179: 169 | B179: GPPL | C179: 80.95 | D179: 81.17 | E179: 79.88 | F179: 78.82 | G179: 77.53 | H179: 82.23 | I179: 83.52 | J179: 84.58 | K179: 82.45 | L179: 80.1 | M179: 3.48969
A180: 170 | B180: GRANULES | C180: 175.6 | D180: 174.40 | E180: 169.30 | F180: 163.00 | G180: 157.90 | H180: 180.70 | I180: 185.80 | J180: 192.10 | K180: 179.5 | L180: 168.1 | M180: 52.63958
A181: 171 | B181: GRAPHITE | C181: 283.1 | D181: 284.40 | E181: 274.40 | F181: 265.70 | G181: 255.70 | H181: 293.10 | I181: 303.10 | J181: 311.80 | K181: 294.4 | L181: 275.7 | M181: 18.92032
A182: 172 | B182: GRASIM | C182: 743.05 | D182: 750.33 | E182: 729.82 | F182: 716.58 | G182: 696.07 | H182: 763.57 | I182: 784.08 | J182: 797.32 | K182: 770.85 | L182: 737.1 | M182: 33.99473
A183: 173 | B183: GREAVESCOT | C183: 139.85 | D183: 139.58 | E183: 136.42 | F183: 132.98 | G183: 129.82 | H183: 143.02 | I183: 146.18 | J183: 149.62 | K183: 142.75 | L183: 136.15 | M183: 2.99889
A184: 174 | B184: GRINDWELL | C184: 630.15 | D184: 628.07 | E184: 621.13 | F184: 612.12 | G184: 605.18 | H184: 637.08 | I184: 644.02 | J184: 653.03 | K184: 635 | L184: 619.05 | M184: 0.14069
A185: 175 | B185: GSFC | C185: 73.2 | D185: 73.77 | E185: 71.93 | F185: 70.67 | G185: 68.83 | H185: 75.03 | I185: 76.87 | J185: 78.13 | K185: 75.6 | L185: 72.5 | M185: 2.58217
A186: 176 | B186: GSPL | C186: 241.3 | D186: 240.57 | E186: 236.33 | F186: 231.37 | G186: 227.13 | H186: 245.53 | I186: 249.77 | J186: 254.73 | K186: 244.8 | L186: 235.6 | M186: 8.7525
A187: 177 | B187: GUJALKALI | C187: 375.2 | D187: 374.85 | E187: 370.35 | F187: 365.50 | G187: 361.00 | H187: 379.70 | I187: 384.20 | J187: 389.05 | K187: 379.35 | L187: 370 | M187: 0.51403
A188: 178 | B188: GUJGASLTD | C188: 299.6 | D188: 299.08 | E188: 296.97 | F188: 294.33 | G188: 292.22 | H188: 301.72 | I188: 303.83 | J188: 306.47 | K188: 301.2 | L188: 296.45 | M188: 4.38421
A189: 179 | B189: GULFOILLUB | C189: 779.2 | D189: 782.33 | E189: 771.87 | F189: 764.53 | G189: 754.07 | H189: 789.67 | I189: 800.13 | J189: 807.47 | K189: 792.8 | L189: 775 | M189: 0.04738
A190: 180 | B190: HAL | C190: 748.75 | D190: 752.95 | E190: 740.90 | F190: 733.05 | G190: 721.00 | H190: 760.80 | I190: 772.85 | J190: 780.70 | K190: 765 | L190: 745.1 | M190: 0.15168
A191: 181 | B191: HATSUN | C191: 659.6 | D191: 660.50 | E191: 657.10 | F191: 654.60 | G191: 651.20 | H191: 663.00 | I191: 666.40 | J191: 668.90 | K191: 663.9 | L191: 658 | M191: 0.02698
A192: 182 | B192: HAVELLS | C192: 611.65 | D192: 614.67 | E192: 605.83 | F192: 600.02 | G192: 591.18 | H192: 620.48 | I192: 629.32 | J192: 635.13 | K192: 623.5 | L192: 608.85 | M192: 10.09884
A193: 183 | B193: HCLTECH | C193: 621.65 | D193: 619.05 | E193: 614.85 | F193: 608.05 | G193: 603.85 | H193: 625.85 | I193: 630.05 | J193: 636.85 | K193: 623.25 | L193: 612.25 | M193: 36.5063
A194: 184 | B194: HDFC | C194: 2401.75 | D194: 2405.67 | E194: 2385.48 | F194: 2369.22 | G194: 2349.03 | H194: 2421.93 | I194: 2442.12 | J194: 2458.38 | K194: 2425.85 | L194: 2389.4 | M194: 26.1151
A195: 185 | B195: HDFCAMC | C195: 3327 | D195: 3341.00 | E195: 3304.00 | F195: 3281.00 | G195: 3244.00 | H195: 3364.00 | I195: 3401.00 | J195: 3424.00 | K195: 3378 | L195: 3318 | M195: 2.07023
A196: 186 | B196: HDFCBANK | C196: 1219.35 | D196: 1227.58 | E196: 1206.77 | F196: 1194.18 | G196: 1173.37 | H196: 1240.17 | I196: 1260.98 | J196: 1273.57 | K196: 1248.4 | L196: 1215 | M196: 73.44429
A197: 187 | B197: HDFCLIFE | C197: 573.95 | D197: 575.82 | E197: 570.13 | F197: 566.32 | G197: 560.63 | H197: 579.63 | I197: 585.32 | J197: 589.13 | K197: 581.5 | L197: 572 | M197: 23.32181
A198: 188 | B198: HEG | C198: 1025.95 | D198: 1032.87 | E198: 1011.08 | F198: 996.22 | G198: 974.43 | H198: 1047.73 | I198: 1069.52 | J198: 1084.38 | K198: 1054.65 | L198: 1018 | M198: 2.61189
A199: 189 | B199: HEIDELBERG | C199: 197.05 | D199: 197.73 | E199: 195.47 | F199: 193.88 | G199: 191.62 | H199: 199.32 | I199: 201.58 | J199: 203.17 | K199: 200 | L199: 196.15 | M199: 1.91283
A200: 190 | B200: HERITGFOOD | C200: 330.9 | D200: 333.68 | E200: 325.22 | F200: 319.53 | G200: 311.07 | H200: 339.37 | I200: 347.83 | J200: 353.52 | K200: 342.15 | L200: 328 | M200: 0.1176
A201: 191 | B201: HEROMOTOCO | C201: 2356.5 | D201: 2381.80 | E201: 2325.80 | F201: 2295.10 | G201: 2239.10 | H201: 2412.50 | I201: 2468.50 | J201: 2499.20 | K201: 2437.8 | L201: 2351.1 | M201: 7.9877
A202: 192 | B202: HEXAWARE | C202: 371.1 | D202: 371.53 | E202: 361.57 | F202: 352.03 | G202: 342.07 | H202: 381.07 | I202: 391.03 | J202: 400.57 | K202: 381.5 | L202: 362 | M202: 3.75706
A203: 193 | B203: HFCL | C203: 16.9 | D203: 16.88 | E203: 16.82 | F203: 16.73 | G203: 16.67 | H203: 16.97 | I203: 17.03 | J203: 17.12 | K203: 16.95 | L203: 16.8 | M203: 11.52279
A204: 194 | B204: HIMATSEIDE | C204: 105 | D204: 105.93 | E204: 103.07 | F204: 101.13 | G204: 98.27 | H204: 107.87 | I204: 110.73 | J204: 112.67 | K204: 108.8 | L204: 104 | M204: 1.45513
A205: 195 | B205: HINDALCO | C205: 194 | D205: 194.82 | E205: 192.63 | F205: 191.27 | G205: 189.08 | H205: 196.18 | I205: 198.37 | J205: 199.73 | K205: 197 | L205: 193.45 | M205: 37.98528
A206: 196 | B206: HINDCOPPER | C206: 38 | D206: 38.28 | E206: 37.47 | F206: 36.93 | G206: 36.12 | H206: 38.82 | I206: 39.63 | J206: 40.17 | K206: 39.1 | L206: 37.75 | M206: 18.96231
... 321 more rows

Sheet Bulk Deals
E6: Back To Main Page
A7: Subject : | B7: BULK DEAL | D7: =Main!B10 -> 2020-02-17
A9: Date | B9: Scrip code | C9: Scrip Name | D9: Client Name | E9: Buy / Sell | F9: Quantity Traded | G9: Trade Price / Wt.Avg.trade price | H9: Exchange
A10: 2020-02-14 | B10: 532694 | C10: BARTRONICS | D10: ANSHUL KETAN KARANI | E10: BUY | F10: 175,000 | G10: 1.11 | H10: BSE
A11: 2020-02-14 | B11: 542934 | C11: CBPL | D11: SUNNY KANTILAL SOLANKI (HUF) | E11: BUY | F11: 96,000 | G11: 51.84 | H11: BSE
A12: 2020-02-14 | B12: 542934 | C12: CBPL | D12: FALAN TRADING CO. | E12: BUY | F12: 96,000 | G12: 51.9 | H12: BSE
A13: 2020-02-14 | B13: 542934 | C13: CBPL | D13: SUFAL INVESTMENT | E13: BUY | F13: 96,000 | G13: 51.7 | H13: BSE
A14: 2020-02-14 | B14: 542934 | C14: CBPL | D14: FALGUNI SUNNY FALGUNI SUNNY SOLANKI | E14: BUY | F14: 96,000 | G14: 51.8 | H14: BSE
A15: 2020-02-14 | B15: 542934 | C15: CBPL | D15: SUNNY KANTILAL SOLANKI | E15: BUY | F15: 96,000 | G15: 51.89 | H15: BSE
A16: 2020-02-14 | B16: 542934 | C16: CBPL | D16: ANKITKUMAR MULJIBHAI SOLANKI | E16: BUY | F16: 96,000 | G16: 51.7 | H16: BSE
A17: 2020-02-14 | B17: 542934 | C17: CBPL | D17: ANSU INVESTMENT | E17: BUY | F17: 192,000 | G17: 51.77 | H17: BSE
A18: 2020-02-14 | B18: 542934 | C18: CBPL | D18: JAYESH BHAGUBHAI GANDHI | E18: SELL | F18: 48,000 | G18: 51.82 | H18: BSE
A19: 2020-02-14 | B19: 540743 | C19: GODREJAGRO | D19: VSCIENCES INVESTMENTS PTE LTD | E19: SELL | F19: 1,892,369 | G19: 539.13 | H19: BSE
A20: 2020-02-14 | B20: 540743 | C20: GODREJAGRO | D20: GODREJ INDUSTRIES LTD | E20: BUY | F20: 1,610,000 | G20: 538.93 | H20: BSE
A21: 2020-02-14 | B21: 540134 | C21: IISL | D21: MUKESHKUMAR MAVJIBHAI PARMAR | E21: BUY | F21: 32,700 | G21: 16.69 | H21: BSE
A22: 2020-02-14 | B22: 540134 | C22: IISL | D22: RAMNATH SHARMA | E22: SELL | F22: 40,000 | G22: 16.66 | H22: BSE
A23: 2020-02-14 | B23: 540565 | C23: INDIGRID | D23: L ANT EMPLOYEES WELFARE FOUNDATION PRIVATE LIMITED | E23: BUY | F23: 10,353,987 | G23: 96.35 | H23: BSE
A24: 2020-02-14 | B24: 540565 | C24: INDIGRID | D24: VEDANTA LIMITED | E24: SELL | F24: 12,942,909 | G24: 96.35 | H24: BSE
A25: 2020-02-14 | B25: 523586 | C25: INDTONER | D25: KAUSHIK DAGA . | E25: SELL | F25: 97,248 | G25: 91.66 | H25: BSE
A26: 2020-02-14 | B26: 538537 | C26: OMANSH | D26: ARMINDER SINGH | E26: BUY | F26: 91,000 | G26: 0.99 | H26: BSE
A27: 2020-02-14 | B27: 542145 | C27: RONI | D27: ARYAMAN BROKING LIMITED | E27: SELL | F27: 30,000 | G27: 33 | H27: BSE
A28: 2020-02-14 | B28: 542145 | C28: RONI | D28: B M TRADERS | E28: BUY | F28: 24,000 | G28: 33 | H28: BSE
A29: 2020-02-14 | B29: 539363 | C29: SKC | D29: RAKESHKUMAR BABULAL PUROHIT | E29: BUY | F29: 82,000 | G29: 11.98 | H29: BSE
A30: 2020-02-14 | B30: 539363 | C30: SKC | D30: SURESH BALAKRISHNA | E30: SELL | F30: 82,000 | G30: 11.98 | H30: BSE
A31: 2020-02-14 | B31: 506655 | C31: SUDARSCHEM | D31: KISHOR LAXMINARAYAN RATHI | E31: SELL | F31: 500,000 | G31: 455 | H31: BSE
A32: 2020-02-14 | B32: 506655 | C32: SUDARSCHEM | D32: ROHIT KISHOR RATHI | E32: SELL | F32: 500,000 | G32: 455 | H32: BSE
A33: 2020-02-14 | B33: 506655 | C33: SUDARSCHEM | D33: AXIS MUTUAL FUND | E33: BUY | F33: 750,000 | G33: 455 | H33: BSE
A34: 2020-02-14 | B34: 542765 | C34: TRANSPACT | D34: SAJANKUMAR RAMESHWARLAL BAJAJ | E34: BUY | F34: 2,000 | G34: 135 | H34: BSE
A35: 2020-02-14 | B35: 526775 | C35: VALIANT | D35: SHOMPA SOOD | E35: BUY | F35: 45,154 | G35: 24.89 | H35: BSE
A36: 2020-02-14 | B36: 526775 | C36: VALIANT | D36: MOHINI SINGH | E36: SELL | F36: 40,000 | G36: 24.89 | H36: BSE
A37: 2020-02-14 | B37: 539222 | C37: VMV | D37: ESPS FINSERVE PRIVATE LIMITED. | E37: BUY | F37: 30,000 | G37: 31.58 | H37: BSE
A38: 2020-02-14 | B38: 539222 | C38: VMV | D38: JITENDRA MANSUKHLAL SHAH | E38: SELL | F38: 40,000 | G38: 27 | H38: BSE
A39: 2020-02-14 | B39: BVCL | C39: Barak Valley Cements Limi | D39: BINA GARODIA | E39: BUY | F39: 185,541 | G39: 13 | H39: NSE
A40: 2020-02-14 | B40: CANDC | C40: C & C Constructions Limit | D40: NIKHIL R JAIN | E40: BUY | F40: 640,000 | G40: 2.3 | H40: NSE
A41: 2020-02-14 | B41: HSIL | C41: HSIL Limited | D41: PARTH INFIN BROKERS PVT LTD | E41: BUY | F41: 381,288 | G41: 64.83 | H41: NSE
A42: 2020-02-14 | B42: IDEA | C42: Vodafone Idea Limited | D42: SKYVEIL TRADE SOLUTIONS LLP | E42: BUY | F42: 206,373,381 | G42: 4.12 | H42: NSE
A43: 2020-02-14 | B43: PIONDIST | C43: Pioneer Dist Ltd | D43: MANGAL KESHAV CAPITAL LIMITED | E43: BUY | F43: 115,150 | G43: 144.08 | H43: NSE
A44: 2020-02-14 | B44: SHRADHA | C44: Shradha Infraprojects Ltd | D44: RAVINDRA MALOO HUF | E44: BUY | F44: 80,000 | G44: 30 | H44: NSE
A45: 2020-02-14 | B45: SUBEX | C45: Subex Limited | D45: ANAGHA ADVISORS LLP | E45: BUY | F45: 3,319,543 | G45: 5.25 | H45: NSE
A46: 2020-02-14 | B46: BVCL | C46: Barak Valley Cements Limi | D46: BIJAY KUMAR GARODIA | E46: SELL | F46: 200,000 | G46: 13 | H46: NSE
A47: 2020-02-14 | B47: CANDC | C47: C & C Constructions Limit | D47: RAMESH KUMAR JAIN | E47: SELL | F47: 358,001 | G47: 2.3 | H47: NSE
A48: 2020-02-14 | B48: CANDC | C48: C & C Constructions Limit | D48: RAMESH JAIN HUF | E48: SELL | F48: 282,827 | G48: 2.3 | H48: NSE
A49: 2020-02-14 | B49: HSIL | C49: HSIL Limited | D49: PARTH INFIN BROKERS PVT LTD | E49: SELL | F49: 411,269 | G49: 64.45 | H49: NSE
A50: 2020-02-14 | B50: IDEA | C50: Vodafone Idea Limited | D50: SKYVEIL TRADE SOLUTIONS LLP | E50: SELL | F50: 203,433,381 | G50: 4.06 | H50: NSE
A51: 2020-02-14 | B51: REFEX | C51: Refex Industries Limited | D51: M.C.PARIKH-HUF | E51: SELL | F51: 143,000 | G51: 69.8 | H51: NSE
A52: 2020-02-14 | B52: SHRADHA | C52: Shradha Infraprojects Ltd | D52: SHILPA MALOO | E52: SELL | F52: 80,000 | G52: 30 | H52: NSE

Sheet Call Tracker (Equity & F&O)
M5: Back To Main Page
A6: Retail Research Technical Calls & Fundamental Performance Report for the month of February-2020
M7: =Main!B10 -> 2020-02-17
B8: Positional Call
A9: Sr.no | B9: Date | D9: Company | E9: Rec | F9: Rec Price | G9: Stop Loss*** | H9: Call Closed At | I9: Target | J9: Remark | K9: Profit / Loss per Share | L9: Gain / Loss % | M9: Status | N9: Closed Date | O9: NSE Closed Price
A10: 1 | B10: 2020-01-07 | D10: ITC | E10: Buy | F10: 237 | G10: 222.2 | H10: 220 | I10: 255-260 | J10: Loss of Rs.17/- | K10: =H10-F10 -> -17 | L10: =K10/F10 -> -7.17% | M10: Unsuccessful | N10: 2020-02-01 | R10: R
A11: 2 | B11: 2020-01-20 | D11: IOC | E11: Buy | F11: 117.5 | G11: 114 | H11: 117.25 | I11: 130 | J11: Loss of Rs.0.25/- | K11: =H11-F11 -> -0.25 | L11: =K11/F11 -> -0.21% | M11: Neutral | N11: 2020-02-01 | R11: H
A12: 3 | B12: 2020-02-03 | D12: FINPIPE | E12: Buy | F12: 552.5 | G12: 518 | H12: 567.5 | I12: 600-630 | J12: Profit of Rs.15/- | K12: =H12-F12 -> 15 | L12: =K12/F12 -> 2.71% | M12: Successful | N12: 2020-02-03 | R12: H
A13: 4 | B13: 2020-02-03 | D13: POWERGRID | E13: Buy | F13: 183 | G13: 169 | H13: 190 | I13: 200-210 | J13: Profit of Rs.7/- | K13: =H13-F13 -> 7 | L13: =K13/F13 -> 3.83% | M13: Successful | N13: 2020-02-03 | R13: H
A14: 5 | B14: 2020-02-04 | D14: MARICO | E14: Buy | F14: 306-308 | G14: 287.8 | I14: 335-345 | J14: Open | O14: =VLOOKUP(D14,Sheet2!A2:H1667,6,0) -> 302.2 | R14: R
A15: 6 | B15: 2020-02-04 | D15: BAJAJFINSV | E15: Sell | F15: 9500-9550 | G15: 10100 | I15: 8500-8300 | J15: Open | O15: =VLOOKUP(D15,Sheet2!A3:H1668,6,0) -> 9690.5 | R15: H
A16: 7 | B16: 2020-02-05 | D16: INDHOTEL | E16: Buy | F16: 140-141 | G16: 132 | I16: 152-158 | J16: Open | O16: =VLOOKUP(D16,Sheet2!A4:H1669,6,0) -> 134.05 | R16: H
A17: 8 | B17: 2020-02-05 | D17: FINPIPE | E17: Buy | F17: 550-554 | G17: 518 | I17: 600-630 | J17: Open | O17: =VLOOKUP(D17,Sheet2!A5:H1670,6,0) -> 539.95 | R17: H
A18: 9 | B18: 2020-02-05 | D18: IOC | E18: Buy | F18: 114 | G18: 107 | H18: 118 | I18: 124-128 | J18: Part Profit of Rs.4/- | K18: =H18-F18 -> 4 | L18: =K18/F18 -> 3.51% | M18: Successful | N18: 2020-02-10 | O18: =VLOOKUP(D18,Sheet2!A6:H1671,6,0) -> 115.1 | R18: H
A19: 10 | B19: 2020-02-07 | D19: LUPIN | E19: Buy | F19: 700 | G19: 668 | H19: 721.5 | I19: 770-800 | J19: Part Profit of Rs.21.50/- | K19: =H19-F19 -> 21.5 | L19: =K19/F19 -> 3.07% | M19: Successful | N19: 2020-02-14 | O19: =VLOOKUP(D19,Sheet2!A7:H1672,6,0) -> 717.65 | R19: H
A20: 11 | B20: 2020-02-10 | D20: PRAJIND | E20: Buy | F20: 105 | G20: 98.7 | H20: 108.5 | I20: 115-118 | J20: Part Profit of Rs.3.50/- | K20: =H20-F20 -> 3.5 | L20: =K20/F20 -> 3.33% | M20: Successful | N20: 2020-02-12 | O20: =VLOOKUP(D20,Sheet2!A8:H1673,6,0) -> 103.2 | R20: R
A21: 12 | B21: 2020-02-11 | D21: IGL | E21: Sell | F21: 509.5 | G21: 535.6 | H21: 494 | I21: 460-455 | J21: Part Profit of Rs.15.50/- | K21: =F21-H21 -> 15.5 | L21: =K21/F21 -> 3.04% | M21: Successful | N21: 2020-02-14 | O21: =VLOOKUP(D21,Sheet2!A9:H1674,6,0) -> 487.5 | R21: R
A22: 13 | B22: 2020-02-11 | D22: ENGINERSIN | E22: Buy | F22: 89.5-90.5 | G22: 84.6 | I22: 97-100 | J22: Open | O22: =VLOOKUP(D22,Sheet2!A10:H1675,6,0) -> 84.65 | R22: R
A23: 14 | B23: 2020-02-12 | D23: ITC | E23: Buy | F23: 212-214 | G23: 199 | I23: 230-240 | J23: Open | O23: =VLOOKUP(D23,Sheet2!A11:H1676,6,0) -> 207.7 | R23: H
A24: 15 | B24: 2020-02-14 | D24: VENKEYS | E24: Buy | F24: 1445-1450 | G24: 1364.3 | I24: 1610-1630 | J24: Open | O24: =VLOOKUP(D24,Sheet2!A12:H1677,6,0) -> 1453.4 | R24: R
A31: CLBS = Closing Basis ***
A32: Dividend adjusted <> | F32: Reinitiated $
A33: Part book {} | F33: Revised stoploss #
B35: Momentum Call
A36: Sr.no | B36: Date | D36: Company | E36: Rec | F36: Rec Price | G36: Stop Loss | H36: Call Closed At | I36: Target | J36: Remark | K36: Profit / Loss per Share/Lot | L36: Gain / Loss % | M36: Gain / Loss per Lot | N36: Lot | O36: Status | P36: Closed Date
A37: 1 | B37: 2020-01-31 | D37: GRASIM FEB FUT | E37: Buy | F37: 793 | G37: 777.7 | H37: 778.5 | I37: 820 | J37: Loss of Rs.14.5/- | K37: =H37-F37 -> -14.5 | M37: =N37*K37 -> -10875 | N37: 750 | O37: Unsuccessful | P37: 2020-02-01 | R37: R
A38: 2 | B38: 2020-01-31 | D38: TATASTEEL | E38: Buy | F38: 445 | G38: 431.7 | H38: 427.5 | I38: 465-470 | J38: Loss of Rs.17.5/- | K38: =H38-F38 -> -17.5 | L38: =K38/F38 -> -3.93% | O38: Unsuccessful | P38: 2020-02-01 | R38: R
A39: 3 | B39: 2020-02-01 | D39: SBIN | E39: Buy | F39: 313.5 | G39: 304 | H39: 304 | I39: 330-335 | J39: Loss of Rs.9.5/- | K39: =H39-F39 -> -9.5 | L39: =K39/F39 -> -3.03% | O39: Unsuccessful | P39: 2020-02-01 | R39: H
A40: 4 | B40: 2020-02-03 | D40: SBIN | E40: Buy | F40: 301 | G40: 292 | H40: 306 | I40: 315-320 | J40: Profit of Rs.5/- | K40: =H40-F40 -> 5 | L40: =K40/F40 -> 1.66% | O40: Successful | P40: 2020-02-03 | R40: H
A41: 5 | B41: 2020-02-03 | D41: SBIN | E41: Buy | F41: 300 | G41: 289 | H41: 306.5 | I41: 315-320 | J41: Profit of Rs.6.5/- | K41: =H41-F41 -> 6.5 | L41: =K41/F41 -> 2.17% | O41: Successful | P41: 2020-02-04 | R41: H
A42: 6 | B42: 2020-02-03 | D42: BAJAJAUTO | E42: Sell | F42: 3265 | G42: 3355 | H42: 3195 | I42: 3100-3050 | J42: Profit of Rs.70/- | K42: =F42-H42 -> 70 | L42: 2.14% | O42: Successful | P42: 2020-02-04 | R42: H
A43: 7 | B43: 2020-02-04 | D43: RELIANCE | E43: Buy | F43: 1414 | G43: 1367.7 | H43: 1442.5 | I43: 1480-1500 | J43: Profit of Rs.28.5/- | K43: =H43-F43 -> 28.5 | L43: =K43/F43 -> 2.02% | O43: Successful | P43: 2020-02-05 | R43: R
A44: 8 | B44: 2020-02-04 | D44: SUNPHARMA | E44: Buy | F44: 417 | G44: 404 | H44: 423.5 | I44: 435-445 | J44: Profit of Rs.6.5/- | K44: =H44-F44 -> 6.5 | L44: =K44/F44 -> 1.56% | O44: Successful | P44: 2020-02-04 | R44: R
A45: 9 | B45: 2020-02-05 | D45: ESCORTS | E45: Sell | F45: 842.5 | G45: 866 | H45: 866 | I45: 815-805 | J45: Loss of Rs.23.5/- | K45: =F45-H45 -> -23.5 | L45: -2.79% | O45: Unsuccessful | P45: 2020-02-07 | R45: H
A46: 10 | B46: 2020-02-05 | D46: LT FEB FUT | E46: Buy | F46: 1308-1312 | G46: 1275 | I46: 1350-1360 | J46: Open | R46: N
A47: 11 | B47: 2020-02-05 | D47: APOLLOHOSP | E47: Buy | F47: 1659 | G47: 1595 | H47: 1692.5 | I47: 1720-1750 | J47: Profit of Rs.33.50/- | K47: =H47-F47 -> 33.5 | L47: =K47/F47 -> 2.02% | O47: Successful | P47: 2020-02-10 | R47: H
A48: 12 | B48: 2020-02-05 | D48: UPL | E48: Sell | F48: 538 | G48: 555.5 | H48: 554 | I48: 510-505 | J48: Loss of Rs.16/- | K48: =F48-H48 -> -16 | L48: =K48/F48 -> -2.97% | O48: Unsuccessful | P48: 2020-02-07 | R48: R
A49: 13 | B49: 2020-02-05 | D49: COLPAL FEB FUT | E49: Buy | F49: 1368 | G49: 1351 | H49: 1378 | I49: 1400 | J49: Profit of Rs.10/- | K49: =H49-F49 -> 10 | M49: =N49*K49 -> 7000 | N49: 700 | O49: Successful | P49: 2020-02-05 | R49: N
A50: 14 | B50: 2020-02-05 | D50: ITC | E50: Buy | F50: 214 | G50: 204.4 | H50: 218.5 | I50: 226-230 | J50: Profit of Rs.4.50/- | K50: 4.5 | L50: =K50/F50 -> 2.10% | O50: Successful | P50: 2020-02-06 | R50: R
A51: 15 | B51: 2020-02-05 | D51: HINDUNILVR FEB FUT | E51: Sell | F51: 2162.5 | G51: 2205 | H51: 2210 | I51: 2100-2080 | J51: Loss of Rs.47.50/- | K51: =F51-H51 -> -47.5 | M51: =N51*K51 -> -14250 | N51: 300 | O51: Unsuccessful | P51: 2020-02-12 | R51: R
A52: 16 | B52: 2020-02-05 | D52: DABUR FEB FUT | E52: Sell | F52: 513 | G52: 523.4 | H52: 522 | I52: 495 | J52: Loss of Rs.9/- | K52: =F52-H52 -> -9 | M52: -11250 | N52: 1250 | O52: Unsuccessful | P52: 2020-02-12 | R52: R
A53: 17 | B53: 2020-02-05 | D53: NIFTY FEB FUT | E53: Sell | F53: 12045 | G53: 12155 | H53: 12155 | I53: 11850 | J53: Loss of Rs.110/- | K53: =F53-H53 -> -110 | M53: =N53*K53 -> -8250 | N53: 75 | O53: Unsuccessful | P53: 2020-02-06 | R53: R
A54: 18 | B54: 2020-02-05 | D54: ACC FEB FUT | E54: Buy | F54: 1476 | G54: 1445 | H54: 1496.5 | I54: 1510-1525 | J54: Profit of Rs.20.50/- | K54: =H54-F54 -> 20.5 | M54: =N54*K54 -> 8200 | N54: 400 | O54: Successful | P54: 2020-02-06 | R54: N
A55: 19 | B55: 2020-02-06 | D55: JUBLFOOD | E55: Sell | F55: 1927.5 | G55: 1986.7 | H55: 1887.5 | I55: 1830-1810 | J55: Profit of Rs.40/- | K55: =F55-H55 -> 40 | L55: =K55/F55 -> 2.08% | O55: Successful | P55: 2020-02-06 | R55: R
A56: 20 | B56: 2020-02-06 | D56: ICICIBANK | E56: Sell | F56: 537-540 | G56: 555.55 | I56: 515-505 | J56: Open | R56: R
A57: 21 | B57: 2020-02-06 | D57: AXISBANK | E57: Sell | F57: 734 | G57: 755 | H57: 757 | I57: 700-690 | J57: Loss of Rs.23/- | K57: =F57-H57 -> -23 | L57: =K57/F57 -> -3.13% | O57: Unsuccessful | P57: 2020-02-12 | R57: H
A58: 22 | B58: 2020-02-06 | D58: HDFCBANK FEB FUT | E58: Buy | F58: 1242 | G58: 1220 | H58: 1256.5 | I58: 1270-1280 | J58: Profit of Rs.14.50/- | K58: =H58-F58 -> 14.5 | M58: =N58*K58 -> 7250 | N58: 500 | O58: Successful | P58: 2020-02-13 | R58: N
A59: 23 | B59: 2020-02-10 | D59: APOLLOHOSP FEB FUT | E59: Buy | F59: 1646.5 | G59: 1622 | H59: 1662.5 | I59: 1700 | J59: Profit of Rs.16/- | K59: =H59-F59 -> 16 | M59: =N59*K59 -> 8000 | N59: 500 | O59: Successful | P59: 2020-02-10 | R59: N
A60: 24 | B60: 2020-02-10 | D60: HDFC | E60: Buy | F60: 2395 | G60: 2340 | H60: 2440 | I60: 2470-2490 | J60: Profit of Rs.45/- | K60: 45 | L60: =K60/F60 -> 1.88% | O60: Successful | P60: 2020-02-11 | R60: H
A61: 25 | B61: 2020-02-10 | D61: COLPAL FEB FUT | E61: Buy | F61: 1360.5 | G61: 1343 | H61: 1371 | I61: 1395 | J61: Profit of Rs.10.50/- | K61: =H61-F61 -> 10.5 | M61: =N61*K61 -> 7350 | N61: 700 | O61: Successful | P61: 2020-02-10 | R61: N
A62: 26 | B62: 2020-02-10 | D62: ASIANPAINT FEB FUT | E62: Buy | F62: 1861.5 | G62: 1841 | H62: 1878.5 | I62: 1900 | J62: Profit of Rs.17/- | K62: =H62-F62 -> 17 | M62: =N62*K62 -> 10200 | N62: 600 | O62: Successful | P62: 2020-02-11 | R62: N
A63: 27 | B63: 2020-02-11 | D63: COLPAL FEB FUT | E63: Buy | F63: 1365 | G63: 1348 | H63: 1348 | I63: 1400 | J63: Loss of Rs.17/- | K63: -17 | M63: -11900 | N63: 700 | O63: Unsuccessful | P63: 2020-02-13 | R63: N
A64: 28 | B64: 2020-02-11 | D64: ESCORTS FEB FUT | E64: Sell | F64: 877 | G64: 891.7 | H64: 870.5 | I64: 860-855 | J64: Profit of Rs.6.5/- | K64: =F64-H64 -> 6.5 | M64: =N64*K64 -> 7150 | N64: 1100 | O64: Successful | P64: 2020-02-11 | R64: R
A65: 29 | B65: 2020-02-11 | D65: PIDILITIND | E65: Sell | F65: 1584-1590 | G65: 1630 | I65: 1540-1520 | J65: Open | R65: H
A66: 30 | B66: 2020-02-11 | D66: THERMAX | E66: Buy | F66: 992.5 | G66: 960 | H66: 1008.5 | I66: 1040-1050 | J66: Profit of Rs.16/- | K66: =H66-F66 -> 16 | L66: =K66/F66 -> 1.61% | O66: Successful | P66: 2020-02-11 | R66: H
A67: 31 | B67: 2020-02-12 | D67: TATACHEM FEB FUT | E67: Buy | F67: 762.5 | G67: 749 | H67: 771 | I67: 780 | J67: Profit of Rs.8.50/- | K67: 8.5 | M67: =N67*K67 -> 7650 | N67: 900 | O67: Successful | P67: 2020-02-14 | R67: N
A68: 32 | B68: 2020-02-12 | D68: JUBLFOOD FEB FUT | E68: Buy | F68: 1855.5 | G68: 1833 | H68: 1833 | I68: 1900 | J68: Loss of Rs.22.5/- | K68: =H68-F68 -> -22.5 | M68: =N68*K68 -> -11250 | N68: 500 | O68: Unsuccessful | P68: 2020-02-12 | R68: R
A69: 33 | B69: 2020-02-12 | D69: APOLLOHOSP FEB FUT | E69: Buy | F69: 1683.5 | G69: 1659 | H69: 1686 | I69: 1720 | J69: Profit of Rs.2.5/- | K69: 2.5 | M69: 1250 | N69: 500 | O69: Neutral | P69: 2020-02-13 | R69: N
A70: 34 | B70: 2020-02-12 | D70: ESCORTS FEB FUT | E70: Sell | F70: 881 | G70: 894.7 | H70: 879 | I70: 860-855 | J70: Profit of Rs.2/- | K70: =F70-H70 -> 2 | M70: 2200 | N70: 1100 | O70: Neutral | P70: 2020-02-13 | R70: R
A71: 35 | B71: 2020-02-13 | D71: THERMAX | E71: Buy | F71: 995-1000 | G71: 965 | I71: 1040-1050 | J71: Open | R71: H
A72: 36 | B72: 2020-02-13 | D72: ASIANPAINT FEB FUT | E72: Sell | F72: 1878 | G72: 1899 | H72: 1897.5 | I72: 1840 | J72: Loss of Rs.19.50/- | K72: =F72-H72 -> -19.5 | M72: =N72*K72 -> -11700 | N72: 600 | O72: Unsuccessful | P72: 2020-02-14 | R72: R
A73: 37 | B73: 2020-02-14 | D73: CESC FEB FUT | E73: Buy | F73: 711 | G73: 696 | H73: 696 | I73: 735 | J73: Loss of Rs.15/- | K73: =H73-F73 -> -15 | M73: =N73*K73 -> -12000 | N73: 800 | O73: Unsuccessful | P73: 2020-02-14 | R73: N
A74: 38 | B74: 2020-02-14 | D74: AXISBANK | E74: Sell | F74: 738-742 | G74: 762 | I74: 700-690 | J74: Open | R74: H
A75: 39 | B75: 2020-02-14 | D75: UPL | E75: Sell | F75: 589-593 | G75: 610 | I75: 560-550 | J75: Open | R75: H
A76: 40 | B76: 2020-02-14 | D76: ACC FEB FUT | E76: Buy | F76: 1443-1445 | G76: 1410 | I76: 1500 | J76: Open | R76: N
A77: 41
A78: 42
A79: 43
A80: 44
A81: 45
A82: 46
A83: 47
A84: CLBS = Closing Basis ***
A85: Dividend adjusted <> | F85: Reinitiated $
F86: Revised stoploss #
A88: Master Trade High Risk
A89: Sr.no | B89: Date | D89: Company | E89: Rec | F89: Rec Price | G89: Stop Loss | H89: Call Closed At | I89: Target | J89: Remark | K89: Profit / Loss per share | L89: Gain / Loss per Lot | M89: Lot | N89: Status | O89: Closed Date
A90: 1 | B90: 2020-02-04 | D90: ESCORTS FEB FUT | E90: Sell | F90: 836 | G90: 864 | H90: 855 | I90: 800-790 | J90: Loss of Rs.13/- | K90: =F90-H90 -> -19 | L90: =-13*M90 -> -14300 | M90: 1100 | N90: Unsuccessful | O90: 2020-02-04 | R90: H
D91: ESCORTS FEB 800 PE | E91: Sell | F91: 17 | H91: 11 | K91: =F91-H91 -> 6 | R91: H
A92: 2 | B92: 2020-02-11 | D92: NIFTY FEB FUT | E92: Sell | F92: 12160-12170 | G92: 12310 | I92: 11900 | J92: Open | R92: R
A93: 3 | B93: 2020-02-14 | D93: BANKNIFTY FEB FUT | E93: Sell | F93: 31340 | G93: 31690 | H93: 31110 | I93: 30500 | J93: Profit of Rs.230/- | K93: =F93-H93 -> 230 | L93: =K93*M93 -> 4600 | M93: 20 | N93: Successful | O93: 2020-02-14 | R93: H
A99: Master Trade Medium Risk
A100: Sr.no | B100: Date | D100: Company | E100: Rec | F100: Rec Price | G100: Stop Loss | H100: Call Closed At | I100: Target | J100: Remark | K100: Profit/ Loss per lot | L100: Gain / Loss per Lot | M100: Lot | N100: Status | O100: Closed Date
A101: 1 | B101: 2020-01-31 | D101: DLF 250 FEB PE | E101: Buy | F101: 8.8 | H101: 13.5 | J101: Profit of Rs.1.2/- | K101: =H101-F101 -> 4.7 | L101: =1.2*M101 -> 3960 | M101: 3300 | N101: Successful | O101: 2020-02-01 | R101: H
D102: DLF FEB 245 PE | E102: Sell | F102: 7 | H102: 10.5 | K102: =F102-H102 -> -3.5 | R102: H
A103: 2 | B103: 2020-02-01 | D103: DABUR 490 FEB PE | E103: Buy | F103: 9 | G103: 4.5 | H103: 11 | I103: 14-16 | J103: Profit of Rs.2/- | K103: =H103-F103 -> 2 | L103: =K103*M103 -> 2500 | M103: 1250 | N103: Successful | O103: 2020-02-01 | R103: H
A104: 3 | B104: 2020-02-03 | D104: MARUTI 7200 FEB CE | E104: Buy | F104: 111.5 | H104: 155.5 | J104: Prpfit of Rs.23.5 | K104: 44 | L104: =23.5*M104 -> 1762.5 | M104: 75 | N104: Successful | O104: 2020-02-04 | R104: H
D105: MARUTI 7400 FEB CE | E105: Sell | F105: 61.5 | H105: 82 | K105: -20.5 | R105: H
A106: 4 | B106: 2020-02-04 | D106: NIFTY 27 FEB 11700 PE | E106: Buy | F106: 118-122 | J106: Open | R106: H
D107: NIFTY 27 FEB 11500 PE | E107: Sell | F107: 64-68 | R107: H
A108: 5 | B108: 2020-02-05 | D108: NIFTY 11800 27-FEB PE | E108: Buy | F108: 73 | G108: 35 | H108: 84 | I108: 120-140 | J108: Profit of Rs.11/- | K108: =H108-F108 -> 11 | L108: =K108*M108 -> 825 | M108: 75 | N108: Successful | O108: 2020-02-05 | R108: H
A109: 6 | B109: 2020-02-05 | D109: DABUR 490 FEB PE | E109: Buy | F109: 4.50-5.00 | G109: 1.5 | I109: 8.00-10.00 | J109: Open | R109: H
A110: 7 | B110: 2020-02-05 | D110: NIFTY 11800 27-FEB PE | E110: Buy | F110: 66.5 | G110: 33 | H110: 32.5 | I110: 110-120 | J110: Loss of Rs.34/- | K110: =H110-F110 -> -34 | L110: =K110*M110 -> -2550 | M110: 75 | N110: Successful | O110: 2020-02-11 | R110: H
A111: 8 | B111: 2020-02-12 | D111: NIFTY 12150 PE 20-FEB | E111: Buy | F111: 56 | G111: 30 | H111: 66 | I111: 100-110 | J111: Profit of Rs.10/- | K111: 10 | L111: 750 | M111: 75 | N111: Successful | O111: 2020-02-13 | R111: H
A112: 9 | B112: 2020-02-12 | D112: ESCORTS 840 PE FEB | E112: Buy | F112: 12.25 | G112: 8 | H112: 13.75 | I112: 18-20 | J112: Profit of Rs.1.50/- | K112: 1.5 | L112: 1650 | M112: 1100 | N112: Successful | O112: 2020-02-13 | R112: N
A113: 10 | B113: 2020-02-13 | D113: NIFTY 12150 PE 20-FEB | E113: Buy | F113: 69 | G113: 39 | H113: 39 | I113: 110-120 | J113: Loss of Rs.30/- | K113: =H113-F113 -> -30 | L113: =K113*M113 -> -2250 | M113: 75 | N113: Successful | O113: 2020-02-14 | R113: N
A114: 11 | B114: 2020-02-14 | D114: BAJAJ-AUTO 3150 PE FEB | E114: Buy | F114: 43.50 | G114: 30 | H114: 53.5 | I114: 60-70 | J114: Profit of Rs.10/- | K114: 10 | L114: 2500 | M114: 250 | N114: Successful | O114: 2020-02-14 | R114: N
A125: Techno -Funda (positional)
A126: Sr.no | B126: Date | D126: Company | E126: Rec | F126: Rec Price | G126: Stop Loss*** | H126: Call Closed At | I126: Target | J126: Remark | K126: Profit / Loss per Share | L126: Gain / Loss % | M126: Status | N126: Closed Date | O126: NSE Closed Price
A127: 1 | B127: 2020-01-07 | D127: FINPIPE | E127: Buy | F127: 543 | G127: 495 | H127: 584.5 | I127: 630-650 | J127: Profit of Rs.41.5/- | K127: =H127-F127 -> 41.5 | L127: =K127/F127 -> 7.64% | M127: Successful | N127: 2020-02-01 | R127: H
A129: CLBS = Closing Basis *** | F129: Reinitiated $
A130: Dividend adjusted <> | F130: Revised stoploss #
B135: Investment Idea
A136: Sr.no | B136: Date | D136: Company | E136: Rec | F136: Rec Price | G136: Point of Review | H136: Close Rate | I136: Target | J136: Remark | K136: Profit / Loss per Share | L136: Gain / Loss % | M136: Status | N136: Closed Date
A137: 1 | B137: 2013-11-01 | D137: L&T Finance Holding | E137: Accu | F137: 82.00 | G137: - | H137: 100 | I137: 100.00 | J137: Target Achieved | K137: =H137-F137 -> 18.00 | L137: =K137/F137 -> 21.95% | M137: Successful | N137: 2016-10-14
A138: 2 | B138: 2014-06-04 | D138: Finolex Inds | E138: Buy | F138: 257.00 | G138: - | H138: 300 | I138: 300.00 | J138: Target Achieved | K138: 43.00 | L138: 16.73% | M138: Successful | N138: 2014-07-02
A139: 3 | B139: 2014-07-08 | D139: JK Cement | E139: Buy | F139: 393.00 | G139: - | H139: 468 | I139: 468.00 | J139: Target Achieved | K139: 75.00 | L139: 19.08% | M139: Successful | N139: 2014-08-12
A140: 4 | B140: 2014-08-06 | D140: Finolex Cables | E140: Buy | F140: 205.00 | G140: - | H140: 275 | I140: 250.00 | J140: Target Achieved | K140: 70.00 | L140: 34.15% | M140: Successful | N140: 2014-11-19
A141: 5 | B141: 2014-09-04 | D141: Exide Inds | E141: Buy | F141: 162.00 | G141: - | H141: 190 | I141: 190.00 | J141: Target Achieved | K141: 28.00 | L141: 17.28% | M141: Successful | N141: 2015-01-02
A142: 6 | B142: 2014-09-04 | D142: Deepak Nitrite | E142: Buy | F142: 75.00 | G142: - | H142: 91.5 | I142: 95-100 | J142: Profit of Rs.16.50/- | K142: 16.50 | L142: 22.00% | M142: Successful | N142: 2014-11-11
A143: 7 | B143: 2014-10-01 | D143: Mercks | E143: Buy | F143: 850.00 | G143: - | H143: 982.5 | I143: 1050.00 | J143: Profit of Rs.132.50/- | K143: 132.50 | L143: 15.59% | M143: Successful | N143: 2015-02-04
A144: 8 | B144: 2014-10-01 | D144: Grindwell Norton | E144: Buy | F144: 475.00 | G144: - | H144: 515 | I144: 600.00 | J144: Profit of Rs.40/- | K144: 40.00 | L144: 8.42% | M144: Successful | N144: 2014-10-27
A145: 9 | B145: 2014-10-01 | D145: Snowman Logistics | E145: Buy | F145: 86.00 | G145: - | H145: 99 | I145: 140.00 | J145: Profit of Rs.13.00/- | K145: 13.00 | L145: 15.12% | M145: Successful | N145: 2014-10-27
A146: 10 | B146: 2014-10-14 | D146: Birla Corp | E146: Buy | F146: 496.60 | G146: - | H146: 621 | I146: 580.00 | J146: Target Achieved | K146: 124.40 | L146: 25.05% | M146: Successful | N146: 2016-08-23
A147: 11 | B147: 2014-10-14 | D147: Ultratech Cem | E147: Buy | F147: 2481.90 | G147: - | H147: 2840 | I147: 2870.00 | J147: Profit of Rs.358.10/- | K147: 358.10 | L147: 14.43% | M147: Successful | N147: 2015-01-13
A148: 12 | B148: 2014-10-16 | D148: Sintex Inds | E148: Buy | F148: 84.50 | G148: - | H148: 93 | I148: 110.00 | J148: Profit of Rs.8.50/- | K148: 8.50 | L148: 10.06% | M148: Successful | N148: 2014-10-27
A149: 13 | B149: 2014-10-16 | D149: HSIL | E149: Buy | F149: 401.00 | G149: - | H149: 428 | I149: 450.00 | J149: Profit of Rs.27.00/- | K149: 27.00 | L149: 6.73% | M149: Successful | N149: 2015-01-16
A150: 14 | B150: 2014-10-16 | D150: Eveready Inds | E150: Buy | F150: 101.00 | G150: - | H150: 112 | I150: 120.00 | J150: Profit of Rs.11.00/- | K150: 11.00 | L150: 10.89% | M150: Successful | N150: 2014-10-27
A151: 15 | B151: 2014-11-11 | D151: Pennar Inds | E151: Buy | F151: 59.00 | G151: - | H151: 76 | I151: 76.00 | J151: Target Achieved | K151: 17.00 | L151: 28.81% | M151: Successful | N151: 2017-10-24
A152: 16 | B152: 2014-11-11 | D152: Snowman Logistics | E152: Buy | F152: 99.00 | G152: - | H152: 120 | I152: 120.00 | J152: Profit of Rs.21/- | K152: 21.00 | L152: 21.21% | M152: Successful | N152: 2014-11-17
A153: 17 | B153: 2014-11-13 | D153: Dharamsi Morarji Chem | E153: Buy | F153: 22.00 | G153: - | H153: 33.55 | I153: 32.00 | J153: Profit of Rs 11.55/- | K153: 11.55 | L153: 52.50% | M153: Successful | N153: 2015-07-03
A154: 18 | B154: 2014-12-03 | D154: Tatachem | E154: Buy | F154: 440.00 | G154: - | H154: 520 | I154: 520.00 | J154: Profit of Rs 80.00/- | K154: 80.00 | L154: 18.18% | M154: Successful | N154: 2015-07-23
A155: 19 | B155: 2014-12-03 | D155: Advanta | E155: Buy | F155: 360.00 | G155: - | H155: 427 | I155: 425.00 | J155: Profit of Rs.67.00/- | K155: 67.00 | L155: 18.61% | M155: Successful | N155: 2015-02-23
A156: 20 | B156: 2015-01-08 | D156: GDL | E156: Buy | F156: 360.00 | G156: - | H156: 455 | I156: 420.00 | J156: Profit of Rs.95.00/- | K156: 95.00 | L156: 26.39% | M156: Successful | N156: 2015-01-20
A157: 21 | B157: 2015-01-08 | D157: NRB Bearing | E157: Buy | F157: 130.00 | H157: 175.5 | I157: 165.00 | J157: Profit of Rs 45.50/- | K157: 45.50 | L157: 35.00% | M157: Successful | N157: 2017-12-19
A158: 22 | B158: 2015-02-05 | D158: GSFC | E158: Accu | F158: 98.00 | H158: 120 | I158: 120.00 | J158: Target Achieved | K158: 22.00 | L158: 22.45% | M158: Successful | N158: 2017-01-18
A159: 23 | B159: 2015-02-05 | D159: Sundrmfast | E159: Accu | F159: 196.00 | H159: 262 | I159: 255.00 | J159: Target Achieved | K159: 66.00 | L159: 33.67% | M159: Successful | N159: 2016-08-17
A160: 24 | B160: 2015-03-04 | D160: GPPL | E160: Accu | F160: 235 | H160: 77.00 | I160: 280-285 | J160: Loss of Rs.158/- | K160: -158.00 | L160: -67.23% | M160: Unsuccessful | N160: 2019-02-26
A161: 25 | B161: 2015-03-04 | D161: ORIENTCEM | E161: Accu | F161: 185.00 | H161: 224 | I161: 220-225 | J161: Target Achieved | K161: 39.00 | L161: 21.08% | M161: Successful | N161: 2016-10-04
A162: 26 | B162: 2015-03-27 | D162: PFS | E162: Accu | F162: 49.5 | H162: 15.85 | I162: 67.00 | J162: Loss of Rs.33.65/- | K162: -33.65 | L162: -68% | M162: Unsuccessful | N162: 2019-06-11
A163: 27 | B163: 2015-03-30 | D163: Walchandnagar Ind Ltd | E163: Accu | F163: 183.50 | H163: 219 | I163: 218.00 | J163: Profit of Rs.35.50/- | K163: 35.50 | L163: 19.35% | M163: Successful | N163: 2015-04-09
A164: 28 | B164: 2015-04-20 | D164: Kalpataru Power Transmission Ltd | E164: Accu | F164: =(227+237)/2 -> 232.00 | H164: 298 | I164: 298.00 | J164: Target Achieved | K164: 66.00 | L164: 28.45% | M164: Successful | N164: 2017-03-29
A165: 29 | B165: 2015-05-04 | D165: Mastek Ltd | E165: Buy | F165: 385.00 | H165: =212.5+331 -> 543.5 | I165: 510.00 | J165: Profit of Rs 158.50/- | K165: 158.50 | L165: 41.17% | M165: Successful | N165: 2015-08-19
A166: 30 | B166: 2015-05-04 | D166: Suprajit Eng | E166: Buy | F166: 115.50 | H166: 146 | I166: 142.00 | J166: Profit of Rs 30.50/- | K166: 30.50 | L166: 26.41% | M166: Successful | N166: 2015-07-17
A167: 31 | B167: 2015-05-27 | D167: TCI | E167: Buy | F167: 237.50 | H167: 279.5 | I167: 278.00 | J167: Target Achieved | K167: 42.00 | L167: 17.68% | M167: Successful | N167: 2015-08-06
A168: 32 | B168: 2015-06-19 | D168: HSIL | E168: Accu | F168: 340.00 | H168: 448 | I168: 448.00 | J168: Target Achieved | K168: 108.00 | L168: 31.76% | M168: Successful | N168: 2017-10-10
A169: 33 | B169: 2015-07-06 | D169: Capital First | E169: Accu | F169: 390.00 | H169: 460 | I169: 460.00 | J169: Target Achieved | K169: =H169-F169 -> 70.00 | L169: =K169/F169 -> 17.95% | M169: Successful | N169: 2016-04-18
A170: 34 | B170: 2015-07-10 | D170: Dolphin OffShore | E170: Accu | F170: 122.5 | H170: 61.00 | I170: 172.00 | J170: Loss of Rs.61.50/- | K170: -61.50 | L170: -50.20% | M170: Unsuccessful | N170: 2018-08-21
A171: 35 | B171: 2015-08-03 | D171: Allcargo logistics | E171: Accu | F171: 297.50 | H171: 350 | I171: 360.00 | J171: Profit of Rs 52.50/- | K171: 52.50 | L171: 17.65% | M171: Successful | N171: 2015-08-16
A172: 36 | B172: 2015-08-03 | D172: Camline Fine | E172: Accu | F172: 115.50 | H172: 149 | I172: 140.00 | J172: Profit of Rs 33.50/- | K172: 33.50 | L172: 29.00% | M172: Successful | N172: 2017-01-05
A173: 37 | B173: 2015-09-04 | D173: TCI | E173: Accu | F173: 226.00 | H173: 292 | I173: 292.00 | J173: Target Achieved | K173: 66.00 | L173: 29.20% | M173: Successful | N173: 2015-10-09
A174: 38 | B174: 2015-09-07 | D174: Kalpataru Power Transmission Ltd | E174: Accu | F174: 232.50 | H174: 312.5 | I174: 310.00 | J174: Target Achieved | K174: 80.00 | L174: 34.41% | M174: Successful | N174: 2017-03-29
A175: 39 | B175: 2015-09-21 | D175: LLOYD ELECTRIC & ENG LTD | E175: Accu | F175: 196.50 | H175: 238 | I175: 238.00 | J175: Target Achieved | K175: 41.50 | L175: 21.12% | M175: Successful | N175: 2015-10-14
A176: 40 | B176: 2015-09-24 | D176: L&T Finance Holding | E176: Accu | F176: 65.00 | H176: 82 | I176: 82.00 | J176: Target Achieved | K176: 17.00 | L176: 26.15% | M176: Successful | N176: 2016-07-27
A177: 41 | B177: 2015-10-14 | D177: KEC International ltd | E177: Accu | F177: 144.00 | H177: 182.5 | I177: 181.00 | J177: Target Achieved | K177: 38.50 | L177: 26.74% | M177: Successful | N177: 2017-03-23
A178: 42 | B178: 2015-10-14 | D178: Gruh Finance | E178: Accu | F178: 264.00 | H178: 311 | I178: 311.00 | J178: Target Achieved | K178: 47.00 | L178: 17.80% | M178: Successful | N178: 2016-08-22
A179: 43 | B179: 2015-11-10 | D179: Pidilitind | E179: Buy | F179: 549.50 | H179: 630 | I179: 630.00 | J179: Target Achieved | K179: 80.50 | L179: 14.65% | M179: Successful | N179: 2016-02-19
A180: 44 | B180: 2015-12-04 | D180: Zensar Technology | E180: Accu | F180: 1027.50 | H180: 1315 | I180: 1250.00 | J180: Target Achieved | K180: 287.50 | L180: 27.98% | M180: Successful | N180: 2018-05-24
A181: 45 | B181: 2015-12-29 | D181: Vinati Organics Ltd | E181: Accu | F181: 465.00 | H181: 540 | I181: 540.00 | J181: Target Achieved | K181: 75.00 | L181: 16.13% | M181: Successful | N181: 2016-06-09
A182: 46 | B182: 2016-01-11 | D182: GSFC | E182: Buy | F182: 81.00 | H182: 110 | I182: 110.00 | J182: Target Achieved | K182: 29.00 | L182: 35.80% | M182: Successful | N182: 2017-01-10
A183: 47 | B183: 2016-01-13 | D183: SSWL | E183: Buy | F183: 417.50 | H183: 547 | I183: 535.00 | J183: Target Achieved | K183: 129.50 | L183: 31.02% | M183: Successful | N183: 2016-07-27
A184: 48 | B184: 2016-02-08 | D184: Persistent System Ltd | E184: Accu | F184: 650.00 | H184: 800 | I184: 800.00 | J184: Target Achieved | K184: 150.00 | L184: 23.08% | M184: Successful | N184: 2018-02-23
A185: 49 | B185: 2016-03-04 | D185: UPL | E185: Accu | F185: 437.50 | H185: 504.5 | I185: 522.00 | J185: Profit of Rs.67/- | K185: 67.00 | L185: 15.31% | M185: Successful | N185: 2016-04-20
A186: 50 | B186: 2016-03-09 | D186: Ashoka Buildcon Ltd | E186: Accu | F186: 189.50 | H186: 218 | I186: 218.00 | J186: Target Achieved | K186: 28.50 | L186: 15.04% | M186: Successful | N186: 2017-10-26
A187: 51 | B187: 2016-04-11 | D187: PTC INDIA FIN SERV LTD | E187: Accu | F187: 36.5 | H187: 15.85 | I187: 60.00 | J187: Loss of Rs.20.65/- | K187: -20.65 | L187: -56.58% | M187: Unsuccessful | N187: 2019-06-11
A188: 52 | B188: 2016-04-12 | D188: CAMLINFINE $ | E188: Accu | F188: 93.00 | H188: 149 | I188: 140.00 | J188: Profit of Rs 56/- | K188: 56.00 | L188: 60.22% | M188: Successful | N188: 2017-01-05
A189: 53 | B189: 2016-04-12 | D189: Greaves Cotton Ltd. | E189: Accu | F189: 130.00 | H189: 150 | I189: 150-155 | J189: Target Achieved | K189: 20.00 | L189: 15.38% | M189: Successful | N189: 2016-07-13
A190: 54 | B190: 2016-04-13 | D190: DHFL | E190: Accu | F190: 196.00 | H190: 299 | I190: 299.00 | J190: Target Achieved | K190: 103.00 | L190: 52.55% | M190: Successful | N190: 2016-09-07
A191: 55 | B191: 2016-04-13 | D191: Magma | E191: Accu | F191: 88.00 | H191: 103 | I191: 103.00 | J191: Target Achieved | K191: 15.00 | L191: 17.05% | M191: Successful | N191: 2016-06-09
A192: 56 | B192: 2016-05-02 | D192: KEC International ltd $ | E192: Accu | F192: 127.50 | H192: 148 | I192: 148-150 | J192: Target Achieved | K192: =H192-F192 -> 20.50 | L192: =K192/F192 -> 16.08% | M192: Successful | N192: 2016-07-13
A193: 57 | B193: 2016-05-03 | D193: Mindtree | E193: Accu | F193: 675.00 | H193: 815 | I193: 790-800 | J193: Target Achieved | K193: =H193-F193 -> 140.00 | L193: =K193/F193 -> 20.74% | M193: Successful | N193: 2018-02-23
A194: 58 | B194: 2016-06-01 | D194: Atulauto | E194: Accu | F194: 500 | H194: 232.50 | I194: 565-570 | J194: Loss of Rs.267.50 /- | K194: =H194-F194 -> -267.50 | L194: =K194/F194 -> -53.50% | M194: Unsuccessful | N194: 2019-09-27
A195: 59 | B195: 2016-06-06 | D195: TRITURBINE | E195: Accu | F195: 110.00 | H195: 126.5 | I195: 125.00 | J195: Profit of Rs.16.50/- | K195: =H195-F195 -> 16.50 | L195: =K195/F195 -> 15.00% | M195: Successful | N195: 2016-07-01
A196: 60 | B196: 2016-06-17 | D196: Pennar Industries Ltd | E196: Accu | F196: 44.00 | H196: 69.5 | I196: 69.50 | J196: Profit of Rs.25.50/- | K196: =H196-F196 -> 25.50 | L196: =K196/F196 -> 57.95% | M196: Successful | N196: 2017-08-30
A197: 61 | B197: 2016-06-28 | D197: EVEREADY | E197: Accu | F197: 262.50 | H197: 340 | I197: 333.00 | J197: Profit of Rs.77.50/- | K197: 77.50 | L197: 29.52% | M197: Successful | N197: 2017-10-09
A198: 62 | B198: 2016-06-28 | D198: FIEMIND | E198: Accu | F198: 840.00 | H198: 1230 | I198: 1230.00 | J198: Target Achieved | K198: 390.00 | L198: 46.43% | M198: Successful | N198: 2016-10-06
A199: 63 | B199: 2016-07-05 | D199: Bajaj Corp Ltd | E199: Accu | F199: 395 | H199: =(468.5+342.5)/2 -> 405.50 | I199: 510.00 | J199: Profit of Rs.10.50/- | K199: =H199-F199 -> 10.50 | L199: =K199/F199 -> 3% | M199: Neutral | N199: 2019-05-21
A200: 64 | B200: 2016-08-02 | D200: GPPL $ | E200: Buy | F200: =169.5-12.8 -> 156.7 | H200: 77.00 | I200: 198-200 | J200: Loss of Rs.79.7/- | K200: -79.70 | L200: -50.86% | M200: Unsuccessful | N200: 2019-02-26
A201: 65 | B201: 2016-08-04 | D201: WONDERLA HOLIDAYS LTD | E201: Accu | F201: 400 | H201: 305.00 | I201: 475.00 | J201: Loss of Rs.95/- | K201: -95.00 | L201: -23.75% | M201: Unsuccessful | N201: 2019-05-21
A202: 66 | B202: 2016-08-11 | D202: CAMLINFINE | E202: Accu | F202: 86.50 | H202: 130 | I202: 130.00 | J202: Profit of Rs.43.50/- | K202: 43.50 | L202: 50.29% | M202: Successful | N202: 2017-12-22
A203: 67 | B203: 2016-08-18 | D203: GRANULES | E203: Accu | F203: 133.5 | H203: 126.50 | I203: 178.00 | J203: Exit | K203: -7.00 | L203: -5.24% | M203: Unsuccessful | N203: 2016-09-02
A204: 68 | B204: 2016-08-31 | D204: VA TECH WABAG | E204: Accu | F204: 560.00 | H204: 725 | I204: 725.00 | J204: Target Achieved | K204: 165.00 | L204: 29.46% | M204: Successful | N204: 2016-03-27
A205: 69 | B205: 2016-09-01 | D205: SKIPPER LIMITED | E205: Accu | F205: 160.50 | H205: 210 | I205: 210.00 | J205: Target Achieved | K205: 49.50 | L205: 30.84% | M205: Successful | N205: 2017-05-16
A206: 70 | B206: 2016-10-03 | D206: IFBIND | E206: Accu | F206: 430.00 | H206: 596 | I206: 575.00 | J206: Profit of Rs.166/- | K206: 166.00 | L206: 38.60% | M206: Successful | N206: 2017-02-03
A207: 71 | B207: 2016-10-14 | D207: ASIANTILES | E207: Accu | F207: 280.00 | H207: 345 | I207: 345.00 | J207: Target Achieved | K207: =H207-F207 -> 65.00 | L207: =K207/F207 -> 23.21% | M207: Successful | N207: 2017-03-20
A208: 72 | B208: 2016-10-14 | D208: DEEPIND | E208: Accu | F208: 245.00 | H208: 325.5 | I208: 330.00 | J208: Profit of Rs.80.5/- | K208: 80.50 | L208: =K208/F208 -> 32.86% | M208: Successful | N208: 2017-02-03
A209: 73 | B209: 2016-10-17 | D209: DCBBANK | E209: Accu | F209: 125.00 | H209: 160 | I209: 160.00 | J209: Target Achieved | K209: 35.00 | L209: 28.00% | M209: Successful | N209: 2017-03-09
A210: 74 | B210: 2016-10-17 | D210: ORIENTREF | E210: Accu | F210: 114.00 | H210: 145 | I210: 145.00 | J210: Target Achieved | K210: 31.00 | L210: =K210/F210 -> 27.19% | M210: Successful | N210: 2017-05-04
A211: 75 | B211: 2016-10-17 | D211: GANECOS | E211: Accu | F211: 212.00 | H211: 280 | I211: 276.00 | J211: Profit of Rs.68/- | K211: 68.00 | L211: =K211/F211 -> 32.08% | M211: Successful | N211: 2017-05-03
A212: 76 | B212: 2016-11-04 | D212: NBCC | E212: Accu | F212: 155.00 | H212: 210 | I212: 210.00 | J212: Profit of Rs.55/- | K212: 55.00 | L212: =K212/F212 -> 35.48% | M212: Successful | N212: 2017-07-28
A213: 77 | B213: 2016-12-06 | D213: PRECAM | E213: Accu | F213: 150.5 | H213: 72.50 | I213: 174.00 | J213: Loss of Rs.78/- | K213: -78.00 | L213: -51.83% | M213: Unsuccessful | N213: 2018-08-21
A214: 78 | B214: 2016-12-08 | D214: INFRATEL | E214: Accu | F214: 380.00 | H214: 478 | I214: 468.00 | J214: Target Achieved | K214: =H214-F214 -> 98.00 | L214: =K214/F214 -> 25.79% | M214: Successful | N214: 2017-10-17
A215: 79 | B215: 2016-12-30 | D215: GODREJPROP | E215: Accu | F215: 305.00 | H215: 375 | I215: 375.00 | J215: Target Achieved | K215: =H215-F215 -> 70.00 | L215: =K215/F215 -> 22.95% | M215: Successful | N215: 2017-02-02
A216: 80 | B216: 2017-01-04 | D216: DEEPAKNTR | E216: Accu | F216: 99.50 | H216: 158 | I216: 158.00 | J216: Target Achieved | K216: =H216-F216 -> 58.50 | L216: =K216/F216 -> 58.79% | M216: Successful | N216: 2017-06-12
A217: 81 | B217: 2017-01-04 | D217: DEEPAKNTR | E217: Accu | F217: 99.50 | H217: 158 | I217: 158.00 | J217: Target Achieved | K217: 58.50 | L217: 58.79% | M217: Successful | N217: 2017-06-12
A218: 82 | B218: 2017-02-20 | D218: RECLTD | E218: Accu | F218: 140.50 | H218: 220 | I218: 220.00 | J218: Target Achieved | K218: =H218-F218 -> 79.50 | L218: =K218/F218 -> 56.58% | M218: Successful | N218: 2017-05-09
A219: 83 | B219: 2017-02-20 | D219: SUBROS | E219: Accu | F219: 202.50 | H219: 234 | I219: 234.00 | J219: Target Achieved | K219: 31.50 | L219: 15.56% | M219: Successful | N219: 2017-04-11
A220: 84 | B220: 2017-03-24 | D220: VRLLOG | E220: Accu | F220: 300.50 | H220: 417.5 | I220: 420.00 | J220: Profit of Rs.117/- | K220: =H220-F220 -> 117.00 | L220: =K220/F220 -> 38.94% | M220: Successful | N220: 2017-12-01
A221: 85 | B221: 2017-03-24 | D221: FIEMIND | E221: Accu | F221: 850.00 | H221: 1042.5 | I221: 1023.00 | J221: Profit of Rs 192.50/- | K221: 192.50 | L221: 22.65% | M221: Successful | N221: 2017-04-05
A222: 86 | B222: 2017-04-05 | D222: RATNAMANI | E222: Accu | F222: 785.00 | H222: 930 | I222: 920.00 | J222: Profit of Rs.145/- | K222: =H222-F222 -> 145.00 | L222: =K222/F222 -> 18.47% | M222: Successful | N222: 2017-08-29
A223: 87 | B223: 2017-04-06 | D223: ZEEMEDIA | E223: Accu | F223: 40 | H223: 13.10 | I223: 60.00 | J223: Loss of Rs.26.9/- | K223: -26.90 | L223: -67.25% | M223: Unsuccessful | N223: 2018-02-07
A224: 88 | B224: 2017-04-12 | D224: DABUR | E224: Accu | F224: 289.50 | H224: 354 | I224: 360.00 | J224: Profit of Rs.64.5/- | K224: =H224-F224 -> 64.50 | L224: =K224/F224 -> 22.28% | M224: Successful | N224: 2017-11-01
A225: 89 | B225: 2017-04-20 | D225: KPRMILL | E225: Accu | F225: 700.00 | H225: 840 | I225: 840.00 | J225: Profit of Rs.140/- | K225: 140.00 | L225: 20.00% | M225: Successful | N225: 2017-06-07
A226: 90 | B226: 2017-06-01 | D226: ESSELPACK | E226: Accu | F226: 130.00 | H226: 144.25 | I226: 170.00 | J226: Profit of Rs.14.25/- | K226: 14.25 | L226: 10.96% | M226: Successful | N226: 2019-07-29
A227: 91 | B227: 2017-06-15 | D227: KEI | E227: Accu | F227: 214.50 | H227: 262 | I227: 262.00 | J227: Profit of Rs.47.5/- | K227: 47.50 | L227: 22.14% | M227: Successful | N227: 2017-08-30
A228: 92 | B228: 2017-07-17 | D228: MAYURUNIQ | E228: Accu | F228: 370.00 | H228: 447.5 | I228: 450.00 | J228: Target Achieved | K228: 77.50 | L228: 20.95% | M228: Successful | N228: 2017-10-27
A229: 93 | B229: 2017-07-27 | D229: RAMCOCEM | E229: Accu | F229: 657.50 | H229: 825 | I229: 820.00 | J229: Target Achieved | K229: 167.50 | L229: 25.48% | M229: Successful | N229: 2017-12-21
A230: 94 | B230: 2017-08-17 | D230: FINPIPE | E230: Accu | F230: 605.00 | H230: 750 | I230: 750.00 | J230: Profit of Rs.145/- | K230: 145.00 | L230: 23.97% | M230: Successful | N230: 2017-10-19
A231: 95 | B231: 2017-09-01 | D231: SHK | E231: Accu | F231: 255 | H231: 217.25 | I231: 320.00 | J231: Loss of Rs.37.75/- | K231: -37.75 | L231: -15% | M231: Unsuccessful | N231: 2019-07-15
A232: 96 | B232: 2017-09-19 | D232: SKIPPER | E232: Accu | F232: 215.00 | H232: 258 | I232: 258.00 | J232: Target Achieved | K232: 43.00 | L232: 20.00% | M232: Successful | N232: 2017-11-01
... 57 more rows

Sheet Sheet2 (hidden)
A1: SYMBOL | B1: SERIES | C1: OPEN | D1: HIGH | E1: LOW | F1: CLOSE | G1: LAST | H1: PREVCLOSE | I1: TOTTRDQTY | J1: TOTTRDVAL | K1: TIMESTAMP | L1: TOTALTRADES | M1: ISIN | N1: ISIN
A2: 20MICRONS | B2: EQ | C2: 35.95 | D2: 35.95 | E2: 34.7 | F2: 34.8 | G2: 35 | H2: 35.35 | I2: 16456 | J2: 577198.95 | K2: 2020-02-14 | L2: 250 | M2: INE144J01027
A3: 21STCENMGM | B3: EQ | C3: 13.3 | D3: 13.3 | E3: 13.15 | F3: 13.15 | G3: 13.15 | H3: 13.4 | I3: 3 | J3: 39.6 | K3: 2020-02-14 | L3: 3 | M3: INE253B01015
A4: 3IINFOTECH | B4: EQ | C4: 2.15 | D4: 2.2 | E4: 2.05 | F4: 2.05 | G4: 2.1 | H4: 2.15 | I4: 2015031 | J4: 4249789.4 | K4: 2020-02-14 | L4: 809 | M4: INE748C01020
A5: 3MINDIA | B5: EQ | C5: 22760 | D5: 22900 | E5: 22207 | F5: 22299.95 | G5: 22260.7 | H5: 22678.4 | I5: 3653 | J5: 82589056.35 | K5: 2020-02-14 | L5: 1114 | M5: INE470A01017
A6: 3PLAND | B6: EQ | C6: 5.2 | D6: 5.2 | E6: 5.2 | F6: 5.2 | G6: 5.2 | H6: 5.4 | I6: 5 | J6: 26 | K6: 2020-02-14 | L6: 1 | M6: INE105C01023
A7: 5PAISA | B7: EQ | C7: 185.65 | D7: 188 | E7: 183 | F7: 185.15 | G7: 185 | H7: 182.1 | I7: 8560 | J7: 1582458.45 | K7: 2020-02-14 | L7: 272 | M7: INE618L01018
A8: 63MOONS | B8: EQ | C8: 103 | D8: 106.6 | E8: 101.85 | F8: 102.45 | G8: 103 | H8: 102.5 | I8: 150900 | J8: 15707429.85 | K8: 2020-02-14 | L8: 3337 | M8: INE111B01023
A9: A2ZINFRA | B9: EQ | C9: 5.55 | D9: 5.6 | E9: 5.25 | F9: 5.45 | G9: 5.5 | H9: 5.55 | I9: 205224 | J9: 1112511.65 | K9: 2020-02-14 | L9: 369 | M9: INE619I01012
A10: AARTIDRUGS | B10: EQ | C10: 622.95 | D10: 679.9 | E10: 621.2 | F10: 654.05 | G10: 653 | H10: 625.4 | I10: 123975 | J10: 81544353.55 | K10: 2020-02-14 | L10: 7556 | M10: INE767A01016
A11: AARTIIND | B11: EQ | C11: 977 | D11: 1024.95 | E11: 976.75 | F11: 1012.8 | G11: 1003 | H11: 970.95 | I11: 467116 | J11: 471714525.6 | K11: 2020-02-14 | L11: 31471 | M11: INE769A01020
A12: AARVEEDEN | B12: EQ | C12: 14.5 | D12: 14.5 | E12: 13 | F12: 13.3 | G12: 13.55 | H12: 14 | I12: 19057 | J12: 256867.9 | K12: 2020-02-14 | L12: 173 | M12: INE273D01019
A13: AAVAS | B13: EQ | C13: 1875 | D13: 1895 | E13: 1855 | F13: 1890.25 | G13: 1894 | H13: 1870.45 | I13: 59058 | J13: 110858484.3 | K13: 2020-02-14 | L13: 3787 | M13: INE216P01012
A14: ABAN | B14: EQ | C14: 24.5 | D14: 24.75 | E14: 23.05 | F14: 23.25 | G14: 23.2 | H14: 24.15 | I14: 40887 | J14: 977006.7 | K14: 2020-02-14 | L14: 538 | M14: INE421A01028
A15: ABB | B15: EQ | C15: 1268.85 | D15: 1280 | E15: 1229.35 | F15: 1233.1 | G15: 1230 | H15: 1268.65 | I15: 56198 | J15: 69930691.45 | K15: 2020-02-14 | L15: 4186 | M15: INE117A01022
A16: ABBOTINDIA | B16: EQ | C16: 14790 | D16: 14889 | E16: 14725.6 | F16: 14785.05 | G16: 14756 | H16: 14794.1 | I16: 9285 | J16: 137545283.8 | K16: 2020-02-14 | L16: 3440 | M16: INE358A01014
A17: ABCAPITAL | B17: EQ | C17: 92.5 | D17: 93.8 | E17: 89.5 | F17: 89.85 | G17: 89.9 | H17: 92.3 | I17: 1752955 | J17: 160232301.9 | K17: 2020-02-14 | L17: 13385 | M17: INE674K01013
A18: ABFRL | B18: EQ | C18: 275.8 | D18: 277.7 | E18: 263.45 | F18: 265.5 | G18: 264.5 | H18: 275.95 | I18: 803676 | J18: 215862243.8 | K18: 2020-02-14 | L18: 13646 | M18: INE647O01011
A19: ABSLBANETF | B19: EQ | C19: 310 | D19: 310 | E19: 310 | F19: 310 | G19: 310 | H19: 310.23 | I19: 269 | J19: 83390 | K19: 2020-02-14 | L19: 2 | M19: INF209KB1O58
A20: ABSLNN50ET | B20: EQ | C20: 289.15 | D20: 289.15 | E20: 288.24 | F20: 288.7 | G20: 288.7 | H20: 290.79 | I20: 63 | J20: 18174.14 | K20: 2020-02-14 | L20: 4 | M20: INF209KB1B87
A21: ACC | B21: EQ | C21: 1448.55 | D21: 1458 | E21: 1429.55 | F21: 1440.4 | G21: 1440 | H21: 1439.65 | I21: 809439 | J21: 1171318454 | K21: 2020-02-14 | L21: 35098 | M21: INE012A01025
A22: ACCELYA | B22: EQ | C22: 1025.35 | D22: 1044.9 | E22: 1005.1 | F22: 1033.1 | G22: 1012.55 | H22: 1025.35 | I22: 3254 | J22: 3344260.75 | K22: 2020-02-14 | L22: 269 | M22: INE793A01012
A23: ACE | B23: EQ | C23: 79.85 | D23: 79.85 | E23: 77.05 | F23: 77.3 | G23: 77.05 | H23: 79.1 | I23: 95207 | J23: 7407291.4 | K23: 2020-02-14 | L23: 1956 | M23: INE731H01025
A24: ADANIENT | B24: EQ | C24: 252.5 | D24: 258.6 | E24: 251.55 | F24: 256.15 | G24: 255.95 | H24: 251.45 | I24: 4968325 | J24: 1271877366 | K24: 2020-02-14 | L24: 38927 | M24: INE423A01024
A25: ADANIGAS | B25: EQ | C25: 167.75 | D25: 168.5 | E25: 164 | F25: 165 | G25: 165.45 | H25: 167.55 | I25: 539895 | J25: 89592394.45 | K25: 2020-02-14 | L25: 5462 | M25: INE399L01023
A26: ADANIGREEN | B26: EQ | C26: 201 | D26: 209.9 | E26: 201 | F26: 206.8 | G26: 206.85 | H26: 199.95 | I26: 1474525 | J26: 304782560.2 | K26: 2020-02-14 | L26: 18610 | M26: INE364U01010
A27: ADANIPORTS | B27: EQ | C27: 370.3 | D27: 372 | E27: 366 | F27: 366.85 | G27: 366.1 | H27: 369.1 | I27: 1012713 | J27: 373508763.4 | K27: 2020-02-14 | L27: 18539 | M27: INE742F01042
A28: ADANIPOWER | B28: EQ | C28: 60.25 | D28: 60.5 | E28: 58.9 | F28: 59.6 | G28: 59.35 | H28: 60.1 | I28: 7427284 | J28: 442607567.4 | K28: 2020-02-14 | L28: 10606 | M28: INE814H01011
A29: ADANITRANS | B29: EQ | C29: 341.5 | D29: 344.65 | E29: 323.95 | F29: 328.45 | G29: 328 | H29: 338.7 | I29: 259548 | J29: 86374741.1 | K29: 2020-02-14 | L29: 6607 | M29: INE931S01010
A30: ADFFOODS | B30: EQ | C30: 302.55 | D30: 308 | E30: 297.1 | F30: 299.7 | G30: 298.05 | H30: 304.95 | I30: 48323 | J30: 14540931.95 | K30: 2020-02-14 | L30: 1187 | M30: INE982B01019
A31: ADHUNIKIND | B31: EQ | C31: 37.75 | D31: 38.35 | E31: 36.5 | F31: 37.7 | G31: 37.9 | H31: 37.7 | I31: 173538 | J31: 6548725.25 | K31: 2020-02-14 | L31: 197 | M31: INE452L01012
A32: ADLABS | B32: BE | C32: 3.75 | D32: 3.8 | E32: 3.6 | F32: 3.7 | G32: 3.7 | H32: 3.75 | I32: 29606 | J32: 108207.1 | K32: 2020-02-14 | L32: 58 | M32: INE172N01012
A33: ADORWELD | B33: EQ | C33: 328.9 | D33: 339 | E33: 320.9 | F33: 330.45 | G33: 333 | H33: 323.65 | I33: 8095 | J33: 2698205.1 | K33: 2020-02-14 | L33: 525 | M33: INE045A01017
A34: ADROITINFO | B34: BE | C34: 5.65 | D34: 6.15 | E34: 5.65 | F34: 5.75 | G34: 5.7 | H34: 5.9 | I34: 1615 | J34: 9491.05 | K34: 2020-02-14 | L34: 22 | M34: INE737B01033
A35: ADSL | B35: BE | C35: 22.25 | D35: 23 | E35: 22.25 | F35: 22.6 | G35: 23 | H35: 22.55 | I35: 20545 | J35: 465036.75 | K35: 2020-02-14 | L35: 67 | M35: INE102I01027
A36: ADVANIHOTR | B36: EQ | C36: 56.2 | D36: 60.6 | E36: 56.2 | F36: 58.25 | G36: 58.25 | H36: 58.1 | I36: 20476 | J36: 1211871.2 | K36: 2020-02-14 | L36: 277 | M36: INE199C01026
A37: ADVENZYMES | B37: EQ | C37: 166.9 | D37: 171.95 | E37: 164.65 | F37: 166.05 | G37: 166.15 | H37: 165.4 | I37: 57177 | J37: 9617837 | K37: 2020-02-14 | L37: 1468 | M37: INE837H01020
A38: AEGISCHEM | B38: EQ | C38: 229.75 | D38: 251.45 | E38: 226.5 | F38: 244.6 | G38: 243.8 | H38: 228.25 | I38: 910341 | J38: 221976101.1 | K38: 2020-02-14 | L38: 14908 | M38: INE208C01025
A39: AFFLE | B39: EQ | C39: 2007 | D39: 2046.95 | E39: 1933.25 | F39: 1961.3 | G39: 1961.35 | H39: 1990.45 | I39: 270414 | J39: 541296394 | K39: 2020-02-14 | L39: 20875 | M39: INE00WC01019
A40: AGARIND | B40: EQ | C40: 80 | D40: 83 | E40: 76.5 | F40: 81.7 | G40: 81.8 | H40: 80.5 | I40: 11005 | J40: 884837.1 | K40: 2020-02-14 | L40: 162 | M40: INE204E01012
A41: AGCNET | B41: EQ | C41: 337.85 | D41: 337.85 | E41: 331 | F41: 337.85 | G41: 337.85 | H41: 321.8 | I41: 83052 | J41: 28019709.7 | K41: 2020-02-14 | L41: 452 | M41: INE676A01019
A42: AGRITECH | B42: EQ | C42: 42.15 | D42: 44 | E42: 42 | F42: 42.25 | G42: 42.9 | H42: 42.8 | I42: 5265 | J42: 225404.3 | K42: 2020-02-14 | L42: 188 | M42: INE449G01018
A43: AGROPHOS | B43: EQ | C43: 13.65 | D43: 13.65 | E43: 13.65 | F43: 13.65 | G43: 13.65 | H43: 14.35 | I43: 13302 | J43: 181572.3 | K43: 2020-02-14 | L43: 24 | M43: INE740V01019
A44: AHLEAST | B44: EQ | C44: 187.5 | D44: 196.95 | E44: 187.5 | F44: 191 | G44: 191 | H44: 187 | I44: 139 | J44: 26680.45 | K44: 2020-02-14 | L44: 21 | M44: INE926K01017
A45: AHLUCONT | B45: EQ | C45: 313.75 | D45: 328.05 | E45: 313.7 | F45: 325.55 | G45: 328.05 | H45: 316.15 | I45: 1489 | J45: 478811.65 | K45: 2020-02-14 | L45: 150 | M45: INE758C01029
A46: AHLWEST | B46: EQ | C46: 348.05 | D46: 354.55 | E46: 323.25 | F46: 337.85 | G46: 340.5 | H46: 333.05 | I46: 9429 | J46: 3168911.65 | K46: 2020-02-14 | L46: 241 | M46: INE915K01010
A47: AIAENG | B47: EQ | C47: 1862.2 | D47: 1890 | E47: 1840.2 | F47: 1874.05 | G47: 1870.25 | H47: 1838.1 | I47: 24894 | J47: 46412040.15 | K47: 2020-02-14 | L47: 3477 | M47: INE212H01026
A48: AIONJSW | B48: EQ | C48: 15.45 | D48: 15.65 | E48: 15.3 | F48: 15.65 | G48: 15.65 | H48: 14.95 | I48: 186503 | J48: 2915768.7 | K48: 2020-02-14 | L48: 314 | M48: INE743C01021
A49: AIRAN | B49: EQ | C49: 13 | D49: 13 | E49: 12.35 | F49: 12.55 | G49: 12.35 | H49: 12.8 | I49: 5473 | J49: 69489.1 | K49: 2020-02-14 | L49: 51 | M49: INE645W01026
A50: AJANTPHARM | B50: EQ | C50: 1451.85 | D50: 1457.05 | E50: 1395 | F50: 1414.4 | G50: 1410.05 | H50: 1454.1 | I50: 181047 | J50: 257608738.6 | K50: 2020-02-14 | L50: 16460 | M50: INE031B01049
A51: AJMERA | B51: EQ | C51: 123.8 | D51: 123.8 | E51: 118.1 | F51: 118.35 | G51: 118.1 | H51: 121.1 | I51: 13074 | J51: 1566948.25 | K51: 2020-02-14 | L51: 546 | M51: INE298G01027
A52: AKSHARCHEM | B52: EQ | C52: 300 | D52: 300 | E52: 272.2 | F52: 280 | G52: 280.2 | H52: 264.9 | I52: 55837 | J52: 15777873.95 | K52: 2020-02-14 | L52: 2322 | M52: INE542B01011
A53: AKSHOPTFBR | B53: EQ | C53: 6.65 | D53: 6.8 | E53: 6.4 | F53: 6.4 | G53: 6.4 | H53: 6.7 | I53: 324433 | J53: 2096859.65 | K53: 2020-02-14 | L53: 529 | M53: INE523B01011
A54: AKZOINDIA | B54: EQ | C54: 2279 | D54: 2448.95 | E54: 2272 | F54: 2380.8 | G54: 2380 | H54: 2261.45 | I54: 83931 | J54: 199541214.7 | K54: 2020-02-14 | L54: 9350 | M54: INE133A01011
A55: ALANKIT | B55: EQ | C55: 15.95 | D55: 15.95 | E55: 15.3 | F55: 15.45 | G55: 15.4 | H55: 15.55 | I55: 204238 | J55: 3199897.15 | K55: 2020-02-14 | L55: 749 | M55: INE914E01040
A56: ALBERTDAVD | B56: EQ | C56: 503.6 | D56: 513.75 | E56: 478.2 | F56: 480.5 | G56: 480 | H56: 506.15 | I56: 29495 | J56: 14505748.35 | K56: 2020-02-14 | L56: 1385 | M56: INE155C01010
A57: ALBK | B57: EQ | C57: 15.35 | D57: 15.45 | E57: 15.05 | F57: 15.15 | G57: 15.2 | H57: 15.35 | I57: 689889 | J57: 10501833.4 | K57: 2020-02-14 | L57: 2420 | M57: INE428A01015
A58: ALCHEM | B58: BE | C58: 1.2 | D58: 1.2 | E58: 1.2 | F58: 1.2 | G58: 1.2 | H58: 1.25 | I58: 936 | J58: 1123.2 | K58: 2020-02-14 | L58: 7 | M58: INE964B01033
A59: ALEMBICLTD | B59: EQ | C59: 50.8 | D59: 52.5 | E59: 50.55 | F59: 51 | G59: 51.15 | H59: 50.45 | I59: 129935 | J59: 6664198.75 | K59: 2020-02-14 | L59: 2535 | M59: INE426A01027
A60: ALICON | B60: EQ | C60: 370 | D60: 375.7 | E60: 362.55 | F60: 366.4 | G60: 366.5 | H60: 362.5 | I60: 4374 | J60: 1618719.65 | K60: 2020-02-14 | L60: 257 | M60: INE062D01024
A61: ALKALI | B61: EQ | C61: 48.1 | D61: 48.1 | E61: 45.75 | F61: 45.85 | G61: 45.8 | H61: 46.8 | I61: 4576 | J61: 210930.05 | K61: 2020-02-14 | L61: 148 | M61: INE773I01017
A62: ALKEM | B62: EQ | C62: 2612.5 | D62: 2650.05 | E62: 2606 | F62: 2649.3 | G62: 2650 | H62: 2615.05 | I62: 65471 | J62: 173040103.6 | K62: 2020-02-14 | L62: 8641 | M62: INE540L01014
A63: ALKYLAMINE | B63: EQ | C63: 1569.9 | D63: 1600 | E63: 1540.7 | F63: 1570.9 | G63: 1575 | H63: 1547.6 | I63: 53030 | J63: 83535783.25 | K63: 2020-02-14 | L63: 3403 | M63: INE150B01021
A64: ALLCARGO | B64: EQ | C64: 107.6 | D64: 116.15 | E64: 105.1 | F64: 110.95 | G64: 111.65 | H64: 109.8 | I64: 412945 | J64: 46274893.85 | K64: 2020-02-14 | L64: 4235 | M64: INE418H01029
A65: ALLSEC | B65: EQ | C65: 280 | D65: 280 | E65: 263 | F65: 264.75 | G65: 263 | H65: 271.6 | I65: 4702 | J65: 1261790.25 | K65: 2020-02-14 | L65: 311 | M65: INE835G01018
A66: ALMONDZ | B66: EQ | C66: 16.5 | D66: 16.5 | E66: 16.3 | F66: 16.45 | G66: 16.5 | H66: 16.7 | I66: 3300 | J66: 54305 | K66: 2020-02-14 | L66: 14 | M66: INE326B01027
A67: ALPA | B67: EQ | C67: 19.5 | D67: 21.55 | E67: 19.35 | F67: 20.25 | G67: 20.35 | H67: 19.9 | I67: 120273 | J67: 2470577.25 | K67: 2020-02-14 | L67: 617 | M67: INE385I01010
A68: ALPHAGEO | B68: EQ | C68: 220 | D68: 225.95 | E68: 214.5 | F68: 215.8 | G68: 218 | H68: 221.55 | I68: 14418 | J68: 3159936.3 | K68: 2020-02-14 | L68: 671 | M68: INE137C01018
A69: ALPSINDUS | B69: BE | C69: 1 | D69: 1.1 | E69: 1 | F69: 1 | G69: 1 | H69: 1.05 | I69: 20305 | J69: 20505.95 | K69: 2020-02-14 | L69: 22 | M69: INE093B01015
A70: AMARAJABAT | B70: EQ | C70: 759.95 | D70: 774.5 | E70: 751.05 | F70: 755.8 | G70: 758 | H70: 763.75 | I70: 532215 | J70: 405473117.8 | K70: 2020-02-14 | L70: 18382 | M70: INE885A01032
A71: AMBER | B71: EQ | C71: 1614 | D71: 1625 | E71: 1551 | F71: 1572.65 | G71: 1553 | H71: 1605.75 | I71: 41413 | J71: 66260885.7 | K71: 2020-02-14 | L71: 4488 | M71: INE371P01015
A72: AMBIKCO | B72: EQ | C72: 815 | D72: 818.8 | E72: 810.1 | F72: 814.4 | G72: 815.7 | H72: 813.45 | I72: 3193 | J72: 2594941.65 | K72: 2020-02-14 | L72: 283 | M72: INE540G01014
A73: AMBUJACEM | B73: EQ | C73: 208.4 | D73: 212.25 | E73: 205 | F73: 205.65 | G73: 205.25 | H73: 208.55 | I73: 3183445 | J73: 662851333.6 | K73: 2020-02-14 | L73: 28279 | M73: INE079A01024
A74: AMDIND | B74: EQ | C74: 16 | D74: 16 | E74: 15.6 | F74: 15.75 | G74: 15.8 | H74: 16 | I74: 2385 | J74: 37667.5 | K74: 2020-02-14 | L74: 68 | M74: INE005I01014
A75: AMJLAND | B75: EQ | C75: 20.55 | D75: 21.25 | E75: 20.25 | F75: 21.15 | G75: 21.25 | H75: 20.85 | I75: 5647 | J75: 118038 | K75: 2020-02-14 | L75: 58 | M75: INE606A01024
A76: AMRUTANJAN | B76: EQ | C76: 501 | D76: 519.5 | E76: 500 | F76: 505.55 | G76: 506.35 | H76: 506.65 | I76: 71982 | J76: 36640802.6 | K76: 2020-02-14 | L76: 6221 | M76: INE098F01031
A77: ANANTRAJ | B77: EQ | C77: 33.25 | D77: 33.75 | E77: 32 | F77: 32.7 | G77: 32.7 | H77: 33.15 | I77: 160519 | J77: 5257212.35 | K77: 2020-02-14 | L77: 1223 | M77: INE242C01024
A78: ANDHRABANK | B78: EQ | C78: 15.6 | D78: 15.7 | E78: 15.5 | F78: 15.5 | G78: 15.55 | H78: 15.6 | I78: 352571 | J78: 5503263.95 | K78: 2020-02-14 | L78: 1609 | M78: INE434A01013
A79: ANDHRACEMT | B79: EQ | C79: 2.2 | D79: 2.3 | E79: 2.2 | F79: 2.25 | G79: 2.25 | H79: 2.2 | I79: 39886 | J79: 88601 | K79: 2020-02-14 | L79: 72 | M79: INE666E01012
A80: ANDHRSUGAR | B80: EQ | C80: 288.2 | D80: 295.65 | E80: 284.75 | F80: 286.7 | G80: 285 | H80: 293.4 | I80: 25721 | J80: 7434171.2 | K80: 2020-02-14 | L80: 1097 | M80: INE715B01013
A81: ANDPAPER | B81: EQ | C81: 268 | D81: 277.15 | E81: 268 | F81: 272.05 | G81: 271.05 | H81: 276.55 | I81: 2980 | J81: 811479.75 | K81: 2020-02-14 | L81: 209 | M81: INE435A01028
A82: ANIKINDS | B82: BE | C82: 9.3 | D82: 9.3 | E82: 8.6 | F82: 8.75 | G82: 8.9 | H82: 8.95 | I82: 1792 | J82: 15633.45 | K82: 2020-02-14 | L82: 11 | M82: INE087B01017
A83: ANKITMETAL | B83: BE | C83: 0.45 | D83: 0.45 | E83: 0.4 | F83: 0.4 | G83: 0.4 | H83: 0.4 | I83: 50255 | J83: 21436.75 | K83: 2020-02-14 | L83: 28 | M83: INE106I01010
A84: ANSALAPI | B84: EQ | C84: 5.8 | D84: 6 | E84: 5.35 | F84: 5.65 | G84: 5.6 | H84: 5.55 | I84: 220327 | J84: 1257166.3 | K84: 2020-02-14 | L84: 535 | M84: INE436A01026
A85: ANSALHSG | B85: BE | C85: 5.05 | D85: 5.1 | E85: 4.75 | F85: 4.85 | G85: 4.75 | H85: 4.9 | I85: 26800 | J85: 130475.5 | K85: 2020-02-14 | L85: 57 | M85: INE880B01015
A86: ANTGRAPHIC | B86: BE | C86: 0.65 | D86: 0.65 | E86: 0.6 | F86: 0.65 | G86: 0.65 | H86: 0.65 | I86: 5406 | J86: 3366.35 | K86: 2020-02-14 | L86: 14 | M86: INE414B01021
A87: ANUP | B87: EQ | C87: 580.05 | D87: 596 | E87: 577 | F87: 579.1 | G87: 580 | H87: 591.85 | I87: 8827 | J87: 5158574.1 | K87: 2020-02-14 | L87: 534 | M87: INE294Z01018
A88: APARINDS | B88: EQ | C88: 390.95 | D88: 398 | E88: 390.05 | F88: 391.95 | G88: 392.75 | H88: 389.6 | I88: 6745 | J88: 2648855.7 | K88: 2020-02-14 | L88: 417 | M88: INE372A01015
A89: APCL | B89: EQ | C89: 154.4 | D89: 159.15 | E89: 153.05 | F89: 155.45 | G89: 156.6 | H89: 153.9 | I89: 5107 | J89: 796889.55 | K89: 2020-02-14 | L89: 231 | M89: INE071F01012
A90: APCOTEXIND | B90: EQ | C90: 141.05 | D90: 143 | E90: 140.05 | F90: 140.5 | G90: 141.75 | H90: 142.2 | I90: 43414 | J90: 6132407.75 | K90: 2020-02-14 | L90: 1601 | M90: INE116A01032
A91: APEX | B91: EQ | C91: 367.5 | D91: 383.9 | E91: 363.75 | F91: 367.35 | G91: 365 | H91: 381 | I91: 353509 | J91: 131881132 | K91: 2020-02-14 | L91: 10351 | M91: INE346W01013
A92: APLAPOLLO | B92: EQ | C92: 2030.05 | D92: 2034.6 | E92: 2001.75 | F92: 2004.65 | G92: 2005 | H92: 2020.95 | I92: 18223 | J92: 36723882.9 | K92: 2020-02-14 | L92: 2387 | M92: INE702C01019
A93: APLLTD | B93: EQ | C93: 642 | D93: 653 | E93: 638 | F93: 643.35 | G93: 645 | H93: 639.15 | I93: 276921 | J93: 178842073.2 | K93: 2020-02-14 | L93: 8901 | M93: INE901L01018
A94: APOLLO | B94: EQ | C94: 80.7 | D94: 81.4 | E94: 78.15 | F94: 78.85 | G94: 78.35 | H94: 80 | I94: 28331 | J94: 2246795.55 | K94: 2020-02-14 | L94: 670 | M94: INE713T01010
A95: APOLLOHOSP | B95: EQ | C95: 1721 | D95: 1747.7 | E95: 1674.45 | F95: 1704.4 | G95: 1700 | H95: 1695.5 | I95: 3179224 | J95: 5448778848 | K95: 2020-02-14 | L95: 104934 | M95: INE437A01024
A96: APOLLOPIPE | B96: EQ | C96: 488 | D96: 488 | E96: 459.7 | F96: 469.55 | G96: 470 | H96: 475.05 | I96: 10527 | J96: 4913394.95 | K96: 2020-02-14 | L96: 745 | M96: INE126J01016
A97: APOLLOTYRE | B97: EQ | C97: 161.8 | D97: 163.25 | E97: 158.3 | F97: 159.05 | G97: 159.05 | H97: 161.25 | I97: 1605188 | J97: 258231099.2 | K97: 2020-02-14 | L97: 11203 | M97: INE438A01022
A98: APOLSINHOT | B98: EQ | C98: 730.05 | D98: 730.05 | E98: 709 | F98: 710.5 | G98: 709 | H98: 715.65 | I98: 4267 | J98: 3060903.35 | K98: 2020-02-14 | L98: 125 | M98: INE451F01024
A99: APTECHT | B99: EQ | C99: 147.05 | D99: 156.7 | E99: 146.4 | F99: 151.9 | G99: 151.8 | H99: 146.25 | I99: 703948 | J99: 107613759.7 | K99: 2020-02-14 | L99: 12877 | M99: INE266F01018
A100: ARCHIDPLY | B100: BE | C100: 25.2 | D100: 25.2 | E100: 23.15 | F100: 23.15 | G100: 23.15 | H100: 24.35 | I100: 19867 | J100: 468249.15 | K100: 2020-02-14 | L100: 106 | M100: INE877I01016
A101: ARCHIES | B101: EQ | C101: 17.5 | D101: 17.5 | E101: 16.7 | F101: 16.75 | G101: 16.7 | H101: 17.4 | I101: 88971 | J101: 1505952.75 | K101: 2020-02-14 | L101: 303 | M101: INE731A01020
A102: ARCOTECH | B102: BE | C102: 1.5 | D102: 1.55 | E102: 1.45 | F102: 1.5 | G102: 1.5 | H102: 1.5 | I102: 52399 | J102: 79179.65 | K102: 2020-02-14 | L102: 50 | M102: INE574I01035
A103: ARENTERP | B103: EQ | C103: 12.6 | D103: 12.6 | E103: 12.6 | F103: 12.6 | G103: 12.6 | H103: 12.6 | I103: 15 | J103: 189 | K103: 2020-02-14 | L103: 1 | M103: INE610C01014
A104: ARIES | B104: EQ | C104: 67.65 | D104: 67.65 | E104: 65.75 | F104: 65.9 | G104: 66 | H104: 65.9 | I104: 26085 | J104: 1730377.9 | K104: 2020-02-14 | L104: 305 | M104: INE298I01015
A105: ARIHANT | B105: EQ | C105: 19.7 | D105: 21 | E105: 19.55 | F105: 20.5 | G105: 20.85 | H105: 20.8 | I105: 2545 | J105: 51794.95 | K105: 2020-02-14 | L105: 18 | M105: INE413D01011
A106: ARIHANTSUP | B106: EQ | C106: 27.25 | D106: 29 | E106: 27.1 | F106: 27.3 | G106: 28.5 | H106: 28.5 | I106: 525 | J106: 14286.55 | K106: 2020-02-14 | L106: 17 | M106: INE643K01018
A107: ARMANFIN | B107: EQ | C107: 996.25 | D107: 1021.95 | E107: 915.1 | F107: 933.35 | G107: 939 | H107: 988.25 | I107: 30792 | J107: 29623835.25 | K107: 2020-02-14 | L107: 2905 | M107: INE109C01017
A108: AROGRANITE | B108: EQ | C108: 33 | D108: 33.8 | E108: 31.1 | F108: 31.85 | G108: 32.85 | H108: 32.95 | I108: 7843 | J108: 254907.75 | K108: 2020-02-14 | L108: 307 | M108: INE210C01013
A109: ARROWGREEN | B109: BE | C109: 46 | D109: 46.1 | E109: 45.85 | F109: 45.95 | G109: 45.85 | H109: 48.25 | I109: 8805 | J109: 404640.25 | K109: 2020-02-14 | L109: 90 | M109: INE570D01018
A110: ARSHIYA | B110: EQ | C110: 17.2 | D110: 17.25 | E110: 16.15 | F110: 16.35 | G110: 16.25 | H110: 16.6 | I110: 84206 | J110: 1393829.25 | K110: 2020-02-14 | L110: 181 | M110: INE968D01022
A111: ARSSINFRA | B111: EQ | C111: 17.9 | D111: 17.9 | E111: 16.25 | F111: 16.55 | G111: 16.35 | H111: 16.8 | I111: 19156 | J111: 318904.65 | K111: 2020-02-14 | L111: 108 | M111: INE267I01010
A112: ARTEMISMED | B112: EQ | C112: 237.9 | D112: 237.9 | E112: 218 | F112: 227.75 | G112: 229 | H112: 229.8 | I112: 440 | J112: 99115.8 | K112: 2020-02-14 | L112: 37 | M112: INE025R01013
A113: ARVIND | B113: EQ | C113: 38.2 | D113: 38.55 | E113: 38 | F113: 38.2 | G113: 38.1 | H113: 38.2 | I113: 439033 | J113: 16816367.1 | K113: 2020-02-14 | L113: 1910 | M113: INE034A01011
A114: ARVINDFASN | B114: EQ | C114: 389.3 | D114: 393.45 | E114: 386.1 | F114: 389.1 | G114: 388.5 | H114: 387.05 | I114: 14303 | J114: 5566437.85 | K114: 2020-02-14 | L114: 665 | M114: INE955V01021
A115: ARVSMART | B115: EQ | C115: 89.35 | D115: 89.5 | E115: 86.5 | F115: 87.25 | G115: 87.3 | H115: 88.25 | I115: 20730 | J115: 1819619.9 | K115: 2020-02-14 | L115: 427 | M115: INE034S01021
A116: ASAHIINDIA | B116: EQ | C116: 260.05 | D116: 264 | E116: 249.1 | F116: 259.5 | G116: 260 | H116: 262.5 | I116: 59327 | J116: 15316225.55 | K116: 2020-02-14 | L116: 1483 | M116: INE439A01020
A117: ASAHISONG | B117: EQ | C117: 132.15 | D117: 136 | E117: 130.65 | F117: 131 | G117: 131.35 | H117: 130.1 | I117: 5824 | J117: 773914.7 | K117: 2020-02-14 | L117: 325 | M117: INE228I01012
A118: ASAL | B118: EQ | C118: 28.7 | D118: 29.1 | E118: 28.5 | F118: 29.05 | G118: 29.1 | H118: 28.55 | I118: 10960 | J118: 316629 | K118: 2020-02-14 | L118: 70 | M118: INE900C01027
A119: ASALCBR | B119: EQ | C119: 265.05 | D119: 284.4 | E119: 265 | F119: 272.75 | G119: 272 | H119: 263.75 | I119: 79240 | J119: 21839807 | K119: 2020-02-14 | L119: 1418 | M119: INE073G01016
A120: ASHAPURMIN | B120: EQ | C120: 40.3 | D120: 41.25 | E120: 38.15 | F120: 40.2 | G120: 40.7 | H120: 39.3 | I120: 276394 | J120: 11256773.8 | K120: 2020-02-14 | L120: 1507 | M120: INE348A01023
A121: ASHIANA | B121: EQ | C121: 108.3 | D121: 109.95 | E121: 106.2 | F121: 108.15 | G121: 108.5 | H121: 108.3 | I121: 21067 | J121: 2273702.8 | K121: 2020-02-14 | L121: 508 | M121: INE365D01021
A122: ASHIMASYN | B122: EQ | C122: 6.7 | D122: 6.75 | E122: 6.45 | F122: 6.6 | G122: 6.7 | H122: 6.85 | I122: 16176 | J122: 105867.4 | K122: 2020-02-14 | L122: 101 | M122: INE440A01010
A123: ASHOKA | B123: EQ | C123: 103.9 | D123: 105.35 | E123: 102.1 | F123: 102.65 | G123: 102.15 | H123: 103.1 | I123: 437604 | J123: 45119049.8 | K123: 2020-02-14 | L123: 5490 | M123: INE442H01029
A124: ASHOKLEY | B124: EQ | C124: 81.4 | D124: 81.55 | E124: 79.7 | F124: 80.25 | G124: 80.4 | H124: 81.55 | I124: 20290024 | J124: 1634231072 | K124: 2020-02-14 | L124: 64971 | M124: INE208A01029
A125: ASIANHOTNR | B125: EQ | C125: 84.45 | D125: 87.3 | E125: 83 | F125: 83.75 | G125: 83 | H125: 85.8 | I125: 1184 | J125: 101120.95 | K125: 2020-02-14 | L125: 132 | M125: INE363A01022
A126: ASIANPAINT | B126: EQ | C126: 1876.5 | D126: 1899.65 | E126: 1870 | F126: 1877.05 | G126: 1877.9 | H126: 1874.05 | I126: 771464 | J126: 1453971747 | K126: 2020-02-14 | L126: 32866 | M126: INE021A01026
A127: ASIANTILES | B127: EQ | C127: 244.4 | D127: 245.9 | E127: 233.1 | F127: 241.7 | G127: 240 | H127: 243.25 | I127: 165410 | J127: 39670678.35 | K127: 2020-02-14 | L127: 3462 | M127: INE022I01019
A128: ASPINWALL | B128: EQ | C128: 137.5 | D128: 138 | E128: 135.25 | F128: 135.5 | G128: 135.5 | H128: 135.55 | I128: 2635 | J128: 357186.75 | K128: 2020-02-14 | L128: 11 | M128: INE991I01015
A129: ASTEC | B129: EQ | C129: 493 | D129: 493 | E129: 472.5 | F129: 477.35 | G129: 479 | H129: 480.35 | I129: 2870 | J129: 1365762.7 | K129: 2020-02-14 | L129: 149 | M129: INE563J01010
A130: ASTERDM | B130: EQ | C130: 174.65 | D130: 177.3 | E130: 168 | F130: 173.2 | G130: 173.1 | H130: 174.65 | I130: 101768 | J130: 17709975.65 | K130: 2020-02-14 | L130: 3862 | M130: INE914M01019
A131: ASTRAL | B131: EQ | C131: 1193.25 | D131: 1210.9 | E131: 1185 | F131: 1197.65 | G131: 1200 | H131: 1198.4 | I131: 66556 | J131: 79759821.35 | K131: 2020-02-14 | L131: 5324 | M131: INE006I01046
A132: ASTRAMICRO | B132: EQ | C132: 98.4 | D132: 98.9 | E132: 95.5 | F132: 95.8 | G132: 95.55 | H132: 97.95 | I132: 399975 | J132: 38610221.65 | K132: 2020-02-14 | L132: 3251 | M132: INE386C01029
A133: ASTRAZEN | B133: EQ | C133: 2786.75 | D133: 2939.9 | E133: 2750 | F133: 2865.15 | G133: 2929 | H133: 2786.75 | I133: 56106 | J133: 162066548.2 | K133: 2020-02-14 | L133: 7688 | M133: INE203A01020
A134: ASTRON | B134: EQ | C134: 38.45 | D134: 38.8 | E134: 38 | F134: 38.4 | G134: 38.35 | H134: 38.45 | I134: 79171 | J134: 3039168.1 | K134: 2020-02-14 | L134: 185 | M134: INE646X01014
A135: ATFL | B135: EQ | C135: 700.3 | D135: 710 | E135: 684.15 | F135: 704.25 | G135: 710 | H135: 696.15 | I135: 8353 | J135: 5839449.45 | K135: 2020-02-14 | L135: 375 | M135: INE209A01019
A136: ATLANTA | B136: EQ | C136: 5.6 | D136: 5.8 | E136: 5.5 | F136: 5.6 | G136: 5.8 | H136: 5.55 | I136: 20773 | J136: 116623.7 | K136: 2020-02-14 | L136: 74 | M136: INE285H01022
A137: ATLASCYCLE | B137: BE | C137: 48.05 | D137: 48.05 | E137: 48.05 | F137: 48.05 | G137: 48.05 | H137: 45.8 | I137: 3851 | J137: 185040.55 | K137: 2020-02-14 | L137: 43 | M137: INE446A01025
A138: ATUL | B138: EQ | C138: 5070 | D138: 5070 | E138: 4947.4 | F138: 4968.25 | G138: 4980 | H138: 4958.75 | I138: 11352 | J138: 56583798.1 | K138: 2020-02-14 | L138: 2537 | M138: INE100A01010
A139: ATULAUTO | B139: EQ | C139: 270 | D139: 270 | E139: 241 | F139: 242.65 | G139: 242.5 | H139: 239.8 | I139: 225657 | J139: 56929653 | K139: 2020-02-14 | L139: 9680 | M139: INE951D01028
A140: AUBANK | B140: EQ | C140: 1160 | D140: 1165.15 | E140: 1133.35 | F140: 1146.05 | G140: 1142.4 | H140: 1148.25 | I140: 255773 | J140: 293186359.9 | K140: 2020-02-14 | L140: 19173 | M140: INE949L01017
A141: AURIONPRO | B141: EQ | C141: 44 | D141: 44.95 | E141: 43.5 | F141: 44.1 | G141: 43.5 | H141: 45.4 | I141: 57199 | J141: 2541374.6 | K141: 2020-02-14 | L141: 251 | M141: INE132H01018
A142: AUROPHARMA | B142: EQ | C142: 528.35 | D142: 532.95 | E142: 512.4 | F142: 514.35 | G142: 514.05 | H142: 527.35 | I142: 4638466 | J142: 2412639739 | K142: 2020-02-14 | L142: 75233 | M142: INE406A01037
A143: AUSOMENT | B143: BE | C143: 41.15 | D143: 42.5 | E143: 40.4 | F143: 40.7 | G143: 40.7 | H143: 42.45 | I143: 1189 | J143: 48177.4 | K143: 2020-02-14 | L143: 18 | M143: INE218C01016
A144: AUTOAXLES | B144: EQ | C144: 806.8 | D144: 814.7 | E144: 758.7 | F144: 778.9 | G144: 785.5 | H144: 808 | I144: 58166 | J144: 45258921.35 | K144: 2020-02-14 | L144: 3925 | M144: INE449A01011
A145: AUTOIND | B145: BE | C145: 21 | D145: 22.85 | E145: 20.9 | F145: 22.85 | G145: 22.85 | H145: 21.8 | I145: 15722 | J145: 350452.45 | K145: 2020-02-14 | L145: 76 | M145: INE718H01014
A146: AUTOLITIND | B146: EQ | C146: 21.3 | D146: 24.4 | E146: 21.25 | F146: 22.3 | G146: 22.55 | H146: 21.5 | I146: 4100 | J146: 91619.35 | K146: 2020-02-14 | L146: 148 | M146: INE448A01013
A147: AVADHSUGAR | B147: EQ | C147: 270 | D147: 272.55 | E147: 260.15 | F147: 263 | G147: 262.7 | H147: 271.2 | I147: 100402 | J147: 26739670.35 | K147: 2020-02-14 | L147: 2365 | M147: INE349W01017
A148: AVANTIFEED | B148: EQ | C148: 610 | D148: 619.9 | E148: 602.1 | F148: 609.1 | G148: 609.15 | H148: 611.05 | I148: 657395 | J148: 401983219.4 | K148: 2020-02-14 | L148: 29438 | M148: INE871C01038
A149: AVTNPL | B149: EQ | C149: 41.35 | D149: 42.7 | E149: 40.1 | F149: 40.3 | G149: 40.25 | H149: 42.3 | I149: 221980 | J149: 9110723.35 | K149: 2020-02-14 | L149: 1454 | M149: INE488D01021
A150: AXISBANK | B150: EQ | C150: 748.1 | D150: 752.55 | E150: 732.1 | F150: 736.5 | G150: 736.5 | H150: 747.8 | I150: 6155000 | J150: 4553740648 | K150: 2020-02-14 | L150: 84125 | M150: INE238A01034
A151: AXISCADES | B151: BE | C151: 61.1 | D151: 64.45 | E151: 59.6 | F151: 60.4 | G151: 62.3 | H151: 62.7 | I151: 40646 | J151: 2480792.8 | K151: 2020-02-14 | L151: 273 | M151: INE555B01013
A152: AXISGOLD | B152: EQ | C152: 3585 | D152: 3600 | E152: 3581.05 | F152: 3589.8 | G152: 3585.05 | H152: 3589.8 | I152: 227 | J152: 815424.5 | K152: 2020-02-14 | L152: 68 | M152: INF846K01347
A153: AXISNIFTY | B153: EQ | C153: 1262.87 | D153: 1262.87 | E153: 1246 | F153: 1249.84 | G153: 1253.69 | H153: 1260.7 | I153: 190 | J153: 238077.28 | K153: 2020-02-14 | L153: 15 | M153: INF846K01ZL0
A154: AYMSYNTEX | B154: EQ | C154: 33.95 | D154: 35.95 | E154: 32.85 | F154: 34.85 | G154: 35.2 | H154: 32.15 | I154: 46826 | J154: 1624463.95 | K154: 2020-02-14 | L154: 466 | M154: INE193B01039
A155: BAGFILMS | B155: BE | C155: 1.75 | D155: 1.75 | E155: 1.7 | F155: 1.7 | G155: 1.7 | H155: 1.75 | I155: 20560 | J155: 34978.2 | K155: 2020-02-14 | L155: 38 | M155: INE116D01028
A156: BAJAJ-AUTO | B156: EQ | C156: 3145 | D156: 3205 | E156: 3136.8 | F156: 3146.4 | G156: 3152.6 | H156: 3136.4 | I156: 381580 | J156: 1210282360 | K156: 2020-02-14 | L156: 30267 | M156: INE917I01010
A157: BAJAJCON | B157: EQ | C157: 200 | D157: 202.75 | E157: 195 | F157: 197.8 | G157: 197.6 | H157: 199.85 | I157: 200715 | J157: 39755298.05 | K157: 2020-02-14 | L157: 5716 | M157: INE933K01021
A158: BAJAJELEC | B158: EQ | C158: 431.8 | D158: 431.8 | E158: 408.05 | F158: 412.95 | G158: 412 | H158: 427.15 | I158: 91901 | J158: 38612279.3 | K158: 2020-02-14 | L158: 3216 | M158: INE193E01025
A159: BAJAJFINSV | B159: EQ | C159: 9735 | D159: 9795 | E159: 9653.05 | F159: 9690.5 | G159: 9673 | H159: 9717.2 | I159: 139237 | J159: 1356968845 | K159: 2020-02-14 | L159: 18186 | M159: INE918I01018
A160: BAJAJHIND | B160: EQ | C160: 6.15 | D160: 6.2 | E160: 5.95 | F160: 6 | G160: 6 | H160: 6.15 | I160: 1046363 | J160: 6356081.85 | K160: 2020-02-14 | L160: 1216 | M160: INE306A01021
A161: BAJAJHLDNG | B161: EQ | C161: 3906.05 | D161: 3939.75 | E161: 3726 | F161: 3756.55 | G161: 3766 | H161: 3904.9 | I161: 114918 | J161: 435053907.6 | K161: 2020-02-14 | L161: 13358 | M161: INE118A01012
A162: BAJFINANCE | B162: EQ | C162: 4800 | D162: 4815 | E162: 4768 | F162: 4781.75 | G162: 4785 | H162: 4795.35 | I162: 731118 | J162: 3506846618 | K162: 2020-02-14 | L162: 54945 | M162: INE296A01024
A163: BALAJITELE | B163: EQ | C163: 59 | D163: 59.15 | E163: 53.85 | F163: 56.95 | G163: 57.05 | H163: 58.45 | I163: 105242 | J163: 5987418.85 | K163: 2020-02-14 | L163: 1012 | M163: INE794B01026
A164: BALAMINES | B164: EQ | C164: 401.85 | D164: 432.7 | E164: 400.55 | F164: 421.65 | G164: 425 | H164: 402.55 | I164: 69735 | J164: 29231356.05 | K164: 2020-02-14 | L164: 3908 | M164: INE050E01027
A165: BALAXI | B165: EQ | C165: 127 | D165: 127 | E165: 114 | F165: 116.45 | G165: 117.5 | H165: 122.25 | I165: 3012 | J165: 353337.8 | K165: 2020-02-14 | L165: 337 | M165: INE618N01014
A166: BALKRISHNA | B166: EQ | C166: 15.7 | D166: 16.2 | E166: 15 | F166: 15.65 | G166: 15.6 | H166: 15.45 | I166: 4308 | J166: 67747.5 | K166: 2020-02-14 | L166: 61 | M166: INE875R01011
A167: BALKRISIND | B167: EQ | C167: 1150 | D167: 1161.9 | E167: 1135.5 | F167: 1157.05 | G167: 1157 | H167: 1149.15 | I167: 645397 | J167: 741688640.5 | K167: 2020-02-14 | L167: 18433 | M167: INE787D01026
A168: BALLARPUR | B168: BE | C168: 0.5 | D168: 0.55 | E168: 0.45 | F168: 0.5 | G168: 0.5 | H168: 0.5 | I168: 2916444 | J168: 1357222.8 | K168: 2020-02-14 | L168: 280 | M168: INE294A01037
A169: BALMLAWRIE | B169: EQ | C169: 114.3 | D169: 114.7 | E169: 112.2 | F169: 112.5 | G169: 112.25 | H169: 114 | I169: 63677 | J169: 7210198.95 | K169: 2020-02-14 | L169: 1393 | M169: INE164A01016
A170: BALPHARMA | B170: EQ | C170: 43.65 | D170: 44.8 | E170: 41.1 | F170: 41.85 | G170: 42.1 | H170: 42.3 | I170: 6371 | J170: 265311.45 | K170: 2020-02-14 | L170: 139 | M170: INE083D01012
A171: BALRAMCHIN | B171: EQ | C171: 171.7 | D171: 171.7 | E171: 168 | F171: 169.4 | G171: 168.6 | H171: 170.85 | I171: 770855 | J171: 130940761.5 | K171: 2020-02-14 | L171: 8079 | M171: INE119A01028
A172: BANARBEADS | B172: EQ | C172: 36.9 | D172: 38 | E172: 35.95 | F172: 36 | G172: 36 | H172: 35.5 | I172: 373 | J172: 13569.95 | K172: 2020-02-14 | L172: 6 | M172: INE655B01011
A173: BANARISUG | B173: EQ | C173: 1590 | D173: 1590 | E173: 1500 | F173: 1505.55 | G173: 1502.25 | H173: 1517.6 | I173: 1052 | J173: 1594099.95 | K173: 2020-02-14 | L173: 208 | M173: INE459A01010
A174: BANCOINDIA | B174: EQ | C174: 98.9 | D174: 99 | E174: 96.25 | F174: 96.8 | G174: 97.1 | H174: 98 | I174: 20851 | J174: 2032917.65 | K174: 2020-02-14 | L174: 565 | M174: INE213C01025
A175: BANDHANBNK | B175: EQ | C175: 454.3 | D175: 463.5 | E175: 448.6 | F175: 452.55 | G175: 452.5 | H175: 452.05 | I175: 1575017 | J175: 719446575.3 | K175: 2020-02-14 | L175: 49455 | M175: INE545U01014
A176: BANG | B176: EQ | C176: 19 | D176: 19 | E176: 18.05 | F176: 19 | G176: 19 | H176: 18.1 | I176: 7798 | J176: 148079.6 | K176: 2020-02-14 | L176: 32 | M176: INE863I01016
A177: BANKBARODA | B177: EQ | C177: 88.15 | D177: 88.95 | E177: 86.1 | F177: 86.45 | G177: 86.4 | H177: 88.05 | I177: 15401905 | J177: 1345666524 | K177: 2020-02-14 | L177: 32088 | M177: INE028A01039
A178: BANKBEES | B178: EQ | C178: 318.51 | D178: 320.03 | E178: 313.9 | F178: 314.75 | G178: 314.97 | H178: 318.22 | I178: 146724 | J178: 46329862.36 | K178: 2020-02-14 | L178: 1937 | M178: INF204KB15I9
A179: BANKINDIA | B179: EQ | C179: 63.25 | D179: 63.55 | E179: 62.65 | F179: 63.05 | G179: 62.95 | H179: 63.1 | I179: 999669 | J179: 63069591.45 | K179: 2020-02-14 | L179: 7621 | M179: INE084A01016
A180: BANSWRAS | B180: BE | C180: 129 | D180: 129 | E180: 125 | F180: 128.05 | G180: 128.5 | H180: 126.1 | I180: 5548 | J180: 710322.9 | K180: 2020-02-14 | L180: 78 | M180: INE629D01012
A181: BARTRONICS | B181: BE | C181: 1 | D181: 1.1 | E181: 1 | F181: 1 | G181: 1 | H181: 1.05 | I181: 14181 | J181: 14434.35 | K181: 2020-02-14 | L181: 32 | M181: INE855F01034
A182: BASF | B182: EQ | C182: 895 | D182: 895 | E182: 870 | F182: 873.65 | G182: 875.2 | H182: 878.1 | I182: 40405 | J182: 35549205.2 | K182: 2020-02-14 | L182: 2849 | M182: INE373A01013
A183: BASML | B183: EQ | C183: 141.95 | D183: 144 | E183: 118.5 | F183: 124.05 | G183: 124.05 | H183: 123.9 | I183: 2491 | J183: 321176.75 | K183: 2020-02-14 | L183: 89 | M183: INE186H01014
A184: BATAINDIA | B184: EQ | C184: 1815 | D184: 1826.2 | E184: 1772.55 | F184: 1783.25 | G184: 1779.85 | H184: 1813.5 | I184: 533112 | J184: 958368890.9 | K184: 2020-02-14 | L184: 26645 | M184: INE176A01028
A185: BAYERCROP | B185: EQ | C185: 4365.85 | D185: 4425.15 | E185: 4333.3 | F185: 4357.05 | G185: 4358 | H185: 4352.65 | I185: 5361 | J185: 23475777.75 | K185: 2020-02-14 | L185: 1488 | M185: INE462A01022
A186: BBL | B186: EQ | C186: 816.55 | D186: 831 | E186: 816.55 | F186: 822.75 | G186: 823 | H186: 816.55 | I186: 7467 | J186: 6162821.3 | K186: 2020-02-14 | L186: 938 | M186: INE464A01028
A187: BBTC | B187: EQ | C187: 1200 | D187: 1218.9 | E187: 1145.55 | F187: 1155.6 | G187: 1150.1 | H187: 1163.3 | I187: 140415 | J187: 166527531.4 | K187: 2020-02-14 | L187: 6648 | M187: INE050A01025
A188: BCG | B188: BE | C188: 4.6 | D188: 4.8 | E188: 4.4 | F188: 4.45 | G188: 4.55 | H188: 4.6 | I188: 533354 | J188: 2414332 | K188: 2020-02-14 | L188: 419 | M188: INE425B01027
A189: BCP | B189: BE | C189: 17.65 | D189: 19.45 | E189: 17.65 | F189: 19.25 | G189: 18.15 | H189: 18.55 | I189: 195709 | J189: 3722252.85 | K189: 2020-02-14 | L189: 84 | M189: INE905P01028
A190: BDL | B190: EQ | C190: 279 | D190: 281.5 | E190: 273.25 | F190: 274 | G190: 273.25 | H190: 274.6 | I190: 35930 | J190: 9977725.5 | K190: 2020-02-14 | L190: 1885 | M190: INE171Z01018
A191: BEARDSELL | B191: BE | C191: 8.3 | D191: 9.1 | E191: 8.3 | F191: 8.3 | G191: 8.3 | H191: 8.7 | I191: 2429 | J191: 20465 | K191: 2020-02-14 | L191: 13 | M191: INE520H01022
A192: BEDMUTHA | B192: BE | C192: 16 | D192: 16 | E192: 15.65 | F192: 15.65 | G192: 15.65 | H192: 16.45 | I192: 1516 | J192: 24100.4 | K192: 2020-02-14 | L192: 8 | M192: INE844K01012
A193: BEL | B193: EQ | C193: 85.25 | D193: 85.75 | E193: 82.65 | F193: 83.05 | G193: 83 | H193: 85.2 | I193: 9548923 | J193: 802738801.1 | K193: 2020-02-14 | L193: 27332 | M193: INE263A01024
A194: BEML | B194: EQ | C194: 945 | D194: 957.4 | E194: 926 | F194: 935.35 | G194: 932.2 | H194: 942.1 | I194: 258564 | J194: 242927975.9 | K194: 2020-02-14 | L194: 9771 | M194: INE258A01016
A195: BEPL | B195: EQ | C195: 47.35 | D195: 48.8 | E195: 45.6 | F195: 45.75 | G195: 45.75 | H195: 47.05 | I195: 277365 | J195: 12957091.3 | K195: 2020-02-14 | L195: 5158 | M195: INE922A01025
A196: BERGEPAINT | B196: EQ | C196: 578 | D196: 587.75 | E196: 576.65 | F196: 579.6 | G196: 578.55 | H196: 581.7 | I196: 684632 | J196: 398799916.7 | K196: 2020-02-14 | L196: 16558 | M196: INE463A01038
A197: BFINVEST | B197: EQ | C197: 323.4 | D197: 329.8 | E197: 316.65 | F197: 319.55 | G197: 319 | H197: 322.55 | I197: 21812 | J197: 7076720.8 | K197: 2020-02-14 | L197: 806 | M197: INE878K01010
A198: BFUTILITIE | B198: EQ | C198: 327.5 | D198: 337.5 | E198: 318.25 | F198: 322.75 | G198: 322 | H198: 326.25 | I198: 376218 | J198: 124141135.3 | K198: 2020-02-14 | L198: 10369 | M198: INE243D01012
A199: BGLOBAL | B199: BE | C199: 1.4 | D199: 1.4 | E199: 1.35 | F199: 1.4 | G199: 1.4 | H199: 1.4 | I199: 3424 | J199: 4633.05 | K199: 2020-02-14 | L199: 11 | M199: INE224M01013
A200: BGRENERGY | B200: EQ | C200: 37.85 | D200: 38.7 | E200: 37 | F200: 37.3 | G200: 37.3 | H200: 37.5 | I200: 89844 | J200: 3386496.25 | K200: 2020-02-14 | L200: 690 | M200: INE661I01014
... 1487 more rows

Sheet Sheet1 (hidden)

Sheet Sheet3 (hidden)

Sheet Sheet4 (hidden)

Sheet Sheet5 (hidden)
